{"text_format":"1","workbook":"xlsx","n_sheets":14,"sheets":["Macro","A PROJ Instructions","B PROJ Budget","C COMP Instructions","D COMP Budget","E COMP Activités","F COMP Mise à jour Année 1","G COMP Mise à jour Année 2","H COMP Mise à jour Année 3","I Instructions - éditeurs","J Budget Projets de livres","K Budget Revues électroniques","L Budget Revues imprimées","Sheet1"],"not_rendered":{"charts":0,"images":5,"macros":1,"external_links":1,"defined_names":32,"comments":0,"pivot_tables":0},"unopened":[],"bounds":{"document_bytes":16777216,"sheet_cells":100000,"rows_first":2000,"rows_last":500,"rows_between":2000,"halvings":0,"cell_chars":16384,"cell_head_chars":4096},"cells_cut":0,"cells_raw":0,"read":"whole","date_system":"1900"}

{"sheet":"Macro","index":0,"n_rows":37,"n_cols":2,"rows_kept":37,"cut":false,"hidden":false,"merged":[[31,1,31,15],[33,1,34,15],[36,1,37,15],[1,1,1,11],[4,1,4,15],[6,1,7,15],[3,1,3,15],[24,1,24,15],[15,1,16,15],[18,1,18,15],[21,1,21,15],[29,1,29,15]]}
[]
[]
[]
[null,"Appuyer la pratique artistique"]
[null,"Innovation et développement du secteur"]
[]
[null,"Cette composante finance de nombreux types d’activités ayant leur propre section d’onglets avec des pages de budget. Ce document comprend une macro intégrée qui vous dirigera aux sections qui concernent votre activité. Veuillez choisir le bouton pertinent ci-dessous pour votre type d’activité."]
[]
[]
[]
[]
[]
[]
[]
[]
[null,"Si le paramétrage de votre logiciel ou ordinateur empêche le bon fonctionnement des boutons, vous verrez tous les onglets sur cette page. Choisissez l’onglet contenant des instructions pour votre type d’activité."]
[]
[]
[null,"Subventions de projets (à l'exception des éditeurs) :"]
[]
[]
[null,"Subventions  composites (à l'exception des éditeurs) :"]
[]
[]
[null,"Les éditeurs :"]
[]
[]
[]
[]
[null,"1. Après avoir téléchargé le formulaire, sauvegardez-le sur votre ordinateur. Vous pouvez le sauvegarder sous un nom différent."]
[]
[null,"2. Chaque section a ses propres instructions. À la suite de ces instructions, chaque onglet contient une feuille distincte que vous devez compléter."]
[]
[null,"3. N’oubliez pas de sauvegarder à nouveau le document sur votre ordinateur.  Lorsque vous cliquez sur « Sauvegarder », tous les onglets sont sauvegardés en même temps."]
[]
[]
[null,"4. Retournez au portail et téléversez le document complet à votre demande. Lorsque vous téléversez le document à votre formulaire de demande, tous les onglets y sont transférés ensemble."]

{"sheet":"A PROJ Instructions","index":1,"n_rows":55,"n_cols":3,"rows_kept":55,"cut":false,"hidden":false,"merged":[[15,1,16,15],[28,2,29,15],[30,2,31,15],[1,1,1,15],[3,1,3,15],[2,1,2,15],[4,1,4,15],[6,1,11,15],[40,2,41,15],[42,1,43,15],[44,2,45,15],[49,1,51,15],[52,1,53,15]]}
[null,"v.201704"]
[null,"Appuyer la pratique artistique : Innovation et développement du secteur - Subventions de projets (à l'exception des éditeurs)"]
[null,"Instructions pour remplir les document « Budget et Annexes »"]
[null,"Consultez l'onglet C pour les instructions de subventions composites."]
[null,"Les éditeurs de livres ou de revues doivent consulter l'onglet I."]
[]
[null,"N'oubliez pas que le formulaire de budget est conçu pour être utilisé par des candidats de différents champs de pratique (disciplines) et pour un large éventail d'activités. Il n'est pas possible d'inclure des catégories de dépenses détaillées pour chaque type d'activité. Vous trouverez plutôt un certain nombre de lignes vides dans le formulaire que vous pouvez utiliser pour préciser les dépenses qui sont pertinentes à votre projet. Choisissez une ligne vide dans la catégorie des coûts qui correspond le mieux à la dépense, inscrivez une brève description qui sera facilement comprise par un comité d'évaluation qui connaît bien votre (vos) forme(s) d’expression artistique, inscrivez le montant de la dépense et, au besoin, ajoutez une note budgétaire pour expliquer le montant."]
[]
[]
[]
[]
[]
[]
[]
[null,"Veuillez noter qu'au bas de la page se trouvent plusieurs onglets."]
[null,"Les candidats aux subventions de projets doivent seulement consulter les deux premiers onglets : « A PROJ Instructions » et « B PROJ Budget ». Il n'y a pas d'annexes pour les demandes de projets."]
[]
[]
[]
[null,"À la suite de ces instructions, chaque onglet contient une feuille distincte que vous devez compléter."]
[null,"Lorsque vous cliquez sur « Sauvegarder », tous les onglets sont sauvegardés en même temps."]
[null,"Lorsque vous téléversez le document à votre formulaire de demande, tous les onglets y sont transférés ensemble. "]
[]
[]
[null,"1. Après avoir téléchargé le formulaire, sauvegardez-le sur votre ordinateur. Vous pouvez le sauvegarder sous un nom différent."]
[]
[null,"2. Complétez l'onglet « B PROJ budget »."]
[null,null," - Veuillez inscrire les coûts au budget. Au besoin, ajoutez les explications de vos calculs."]
[null,null," - Si votre projet comprend des événements publics, veuillez inscrire à l'onglet « B PROJ Budget » les coûts liés à rendre le contenu artistique accessible aux membres de l'auditoire qui sont sourds ou handicapés, sous la rubrique « Production » à partir de la ligne 30."]
[]
[null,null," - Veuillez inscrire les revenus au budget. Ceux-ci sont partagés entre deux colonnes : « Confirmé » et « En attente ». Le « Total » est automatiquement calculé.  Au besoin, ajoutez les explications de vos calculs."]
[]
[]
[null,"3. N’oubliez pas de sauvegarder à nouveau le document sur votre ordinateur."]
[null,"4. Retournez au portail et téléversez le document complet à votre demande."]
[]
[]
[null,"Si votre Profil de candidat approuvé dans le portail inclu l'auto-identification comme étant :"]
[null,null,"- un individu sourd, handicapé ou vivant avec une maladie mentale, ou"]
[null,null,"- un groupe ou organisme axé sur la pratique des artistes handicapés et sourds,"]
[null,null,"vous pouvez soumettre une demande distincte au Soutien à l'accès aux services, lequel se trouve dans la section Fonds stratégiques de vos programmes disponibles."]
[]
[null,"Si vous recevez un appui du Soutien à l’accès aux services pour ce projet, vous inscrirez, dans les colonnes de mise à jour et les coûts réels du budget, le montant qui vous a été accordé et les coûts couverts :"]
[]
[null,null," - Veuillez inscrire à la ligne 45 de l'onglet « B PROJ Budget » les coûts pour les services et mesures de soutien requis pour que les artistes et les professionnels des arts aient pu réaliser le projet. "]
[]
[null,null," - Veuillez inscrire à la ligne 117 le montant accordé du Soutien à l’accès des services."]
[]
[]
[null,"Si votre demande est retenue et que vous soumettez des mises à jour du projet, vous pourrez utiliser les colonnes « 1ère mise à jour, le cas échéant » et « 2e mise à jour, le cas échéant » pour fournir des budgets révisés. Vous pouvez également soumettre une mise à jour des Notes au budget."]
[]
[]
[null,"Lorsque votre projet sera terminé et que vous soumettrez un rapport final, vous utiliserez la colonne « Données réelles ». Vous pouvez également soumettre une mise à jour des Notes au budget."]
[]
[null,"Pour les mises à jour du projet et les rapports finaux, vous n'aurez pas à partager les revenus entre les colonnes « Confirmé » et « En attente ». "]

{"sheet":"B PROJ Budget","index":2,"n_rows":163,"n_cols":9,"rows_kept":163,"cut":false,"hidden":false,"merged":[[57,1,57,8],[68,1,68,8],[81,1,81,8],[1,1,1,8],[3,1,3,8],[5,1,5,3],[9,1,9,3],[19,1,19,8],[15,1,15,3],[16,1,16,3],[17,1,17,3],[20,1,20,3],[10,1,10,3],[11,1,11,3],[12,1,12,3],[13,1,13,3],[14,1,14,3],[26,1,26,3],[29,1,29,3],[30,1,30,3],[31,1,31,3],[21,1,21,3],[22,1,22,3],[23,1,23,3],[24,1,24,3],[25,1,25,3],[28,1,28,8],[43,1,43,3],[32,1,32,3],[33,1,33,3],[34,1,34,3],[35,1,35,3],[36,1,36,3],[37,1,37,3],[38,1,38,3],[39,1,39,3],[40,1,40,3],[41,1,41,3],[42,1,42,3],[44,1,44,3],[45,1,45,3],[46,1,46,3],[52,1,52,3],[53,1,53,3],[55,1,55,3],[47,1,47,3],[48,1,48,3],[49,1,49,3],[50,1,50,3],[51,1,51,3],[54,1,54,3],[58,1,58,3],[59,1,59,3],[60,1,60,3],[61,1,61,3],[62,1,62,3],[74,1,74,3],[63,1,63,3],[64,1,64,3],[65,1,65,3],[66,1,66,3],[69,1,69,3],[70,1,70,3],[71,1,71,3],[72,1,72,3],[73,1,73,3],[162,1,163,7],[82,8,83,8],[85,1,85,8],[103,1,103,8],[114,1,114,8],[136,1,136,8],[75,1,75,3],[76,1,76,3],[78,1,78,3],[82,2,82,4],[144,1,144,8]]}
[null,"v.201704"]
[null,"Appuyer la pratique artistique : Innovation et développement du secteur - Subvention de projets"]
[]
[null,"Salaires et honoraires versés dans le cadre des subventions de base du Conseil des arts du Canada ne sont pas des coûts admissibles."]
[]
[null,"Veuillez inscrire ci-dessous les dépenses relatives à votre projet\n",null,null,"Budget","1ère mise à jour, au besoin","2e mise à jour, au besoin","Données réelles ","Notes au budget (facultatif) "]
[null,null,null,null,"Date :","Date :","Date :","Date :"]
[]
[null,"Honoraires professionnels"]
[null,"Expert-conseil, responsable des ateliers, technicien, mentor, personnel chargé de la documentation et responsable de l’événement, par exemple"]
[null,"Frais du candidat ou subsistance. Pour des projets de 5 jours et plus, vous pouvez demander des fonds pour les frais de subsistance ou un cachet d’artiste pour vous-même jusqu’à 500 $ par personne, par semaine. Veuillez ajouter des détails dans les notes au budget."]
[null,"Redevances et droits d’auteur"]
[]
[]
[]
[]
[]
[null,"Sous-total - Honoraires professionnels ",null,null,{"$f":"SUM(E11:E17)","v":0},{"$f":"SUM(F11:F17)","v":0},{"$f":"SUM(G11:G17)","v":0},{"$f":"SUM(H11:H17)","v":0}]
[]
[null,"Frais de déplacement  (veuillez préciser dans les notes au budget)"]
[null,"Déplacement du personnel"]
[null,"Transport et expédition des marchandises ou bagages additionnels"]
[null,"Emballage et empaquetage"]
[null,"Indemnité journalière et hébergement, maximum de 150 $ par jour par personne"]
[null,"Autres frais de déplacement"]
[]
[null,"Sous-total - Frais de déplacement ",null,null,{"$f":"+SUM(E21:E24,E26)","v":0},{"$f":"+SUM(F21:F24,F26)","v":0},{"$f":"+SUM(G21:G24,G26)","v":0},{"$f":"+SUM(H21:H24,H26)","v":0}]
[]
[null,"Coûts du projet"]
[null,"Comprennent l’accessibilité du public, par ex. interprétation gestuelle, sous-titrage, description audio, etc."]
[null,"Location des lieux"]
[]
[]
[null,"Location d’équipement"]
[]
[]
[null,"Matériel et fournitures"]
[]
[]
[null,"Publications - numériques et imprimés"]
[]
[]
[null,"Autres coûts du projet"]
[null,"Conception Web, documentation, communication des constatations, exposition, programmation, reproduction, catalogage, étude et diffusion, par exemple"]
[null,"Coût d'accès: coûts reliés aux mesures de soutien et services pour artistes et professionnels des arts sourds ou handicapés impliqués dans le projet"]
[]
[]
[]
[]
[]
[]
[]
[]
[]
[]
[null,"Sous-total - Coûts du projet",null,null,{"$f":"SUM(E32:E33,E45:E55,E35:E36,E38:E39,E41:E42)","v":0},{"$f":"SUM(F32:F33,F45:F55,F35:F36,F38:F39,F41:F42)","v":0},{"$f":"SUM(G32:G33,G45:G55,G35:G36,G38:G39,G41:G42)","v":0},{"$f":"SUM(H32:H33,H45:H55,H35:H36,H38:H39,H41:H42)","v":0}]
[]
[null,"Promotion et marketing"]
[null,"Développement des publics, activités de rayonnement, matériel de communication,publicité et promotions, par exemple."]
[null,"Personnel chargé de la promotion et marketing"]
[]
[]
[null,"Coûts promotionnels"]
[]
[]
[]
[null,"Sous-total - Promotion et marketing",null,null,{"$f":"+SUM(E64:E66,E61:E62)","v":0},{"$f":"+SUM(F64:F66,F61:F62)","v":0},{"$f":"+SUM(G64:G66,G61:G62)","v":0},{"$f":"+SUM(H64:H66,H61:H62)","v":0}]
[]
[null,"Gestion du projet"]
[null,"Personnel chargé de l’administration"]
[]
[]
[null,"Coûts administratifs"]
[]
[]
[]
[null,"Sous-total - Gestion du projet",null,null,{"$f":"+SUM(E74:E76,E71:E72)","v":0},{"$f":"+SUM(F74:F76,F71:F72)","v":0},{"$f":"+SUM(G74:G76,G71:G72)","v":0},{"$f":"+SUM(H74:H76,H71:H72)","v":0}]
[]
[null,"Total des coûts du projet",null,null,{"$f":"+E18+E56+E67+E77+E27","v":0},{"$f":"+F18+F56+F67+F77+F27","v":0},{"$f":"+G18+G56+G67+G77+G27","v":0},{"$f":"+H18+H56+H67+H77+H27","v":0}]
[]
[]
[null,"Revenus du projet"]
[null,null,"Budget",null,null,"1ère mise à jour","2e mise à jour","Données réelles ","Notes au budget (facultatif)"]
[null,null,"Confirmé","En attente","Total","Total","Total","Total"]
[]
[null,"Revenus gagnés"]
[null,"Frais d’inscription, ventes de billets"]
[null,null,null,null,{"$f":"+C88+D88","v":0}]
[null,null,null,null,{"$f":"+C89+D89","v":0}]
[null,"Abonnements, droits d’adhésion"]
[null,null,null,null,{"$f":"+C91+D91","v":0}]
[null,null,null,null,{"$f":"+C92+D92","v":0}]
[null,"Frais de service"]
[null,null,null,null,{"$f":"+C94+D94","v":0}]
[null,null,null,null,{"$f":"+C95+D95","v":0}]
[null,"Vente de produits"]
[null,null,null,null,{"$f":"+C97+D97","v":0}]
[null,null,null,null,{"$f":"+C98+D98","v":0}]
[null,"Autres revenus gagnés"]
[null,null,null,null,{"$f":"+C100+D100","v":0}]
[null,null,null,null,{"$f":"+C101+D101","v":0}]
[null,"Sous-total - Revenus gagnés",{"$f":"+SUM(C100:C101,C88:C89,C94:C95,C91:C92,C97:C98)","v":0},0,0,0,0,0]
[]
[null,"Revenus du secteur privé"]
[null,"Commandites",null,null,{"$f":"+C105+D105","v":0}]
[null,"Dons",null,null,{"$f":"+C106+D106","v":0}]
[null,"Fondations",null,null,{"$f":"+C107+D107","v":0}]
[null,"Collectes de fonds",null,null,{"$f":"+C108+D108","v":0}]
[null,"Autres revenus du secteur privé"]
[null,null,null,null,{"$f":"+C110+D110","v":0}]
[null,null,null,null,{"$f":"+C111+D111","v":0}]
[null,null,null,null,{"$f":"+C112+D112","v":0}]
[null,"Sous-total - Revenus du secteur privé",{"$f":"+SUM(C110:C112,C105:C108)","v":0},0,0,0,0,0]
[]
[null,"Revenus du secteur public"]
[null,"Subvention pour cette demande (jusqu’à 100 000 $)",null,null,{"$f":"+C116+D116","v":0}]
[null,"Soutien à l'accès aux services (Veuillez soumettre une demande distincte au Soutien à l'accès aux services)"]
[null,"Autres subventions du Conseil des arts du Canada ",null,null,{"$f":"+C118+D118","v":0}]
[null,"Autre subvention fédérale"]
[null,null,null,null,{"$f":"+C120+D120","v":0}]
[null,null,null,null,{"$f":"+C121+D121","v":0}]
[null,null,null,null,{"$f":"+C122+D122","v":0}]
[null,"Subvention provinciale ou territoriale"]
[null,null,null,null,{"$f":"+C124+D124","v":0}]
[null,null,null,null,{"$f":"+C125+D125","v":0}]
[null,null,null,null,{"$f":"+C126+D126","v":0}]
[null,"Subvention municipale ou régionale"]
[null,null,null,null,{"$f":"+C128+D128","v":0}]
[null,null,null,null,{"$f":"+C129+D129","v":0}]
[null,null,null,null,{"$f":"+C130+D130","v":0}]
[null,"Autres revenus du secteur public"]
[null,null,null,null,{"$f":"+C132+D132","v":0}]
[null,null,null,null,{"$f":"+C133+D133","v":0}]
[null,null,null,null,{"$f":"+C134+D134","v":0}]
[null,"Sous-total - Revenus du secteur public",{"$f":"+SUM(C120:C122,C124:C126,C128:C130,C132:C134,C116:C118)","v":0},0,0,0,0,0]
[]
[null,"Services en nature"]
[null,null,null,null,{"$f":"+C138+D138","v":0}]
[null,null,null,null,{"$f":"+C139+D139","v":0}]
[null,null,null,null,{"$f":"+C140+D140","v":0}]
[null,null,null,null,{"$f":"+C141+D141","v":0}]
[null,null,null,null,{"$f":"+C142+D142","v":0}]
[null,"Sous-total – Services en nature",{"$f":"+SUM(C138:C142)","v":0},0,0,0,0,0]
[]
[null,"Autres revenus"]
[null,"Contribution du candidat",null,null,{"$f":"+C146+D146","v":0}]
[null,null,null,null,0]
[null,null,null,null,0]
[null,null,null,null,0]
[null,null,null,null,0]
[null,null,null,null,0]
[null,"Paiements différés"]
[null,null,null,null,{"$f":"+C153+D153","v":0}]
[null,null,null,null,{"$f":"+C154+D154","v":0}]
[null,null,null,null,{"$f":"+C155+D155","v":0}]
[null,"Sous-total des autres revenus",{"$f":"+SUM(C153:C155,C146:C151)","v":0},0,0,0,0,0]
[]
[null,"Total des revenus du projet doit être égal au Total des coûts du projet",{"$f":"C102+C113+C135+C156+C143","v":0},0,0,0,0,0]
[]
[null,"Total des coûts du projet",null,null,{"$f":"E79","v":0},{"$f":"F79","v":0},{"$f":"G79","v":0},{"$f":"H79","v":0}]
[null,"% du Total des coûts du projet que représente la subvention",null,null,{"$f":"IFERROR((E116/E160),\"\")","v":""},{"$f":"IFERROR((F116/F160),\"\")","v":""},{"$f":"IFERROR((G116/G160),\"\")","v":""},{"$f":"IFERROR((H116/H160),\"\")","v":""}]
[]
[null,"Les cachets d'artistes, droits d’auteur et redevances doivent être payables à tous les artistes canadiens. Ces montants doivent être acceptés par les artistes et le demandeur, et doivent être la même, ou supérieur, aux normes canadiennes actuelles."]

{"sheet":"C COMP Instructions","index":3,"n_rows":60,"n_cols":3,"rows_kept":60,"cut":false,"hidden":false,"merged":[[61,2,61,15],[1,1,1,15],[2,1,2,15],[3,1,3,15],[4,1,4,15],[15,1,16,15],[32,2,33,15],[30,2,31,15],[34,2,35,15],[28,2,29,15],[57,1,58,15],[59,1,60,15],[6,1,11,15],[48,2,49,15],[50,1,51,15],[52,2,53,15]]}
[null,"v.201704"]
[null,"Appuyer la pratique artistique : Innovation et développement du secteur - Subventions  composites (à l'exception des éditeurs) "]
[null,"Instructions pour remplir les document « Budget et Annexes »"]
[null,"Consultez l'onglet A pour les instructions de subventions de projets."]
[null,"Les éditeurs de livres ou de revues doivent consulter l'onglet I."]
[]
[null,"N'oubliez pas que le formulaire de budget est conçu pour être utilisé par des candidats de différents champs de pratique (disciplines) et pour un large éventail d'activités. Il n'est pas possible d'inclure des catégories de dépenses détaillées pour chaque type d'activité. Vous trouverez plutôt un certain nombre de lignes vides dans le formulaire que vous pouvez utiliser pour préciser les dépenses qui sont pertinentes à vos activitès. Choisissez une ligne vide dans la catégorie des coûts qui correspond le mieux à la dépense, inscrivez une brève description qui sera facilement comprise par un comité d'évaluation qui connaît bien votre (vos) forme(s) d’expression artistique, inscrivez le montant de la dépense et, au besoin, ajoutez une note budgétaire pour expliquer le montant."]
[]
[]
[]
[]
[]
[]
[]
[null,"Veuillez noter qu'au bas de la page se trouvent plusieurs onglets."]
[null,"Les candidats pour les subventions composites doivent consulter les onglets C, D et E. Si votre demande est retenue, vous vous servirez des onglets F, G et H pour vos rapports."]
[]
[]
[]
[]
[null,"À la suite de ces instructions, chaque onglet contient une feuille distincte que vous devez compléter."]
[null,"Lorsque vous cliquez sur « Sauvegarder », tous les onglets sont sauvegardés en même temps."]
[null,"Lorsque vous téléversez le document à votre formulaire de demande, tous les onglets y sont transférés ensemble. "]
[]
[]
[null,"1. Après avoir téléchargé le formulaire, sauvegardez-le sur votre ordinateur. Vous pouvez le sauvegarder sous un nom différent."]
[]
[null,"2. Complétez l'onglet « D COMP budget »."]
[null,null," - Si votre demande de subvention porte sur plus d'une année, veuillez partager vos coûts et revenus sur les 2 ou 3 années selon la durée de vos activités."]
[]
[null,null," - Inscrivez les coûts dans le budget. La case « Budget total pour tous les exercices » est calculée automatiquement. Au besoin, veuillez fournir les explications de vos calculs."]
[]
[null,null," - Si vos activités comprennent des événements publics, veuillez inscrire à l'onglet « B Budget » les coûts liés à rendre le contenu artistique accessible aux membres de l'auditoire qui sont sourds ou handicapés, sous la rubrique « Production » à partir de la ligne 41."]
[]
[null,null," - Inscrivez les revenus dans le budget. La case « Budget total pour tous les exercices » est calculée automatiquement. Au besoin, veuillez fournir les explications de vos calculs."]
[]
[]
[null,"3. Complétez l'onglet « E COMP Activités »."]
[null,null," - Veuillez inscrire les renseignements qui correspondent aux activités."]
[null,null," - À chaque ligne, veuillez inscrire les renseignements pertinents concernant l'activité."]
[]
[null,"4. N’oubliez pas de sauvegarder à nouveau le document sur votre ordinateur."]
[null,"5. Retournez au portail et téléversez le document complet à votre demande."]
[]
[]
[null,"Si votre Profil de candidat approuvé dans le portail inclu l'auto-identification comme étant :"]
[null,null,"- un individu sourd, handicapé ou vivant avec une maladie mentale, ou"]
[null,null,"- un groupe ou organisme axé sur la pratique des artistes handicapés et sourds,"]
[null,null,"vous pouvez soumettre une demande distincte au Soutien à l'accès aux services, lequel se trouve dans la section Fonds stratégiques de vos programmes disponibles."]
[]
[null,"Si vous recevez un appui du Soutien à l’accès aux services pour ces activités, vous inscrirez dans les onglets mise à jour de l’année, le montant qui vous a été accordé et les coûts couverts :"]
[]
[null,null," - Veuillez inscrire à la ligne 78 de l'onglet « F/G/H COMP Mise à jour » les coûts pour les services et mesures de soutien requis pour que les artistes et les professionnels des arts aient pu réaliser les activités."]
[]
[null,null," - Veuillez inscrire à la ligne 181 le montant accordé du Soutien à l’accès des services."]
[]
[]
[null,"Si votre demande est retenue, vous fournirez des budgets révisés et des montants réels en joignant les onglets « Mises à jour  - Année »  à vos mises à jour de la subvention et votre rapport final."]
[]
[null,"Vous pouvez également soumettre une mise à jour de vos Notes au budget. Au besoin, vous pouvez inscrire vos nouvelles données en remplacement de celles déjà fournies dans les annexes."]

{"sheet":"D COMP Budget","index":4,"n_rows":242,"n_cols":7,"rows_kept":242,"cut":false,"hidden":false,"merged":[[1,1,1,6],[9,1,9,6],[39,1,39,6],[132,1,132,6],[170,2,170,6],[96,2,96,6],[97,2,97,6],[111,1,111,6],[129,1,129,6],[157,2,157,6],[133,2,133,6],[241,1,242,5],[4,1,7,1],[165,1,165,6],[178,1,178,6],[213,1,213,6],[221,1,221,6],[193,2,193,6],[199,2,199,6],[205,2,205,6],[187,2,187,6],[227,2,227,6],[24,1,24,6],[181,2,181,6],[139,2,139,6],[145,2,145,6],[151,2,151,6]]}
[null,"v.201704"]
[null,"Appuyer la pratique artistique : Innovation et développement du secteur - Subventions  composites"]
[]
[null,null,"Budget, 1er exercice","Budget, 2e exercice\n (s’il y a lieu)","Budget, 3e exercice\n (s’il y a lieu)","Budget total pour tous les exercices","Notes au budget (facultatif) "]
[null,"Veuillez inscrire ci-dessous les dépenses relatives à votre projet  ","de","de","de"]
[null,null,"Date :","Date :","Date :"]
[null,null,"à","à","à"]
[null,null,"Date :","Date :","Date :"]
[]
[null,"Honoraires professionnels"]
[null,"Expert-conseil, responsable des ateliers, technicien, mentor, personnel chargé de la documentation et responsable de l’événement, par exemple"]
[null,"Redevances et droits d’auteur",null,null,null,{"$f":"C12+D12+E12","v":0}]
[null,null,null,null,null,0]
[null,null,null,null,null,0]
[null,null,null,null,null,0]
[null,null,null,null,null,0]
[null,null,null,null,null,0]
[null,null,null,null,null,0]
[null,null,null,null,null,0]
[null,null,null,null,null,0]
[null,null,null,null,null,0]
[null,null,null,null,null,0]
[null,"Sous-total - Honoraires professionnels ",{"$f":"SUM(C12:C22)","v":0},{"$f":"SUM(D12:D22)","v":0},{"$f":"SUM(E12:E22)","v":0},{"$f":"SUM(F12:F22)","v":0}]
[]
[null,"Frais de déplacement "]
[null,"Par ex., frais de déplacement; transport et expédition des marchandises ou bagages additionnels; emballage et empaquetage; Indemnité journalière et hébergement, maximum de 150 $ par jour."]
[null,null,null,null,null,{"$f":"C27+D27+E27","v":0}]
[null,null,null,null,null,0]
[null,null,null,null,null,0]
[null,null,null,null,null,0]
[null,null,null,null,null,0]
[null,null,null,null,null,0]
[null,null,null,null,null,0]
[null,null,null,null,null,0]
[null,null,null,null,null,0]
[null,null,null,null,null,0]
[null,null,null,null,null,0]
[null,"Sous-total - Frais de déplacement ",{"$f":"SUM(C27:C37)","v":0},{"$f":"SUM(D27:D37)","v":0},{"$f":"SUM(E27:E37)","v":0},{"$f":"SUM(F27:F37)","v":0}]
[]
[null,"Coûts des activités"]
[null,"Comprennent l’accessibilité du public, par ex. interprétation gestuelle, sous-titrage, description audio, etc."]
[null,"Location des lieux"]
[null,null,null,null,null,{"$f":"C43+D43+E43","v":0}]
[null,null,null,null,null,{"$f":"C44+D44+E44","v":0}]
[null,null,null,null,null,{"$f":"C45+D45+E45","v":0}]
[null,null,null,null,null,{"$f":"C46+D46+E46","v":0}]
[null,null,null,null,null,{"$f":"C47+D47+E47","v":0}]
[null,"Location d’équipement"]
[null,null,null,null,null,{"$f":"C49+D49+E49","v":0}]
[null,null,null,null,null,{"$f":"C50+D50+E50","v":0}]
[null,null,null,null,null,{"$f":"C51+D51+E51","v":0}]
[null,null,null,null,null,{"$f":"C52+D52+E52","v":0}]
[null,null,null,null,null,{"$f":"C53+D53+E53","v":0}]
[null,"Matériel et fournitures"]
[null,null,null,null,null,{"$f":"C55+D55+E55","v":0}]
[null,null,null,null,null,0]
[null,null,null,null,null,0]
[null,null,null,null,null,0]
[null,null,null,null,null,0]
[null,null,null,null,null,0]
[null,null,null,null,null,0]
[null,null,null,null,null,0]
[null,null,null,null,null,0]
[null,null,null,null,null,0]
[null,"Publications - numériques et imprimés"]
[null,null,null,null,null,{"$f":"C66+D66+E66","v":0}]
[null,null,null,null,null,0]
[null,null,null,null,null,0]
[null,null,null,null,null,0]
[null,null,null,null,null,0]
[null,null,null,null,null,0]
[null,null,null,null,null,0]
[null,null,null,null,null,0]
[null,null,null,null,null,0]
[null,null,null,null,null,0]
[null,"Autres coûts"]
[null,"Conception Web, documentation, communication des constatations, exposition, programmation, reproduction, catalogage, étude et diffusion, par exemple"]
[null,"Coût d'accès: coûts reliés aux mesures de soutien et services pour artistes et professionnels des arts sourds ou handicapés impliqués dans les activités"]
[null,null,null,null,null,{"$f":"C79+D79+E79","v":0}]
[null,null,null,null,null,0]
[null,null,null,null,null,0]
[null,null,null,null,null,0]
[null,null,null,null,null,0]
[null,null,null,null,null,0]
[null,null,null,null,null,0]
[null,null,null,null,null,0]
[null,null,null,null,null,0]
[null,null,null,null,null,0]
[null,null,null,null,null,0]
[null,null,null,null,null,0]
[null,null,null,null,null,0]
[null,null,null,null,null,0]
[null,null,null,null,null,0]
[null,"Sous-total - Coûts des activités",{"$f":"+SUM(C43:C47,C49:C53,C55:C64,C66:C75,C78:C93)","v":0},{"$f":"+SUM(D43:D47,D49:D53,D55:D64,D66:D75,D78:D93)","v":0},{"$f":"+SUM(E43:E47,E49:E53,E55:E64,E66:E75,E78:E93)","v":0},{"$f":"+SUM(F43:F47,F49:F53,F55:F64,F66:F75,F78:F93)","v":0}]
[]
[null,"Promotion et marketing"]
[null,"Développement des publics, activités de rayonnement, matériel de communication,publicité et promotions, par exemple."]
[null,"Personnel chargé de la promotion et marketing"]
[null,null,null,null,null,{"$f":"C99+D99+E99","v":0}]
[null,null,null,null,null,{"$f":"C100+D100+E100","v":0}]
[null,null,null,null,null,{"$f":"C101+D101+E101","v":0}]
[null,null,null,null,null,{"$f":"C102+D102+E102","v":0}]
[null,null,null,null,null,{"$f":"C103+D103+E103","v":0}]
[null,"Coûts promotionnels"]
[null,null,null,null,null,{"$f":"C105+D105+E105","v":0}]
[null,null,null,null,null,{"$f":"C106+D106+E106","v":0}]
[null,null,null,null,null,{"$f":"C107+D107+E107","v":0}]
[null,null,null,null,null,{"$f":"C108+D108+E108","v":0}]
[null,null,null,null,null,{"$f":"C109+D109+E109","v":0}]
[null,"Sous-total - Promotion et marketing",{"$f":"+SUM(C105:C109,C99:C103)","v":0},{"$f":"+SUM(D105:D109,D99:D103)","v":0},{"$f":"+SUM(E105:E109,E99:E103)","v":0},{"$f":"+SUM(F105:F109,F99:F103)","v":0}]
[]
[null,"Coûts de gestion"]
[null,"Personnel chargé de l’administration"]
[null,null,null,null,null,{"$f":"C114+D114+E114","v":0}]
[null,null,null,null,null,{"$f":"C115+D115+E115","v":0}]
[null,null,null,null,null,{"$f":"C116+D116+E116","v":0}]
[null,null,null,null,null,{"$f":"C117+D117+E117","v":0}]
[null,null,null,null,null,{"$f":"C118+D118+E118","v":0}]
[null,"Coûts administratifs"]
[null,null,null,null,null,{"$f":"C120+D120+E120","v":0}]
[null,null,null,null,null,{"$f":"C121+D121+E121","v":0}]
[null,null,null,null,null,{"$f":"C122+D122+E122","v":0}]
[null,null,null,null,null,{"$f":"C123+D123+E123","v":0}]
[null,null,null,null,null,{"$f":"C124+D124+E124","v":0}]
[null,"Sous-total - Coûts de gestion",{"$f":"+SUM(C120:C124,C114:C118)","v":0},{"$f":"+SUM(D120:D124,D114:D118)","v":0},{"$f":"+SUM(E120:E124,E114:E118)","v":0},{"$f":"+SUM(F120:F124,F114:F118)","v":0}]
[]
[null,"Total des coûts",{"$f":"+C23+C94+C110+C125+C38","v":0},{"$f":"+D23+D94+D110+D125+D38","v":0},{"$f":"+E23+E94+E110+E125+E38","v":0},{"$f":"+F23+F94+F110+F125+F38","v":0}]
[]
[]
[null,"Revenus"]
[]
[null,null,"Budget, 1er exercice","Budget, 2e exercice","Budget, 3e exercice","Budget total pour tous les exercices","Notes au budget (facultatif) "]
[null,"Revenus gagnés"]
[null,"Frais d’inscription, ventes de billets"]
[null,null,null,null,null,{"$f":"C135+D135+E135","v":0}]
[null,null,null,null,null,{"$f":"C136+D136+E136","v":0}]
[null,null,null,null,null,{"$f":"C137+D137+E137","v":0}]
[null,null,null,null,null,{"$f":"C138+D138+E138","v":0}]
[null,null,null,null,null,{"$f":"C139+D139+E139","v":0}]
[null,"Abonnements, droits d’adhésion"]
[null,null,null,null,null,{"$f":"C141+D141+E141","v":0}]
[null,null,null,null,null,{"$f":"C142+D142+E142","v":0}]
[null,null,null,null,null,{"$f":"C143+D143+E143","v":0}]
[null,null,null,null,null,{"$f":"C144+D144+E144","v":0}]
[null,null,null,null,null,{"$f":"C145+D145+E145","v":0}]
[null,"Frais de service"]
[null,null,null,null,null,{"$f":"C147+D147+E147","v":0}]
[null,null,null,null,null,{"$f":"C148+D148+E148","v":0}]
[null,null,null,null,null,{"$f":"C149+D149+E149","v":0}]
[null,null,null,null,null,{"$f":"C150+D150+E150","v":0}]
[null,null,null,null,null,{"$f":"C151+D151+E151","v":0}]
[null,"Vente de produits"]
[null,null,null,null,null,{"$f":"C153+D153+E153","v":0}]
[null,null,null,null,null,{"$f":"C154+D154+E154","v":0}]
[null,null,null,null,null,{"$f":"C155+D155+E155","v":0}]
[null,null,null,null,null,{"$f":"C156+D156+E156","v":0}]
[null,null,null,null,null,{"$f":"C157+D157+E157","v":0}]
[null,"Autres revenus gagnés"]
[null,null,null,null,null,{"$f":"C159+D159+E159","v":0}]
[null,null,null,null,null,{"$f":"C160+D160+E160","v":0}]
[null,null,null,null,null,{"$f":"C161+D161+E161","v":0}]
[null,null,null,null,null,{"$f":"C162+D162+E162","v":0}]
[null,null,null,null,null,{"$f":"C163+D163+E163","v":0}]
[null,"Sous-total - Revenus gagnés",{"$f":"+SUM(C159:C163,C135:C139,C147:C151,C141:C145,C153:C157)","v":0},{"$f":"+SUM(D159:D163,D135:D139,D147:D151,D141:D145,D153:D157)","v":0},{"$f":"+SUM(E159:E163,E135:E139,E147:E151,E141:E145,E153:E157)","v":0},{"$f":"+SUM(F159:F163,F135:F139,F147:F151,F141:F145,F153:F157)","v":0}]
[]
[null,"Revenus du secteur privé"]
[null,"Commandites",null,null,null,{"$f":"C167+D167+E167","v":0}]
[null,"Dons",null,null,null,{"$f":"C168+D168+E168","v":0}]
[null,"Fondations",null,null,null,{"$f":"C169+D169+E169","v":0}]
[null,"Collectes de fonds",null,null,null,{"$f":"C170+D170+E170","v":0}]
[null,"Autre revenus du secteur privé"]
[null,null,null,null,null,{"$f":"C172+D172+E172","v":0}]
[null,null,null,null,null,{"$f":"C173+D173+E173","v":0}]
[null,null,null,null,null,{"$f":"C174+D174+E174","v":0}]
[null,null,null,null,null,{"$f":"C175+D175+E175","v":0}]
[null,null,null,null,null,{"$f":"C176+D176+E176","v":0}]
[null,"Sous-total - Revenus du secteur privé",{"$f":"+SUM(C172:C176,C167:C170)","v":0},{"$f":"+SUM(D172:D176,D167:D170)","v":0},{"$f":"+SUM(E172:E176,E167:E170)","v":0},{"$f":"+SUM(F172:F176,F167:F170)","v":0}]
[]
[null,"Revenus du secteur public"]
[null,"Subvention pour cette demande, jusqu’à 100 000 $ par année, jusqu’à 3 ans",null,null,null,{"$f":"C180+D180+E180","v":0}]
[null,"Soutien à l'accès aux services (Veuillez soumettre une demande distincte au Soutien à l'accès aux services)"]
[null,"Autres subventions du Conseil des arts du Canada "]
[null,null,null,null,null,{"$f":"C183+D183+E183","v":0}]
[null,null,null,null,null,{"$f":"C184+D184+E184","v":0}]
[null,null,null,null,null,{"$f":"C185+D185+E185","v":0}]
[null,null,null,null,null,{"$f":"C186+D186+E186","v":0}]
[null,null,null,null,null,{"$f":"C187+D187+E187","v":0}]
[null,"Autre subvention fédérale"]
[null,null,null,null,null,{"$f":"C189+D189+E189","v":0}]
[null,null,null,null,null,{"$f":"C190+D190+E190","v":0}]
[null,null,null,null,null,{"$f":"C191+D191+E191","v":0}]
[null,null,null,null,null,{"$f":"C192+D192+E192","v":0}]
[null,null,null,null,null,{"$f":"C193+D193+E193","v":0}]
[null,"Subvention provinciale ou territoriale"]
[null,null,null,null,null,{"$f":"C195+D195+E195","v":0}]
[null,null,null,null,null,{"$f":"C196+D196+E196","v":0}]
[null,null,null,null,null,{"$f":"C197+D197+E197","v":0}]
[null,null,null,null,null,{"$f":"C198+D198+E198","v":0}]
[null,null,null,null,null,{"$f":"C199+D199+E199","v":0}]
[null,"Subvention municipale ou régionale"]
[null,null,null,null,null,{"$f":"C201+D201+E201","v":0}]
[null,null,null,null,null,{"$f":"C202+D202+E202","v":0}]
[null,null,null,null,null,{"$f":"C203+D203+E203","v":0}]
[null,null,null,null,null,{"$f":"C204+D204+E204","v":0}]
[null,null,null,null,null,{"$f":"C205+D205+E205","v":0}]
[null,"Autre revenus du secteur public"]
[null,null,null,null,null,{"$f":"C207+D207+E207","v":0}]
[null,null,null,null,null,{"$f":"C208+D208+E208","v":0}]
[null,null,null,null,null,{"$f":"C209+D209+E209","v":0}]
[null,null,null,null,null,{"$f":"C210+D210+E210","v":0}]
[null,null,null,null,null,{"$f":"C211+D211+E211","v":0}]
[null,"Sous-total - Revenus du secteur public",{"$f":"+SUM(C189:C193,C195:C199,C201:C205,C207:C211,C180:C181,C183:C187)","v":0},{"$f":"+SUM(D189:D193,D195:D199,D201:D205,D207:D211,D180:D181,D183:D187)","v":0},{"$f":"+SUM(E189:E193,E195:E199,E201:E205,E207:E211,E180:E181,E183:E187)","v":0},{"$f":"+SUM(F189:F193,F195:F199,F201:F205,F207:F211,F180:F181,F183:F187)","v":0}]
[]
[null,"Services en nature"]
[null,null,null,null,null,{"$f":"C215+D215+E215","v":0}]
[null,null,null,null,null,{"$f":"C216+D216+E216","v":0}]
[null,null,null,null,null,{"$f":"C217+D217+E217","v":0}]
[null,null,null,null,null,{"$f":"C218+D218+E218","v":0}]
[null,null,null,null,null,{"$f":"C219+D219+E219","v":0}]
[null,"Sous-total – Services en nature",{"$f":"+SUM(C215:C219)","v":0},{"$f":"+SUM(D215:D219)","v":0},{"$f":"+SUM(E215:E219)","v":0},{"$f":"+SUM(F215:F219)","v":0}]
[]
[null,"Autres revenus"]
[null,null,null,null,null,{"$f":"C223+D223+E223","v":0}]
[null,null,null,null,null,{"$f":"C224+D224+E224","v":0}]
[null,null,null,null,null,{"$f":"C225+D225+E225","v":0}]
[null,null,null,null,null,{"$f":"C226+D226+E226","v":0}]
[null,null,null,null,null,{"$f":"C227+D227+E227","v":0}]
[null,"Paiements différés"]
[null,null,null,null,null,{"$f":"C229+D229+E229","v":0}]
[null,null,null,null,null,{"$f":"C230+D230+E230","v":0}]
[null,null,null,null,null,{"$f":"C231+D231+E231","v":0}]
[null,"Sous-total - Autres revenus",{"$f":"+SUM(C229:C231,C223:C227)","v":0},{"$f":"+SUM(D229:D231,D223:D227)","v":0},{"$f":"+SUM(E229:E231,E223:E227)","v":0},{"$f":"+SUM(F229:F231,F223:F227)","v":0}]
[]
[null,"Total des revenus",{"$f":"C164+C177+C212+C232+C220","v":0},{"$f":"D164+D177+D212+D232+D220","v":0},{"$f":"E164+E177+E212+E232+E220","v":0},{"$f":"F164+F177+F212+F232+F220","v":0}]
[]
[null,"Total des coûts",{"$f":"C127","v":0},{"$f":"D127","v":0},{"$f":"E127","v":0},{"$f":"F127","v":0}]
[]
[null,"Excédent (Déficit)",{"$f":"C234-C236","v":0},{"$f":"D234-D236","v":0},{"$f":"E234-E236","v":0},{"$f":"F234-F236","v":0}]
[]
[null,"% du Total des coûts que représente la subvention",{"$f":"IFERROR((C180/C236),\"\")","v":""},{"$f":"IFERROR((D180/D236),\"\")","v":""},{"$f":"IFERROR((E180/E236),\"\")","v":""},{"$f":"IFERROR((F180/F236),\"\")","v":""}]
[]
[null,"Les cachets d'artistes, droits d’auteur et redevances doivent être payables à tous les artistes canadiens. Ces montants doivent être acceptés par les artistes et le demandeur, et doivent être la même, ou supérieur, aux normes canadiennes actuelles."]

{"sheet":"E COMP Activités","index":5,"n_rows":50,"n_cols":9,"rows_kept":50,"cut":false,"hidden":false,"merged":[[3,2,3,8],[5,2,5,8],[6,2,6,8],[7,2,7,8],[1,2,1,8]]}
[null,null,"v.201704"]
[null,null,"Appuyer la pratique artistique : Innovation et développement du secteur - Subventions  composites"]
[]
[null,null,"Services, activités de soutien, événements publics et programmation connexe"]
[]
[null,null,"Fournissez une liste représentative de vos services, activités de soutien, événements publics et de votre programmation connexe que vous avez livrés lors des 2 dernières années et de l'année en cours. Fournissez des détails concernant vos plans futurs, autant que vous les connaissez. La première année devrait être solide. Cependant, il est possible que, plus les années visées sont lointaines, moins vous aurez de détails à offrir."]
[null,null,"Exemples d'activités à inclure : projection/visionnement d'œuvres, présentation, lecture, représentation d'artistes lors d'événements, résidence, vitrine, recherche, atelier pour artistes professionnels, etc."]
[null,null,"Au besoin, regroupez les programmes ou activités similaires. "]
[]
[null,null,"Mois/année ou Période de temps","Nom de l'événement\n(le cas échéant)","Type d'activité","Contributeur clé ou Responsable de l'activité","Autres collaborateurs clés","Principaux bénéficiaires","Détails/Commentaires"]
[null,1]
[null,2]
[null,3]
[null,4]
[null,5]
[null,6]
[null,7]
[null,8]
[null,9]
[null,10]
[null,11]
[null,12]
[null,13]
[null,14]
[null,15]
[null,16]
[null,17]
[null,18]
[null,19]
[null,20]
[null,21]
[null,22]
[null,23]
[null,24]
[null,25]
[null,26]
[null,27]
[null,28]
[null,29]
[null,30]
[null,31]
[null,32]
[null,33]
[null,34]
[null,35]
[null,36]
[null,37]
[null,38]
[null,39]
[null,40]

{"sheet":"F COMP Mise à jour Année 1","index":6,"n_rows":242,"n_cols":7,"rows_kept":242,"cut":false,"hidden":false,"merged":[[1,1,1,6],[9,1,9,6],[24,1,24,6],[39,1,39,6],[96,2,96,6],[4,1,7,1],[241,1,242,5],[132,1,132,6],[165,1,165,6],[178,1,178,6],[213,1,213,6],[221,1,221,6],[227,2,227,6],[133,2,133,6],[139,2,139,6],[199,2,199,6],[205,2,205,6],[129,1,129,6],[97,2,97,6],[111,1,111,6],[193,2,193,6],[145,2,145,6],[151,2,151,6],[157,2,157,6],[170,2,170,6],[181,2,181,6],[187,2,187,6]]}
[null,"v.201704"]
[null,"Appuyer la pratique artistique : Innovation et développement du secteur - Subventions  composites (Mise à jour Année 1)"]
[]
[null,"Veuillez inscrire ci-dessous les dépenses relatives à votre projet  ","Budget, 1er exercice","1re mise à jour, 1er exercice, \nau besoin","2e mise à jour, 1er exercise, \nau besoin","Données réelles, 1er exercice ","Notes au budget (facultatif) "]
[null,"Vos données dans les lignes ci-dessous sont transmises à partir de votre budget précédent. Vous pouvez les modifier si nécessaire.","de","de","de","de"]
[null,null,{"$f":"+'D COMP Budget'!C6","v":"Date :"},"Date :","Date :","Date :"]
[null,null,"à","à","à","à"]
[null,null,{"$f":"+'D COMP Budget'!C8","v":"Date :"},"Date :","Date :","Date :"]
[]
[null,"Honoraires professionnels"]
[null,{"$f":"IF(ISBLANK('D COMP Budget'!B11),\"\",'D COMP Budget'!B11)","v":"Expert-conseil, responsable des ateliers, technicien, mentor, personnel chargé de la documentation et responsable de l’événement, par exemple"}]
[null,{"$f":"IF(ISBLANK('D COMP Budget'!B12),\"\",'D COMP Budget'!B12)","v":"Redevances et droits d’auteur"}]
[null,{"$f":"IF(ISBLANK('D COMP Budget'!B13),\"\",'D COMP Budget'!B13)","v":""}]
[null,{"$f":"IF(ISBLANK('D COMP Budget'!B14),\"\",'D COMP Budget'!B14)","v":""}]
[null,{"$f":"IF(ISBLANK('D COMP Budget'!B15),\"\",'D COMP Budget'!B15)","v":""}]
[null,{"$f":"IF(ISBLANK('D COMP Budget'!B16),\"\",'D COMP Budget'!B16)","v":""}]
[null,{"$f":"IF(ISBLANK('D COMP Budget'!B17),\"\",'D COMP Budget'!B17)","v":""}]
[null,{"$f":"IF(ISBLANK('D COMP Budget'!B18),\"\",'D COMP Budget'!B18)","v":""}]
[null,{"$f":"IF(ISBLANK('D COMP Budget'!B19),\"\",'D COMP Budget'!B19)","v":""}]
[null,{"$f":"IF(ISBLANK('D COMP Budget'!B20),\"\",'D COMP Budget'!B20)","v":""}]
[null,{"$f":"IF(ISBLANK('D COMP Budget'!B21),\"\",'D COMP Budget'!B21)","v":""}]
[null,{"$f":"IF(ISBLANK('D COMP Budget'!B22),\"\",'D COMP Budget'!B22)","v":""}]
[null,{"$f":"IF(ISBLANK('D COMP Budget'!B23),\"\",'D COMP Budget'!B23)","v":"Sous-total - Honoraires professionnels "},{"$f":"'D COMP Budget'!C23","v":0},{"$f":"SUM(D12:D22)","v":0},{"$f":"SUM(E12:E22)","v":0},{"$f":"SUM(F12:F22)","v":0}]
[]
[null,"Frais de déplacement "]
[null,{"$f":"IF(ISBLANK('D COMP Budget'!B26),\"\",'D COMP Budget'!B26)","v":"Par ex., frais de déplacement; transport et expédition des marchandises ou bagages additionnels; emballage et empaquetage; Indemnité journalière et hébergement, maximum de 150 $ par jour."}]
[null,{"$f":"IF(ISBLANK('D COMP Budget'!B27),\"\",'D COMP Budget'!B27)","v":""}]
[null,{"$f":"IF(ISBLANK('D COMP Budget'!B28),\"\",'D COMP Budget'!B28)","v":""}]
[null,{"$f":"IF(ISBLANK('D COMP Budget'!B29),\"\",'D COMP Budget'!B29)","v":""}]
[null,{"$f":"IF(ISBLANK('D COMP Budget'!B30),\"\",'D COMP Budget'!B30)","v":""}]
[null,{"$f":"IF(ISBLANK('D COMP Budget'!B31),\"\",'D COMP Budget'!B31)","v":""}]
[null,{"$f":"IF(ISBLANK('D COMP Budget'!B32),\"\",'D COMP Budget'!B32)","v":""}]
[null,{"$f":"IF(ISBLANK('D COMP Budget'!B33),\"\",'D COMP Budget'!B33)","v":""}]
[null,{"$f":"IF(ISBLANK('D COMP Budget'!B34),\"\",'D COMP Budget'!B34)","v":""}]
[null,{"$f":"IF(ISBLANK('D COMP Budget'!B35),\"\",'D COMP Budget'!B35)","v":""}]
[null,{"$f":"IF(ISBLANK('D COMP Budget'!B36),\"\",'D COMP Budget'!B36)","v":""}]
[null,{"$f":"IF(ISBLANK('D COMP Budget'!B37),\"\",'D COMP Budget'!B37)","v":""}]
[null,{"$f":"IF(ISBLANK('D COMP Budget'!B38),\"\",'D COMP Budget'!B38)","v":"Sous-total - Frais de déplacement "},{"$f":"'D COMP Budget'!C38","v":0},{"$f":"SUM(D27:D37)","v":0},{"$f":"SUM(E27:E37)","v":0},{"$f":"SUM(F27:F37)","v":0}]
[]
[null,"Coûts des activités"]
[null,{"$f":"IF(ISBLANK('D COMP Budget'!B41),\"\",'D COMP Budget'!B41)","v":"Comprennent l’accessibilité du public, par ex. interprétation gestuelle, sous-titrage, description audio, etc."}]
[null,{"$f":"IF(ISBLANK('D COMP Budget'!B42),\"\",'D COMP Budget'!B42)","v":"Location des lieux"}]
[null,{"$f":"IF(ISBLANK('D COMP Budget'!B43),\"\",'D COMP Budget'!B43)","v":""}]
[null,{"$f":"IF(ISBLANK('D COMP Budget'!B44),\"\",'D COMP Budget'!B44)","v":""}]
[null,{"$f":"IF(ISBLANK('D COMP Budget'!B45),\"\",'D COMP Budget'!B45)","v":""}]
[null,{"$f":"IF(ISBLANK('D COMP Budget'!B46),\"\",'D COMP Budget'!B46)","v":""}]
[null,{"$f":"IF(ISBLANK('D COMP Budget'!B47),\"\",'D COMP Budget'!B47)","v":""}]
[null,{"$f":"IF(ISBLANK('D COMP Budget'!B48),\"\",'D COMP Budget'!B48)","v":"Location d’équipement"}]
[null,{"$f":"IF(ISBLANK('D COMP Budget'!B49),\"\",'D COMP Budget'!B49)","v":""}]
[null,{"$f":"IF(ISBLANK('D COMP Budget'!B50),\"\",'D COMP Budget'!B50)","v":""}]
[null,{"$f":"IF(ISBLANK('D COMP Budget'!B51),\"\",'D COMP Budget'!B51)","v":""}]
[null,{"$f":"IF(ISBLANK('D COMP Budget'!B52),\"\",'D COMP Budget'!B52)","v":""}]
[null,{"$f":"IF(ISBLANK('D COMP Budget'!B53),\"\",'D COMP Budget'!B53)","v":""}]
[null,{"$f":"IF(ISBLANK('D COMP Budget'!B54),\"\",'D COMP Budget'!B54)","v":"Matériel et fournitures"}]
[null,{"$f":"IF(ISBLANK('D COMP Budget'!B55),\"\",'D COMP Budget'!B55)","v":""}]
[null,{"$f":"IF(ISBLANK('D COMP Budget'!B56),\"\",'D COMP Budget'!B56)","v":""}]
[null,{"$f":"IF(ISBLANK('D COMP Budget'!B57),\"\",'D COMP Budget'!B57)","v":""}]
[null,{"$f":"IF(ISBLANK('D COMP Budget'!B58),\"\",'D COMP Budget'!B58)","v":""}]
[null,{"$f":"IF(ISBLANK('D COMP Budget'!B59),\"\",'D COMP Budget'!B59)","v":""}]
[null,{"$f":"IF(ISBLANK('D COMP Budget'!B60),\"\",'D COMP Budget'!B60)","v":""}]
[null,{"$f":"IF(ISBLANK('D COMP Budget'!B61),\"\",'D COMP Budget'!B61)","v":""}]
[null,{"$f":"IF(ISBLANK('D COMP Budget'!B62),\"\",'D COMP Budget'!B62)","v":""}]
[null,{"$f":"IF(ISBLANK('D COMP Budget'!B63),\"\",'D COMP Budget'!B63)","v":""}]
[null,{"$f":"IF(ISBLANK('D COMP Budget'!B64),\"\",'D COMP Budget'!B64)","v":""}]
[null,{"$f":"IF(ISBLANK('D COMP Budget'!B65),\"\",'D COMP Budget'!B65)","v":"Publications - numériques et imprimés"}]
[null,{"$f":"IF(ISBLANK('D COMP Budget'!B66),\"\",'D COMP Budget'!B66)","v":""}]
[null,{"$f":"IF(ISBLANK('D COMP Budget'!B67),\"\",'D COMP Budget'!B67)","v":""}]
[null,{"$f":"IF(ISBLANK('D COMP Budget'!B68),\"\",'D COMP Budget'!B68)","v":""}]
[null,{"$f":"IF(ISBLANK('D COMP Budget'!B69),\"\",'D COMP Budget'!B69)","v":""}]
[null,{"$f":"IF(ISBLANK('D COMP Budget'!B70),\"\",'D COMP Budget'!B70)","v":""}]
[null,{"$f":"IF(ISBLANK('D COMP Budget'!B71),\"\",'D COMP Budget'!B71)","v":""}]
[null,{"$f":"IF(ISBLANK('D COMP Budget'!B72),\"\",'D COMP Budget'!B72)","v":""}]
[null,{"$f":"IF(ISBLANK('D COMP Budget'!B73),\"\",'D COMP Budget'!B73)","v":""}]
[null,{"$f":"IF(ISBLANK('D COMP Budget'!B74),\"\",'D COMP Budget'!B74)","v":""}]
[null,{"$f":"IF(ISBLANK('D COMP Budget'!B75),\"\",'D COMP Budget'!B75)","v":""}]
[null,{"$f":"IF(ISBLANK('D COMP Budget'!B76),\"\",'D COMP Budget'!B76)","v":"Autres coûts"}]
[null,{"$f":"IF(ISBLANK('D COMP Budget'!B77),\"\",'D COMP Budget'!B77)","v":"Conception Web, documentation, communication des constatations, exposition, programmation, reproduction, catalogage, étude et diffusion, par exemple"}]
[null,"Coût d'accès: coûts reliés aux mesures de soutien et services pour artistes et professionnels des arts sourds ou handicapés impliqués dans les activités"]
[null,{"$f":"IF(ISBLANK('D COMP Budget'!B79),\"\",'D COMP Budget'!B79)","v":""}]
[null,{"$f":"IF(ISBLANK('D COMP Budget'!B80),\"\",'D COMP Budget'!B80)","v":""}]
[null,{"$f":"IF(ISBLANK('D COMP Budget'!B81),\"\",'D COMP Budget'!B81)","v":""}]
[null,{"$f":"IF(ISBLANK('D COMP Budget'!B82),\"\",'D COMP Budget'!B82)","v":""}]
[null,{"$f":"IF(ISBLANK('D COMP Budget'!B83),\"\",'D COMP Budget'!B83)","v":""}]
[null,{"$f":"IF(ISBLANK('D COMP Budget'!B84),\"\",'D COMP Budget'!B84)","v":""}]
[null,{"$f":"IF(ISBLANK('D COMP Budget'!B85),\"\",'D COMP Budget'!B85)","v":""}]
[null,{"$f":"IF(ISBLANK('D COMP Budget'!B86),\"\",'D COMP Budget'!B86)","v":""}]
[null,{"$f":"IF(ISBLANK('D COMP Budget'!B87),\"\",'D COMP Budget'!B87)","v":""}]
[null,{"$f":"IF(ISBLANK('D COMP Budget'!B88),\"\",'D COMP Budget'!B88)","v":""}]
[null,{"$f":"IF(ISBLANK('D COMP Budget'!B89),\"\",'D COMP Budget'!B89)","v":""}]
[null,{"$f":"IF(ISBLANK('D COMP Budget'!B90),\"\",'D COMP Budget'!B90)","v":""}]
[null,{"$f":"IF(ISBLANK('D COMP Budget'!B91),\"\",'D COMP Budget'!B91)","v":""}]
[null,{"$f":"IF(ISBLANK('D COMP Budget'!B92),\"\",'D COMP Budget'!B92)","v":""}]
[null,{"$f":"IF(ISBLANK('D COMP Budget'!B93),\"\",'D COMP Budget'!B93)","v":""}]
[null,{"$f":"IF(ISBLANK('D COMP Budget'!B94),\"\",'D COMP Budget'!B94)","v":"Sous-total - Coûts des activités"},{"$f":"'D COMP Budget'!C94","v":0},{"$f":"+SUM(D43:D47,D49:D53,D55:D64,D66:D75,D78:D93)","v":0},{"$f":"+SUM(E43:E47,E49:E53,E55:E64,E66:E75,E78:E93)","v":0},{"$f":"+SUM(F43:F47,F49:F53,F55:F64,F66:F75,F78:F93)","v":0}]
[]
[null,"Promotion et marketing "]
[null,{"$f":"IF(ISBLANK('D COMP Budget'!B97),\"\",'D COMP Budget'!B97)","v":"Développement des publics, activités de rayonnement, matériel de communication,publicité et promotions, par exemple."}]
[null,{"$f":"IF(ISBLANK('D COMP Budget'!B98),\"\",'D COMP Budget'!B98)","v":"Personnel chargé de la promotion et marketing"}]
[null,{"$f":"IF(ISBLANK('D COMP Budget'!B99),\"\",'D COMP Budget'!B99)","v":""}]
[null,{"$f":"IF(ISBLANK('D COMP Budget'!B100),\"\",'D COMP Budget'!B100)","v":""}]
[null,{"$f":"IF(ISBLANK('D COMP Budget'!B101),\"\",'D COMP Budget'!B101)","v":""}]
[null,{"$f":"IF(ISBLANK('D COMP Budget'!B102),\"\",'D COMP Budget'!B102)","v":""}]
[null,{"$f":"IF(ISBLANK('D COMP Budget'!B103),\"\",'D COMP Budget'!B103)","v":""}]
[null,{"$f":"IF(ISBLANK('D COMP Budget'!B104),\"\",'D COMP Budget'!B104)","v":"Coûts promotionnels"}]
[null,{"$f":"IF(ISBLANK('D COMP Budget'!B105),\"\",'D COMP Budget'!B105)","v":""}]
[null,{"$f":"IF(ISBLANK('D COMP Budget'!B106),\"\",'D COMP Budget'!B106)","v":""}]
[null,{"$f":"IF(ISBLANK('D COMP Budget'!B107),\"\",'D COMP Budget'!B107)","v":""}]
[null,{"$f":"IF(ISBLANK('D COMP Budget'!B108),\"\",'D COMP Budget'!B108)","v":""}]
[null,{"$f":"IF(ISBLANK('D COMP Budget'!B109),\"\",'D COMP Budget'!B109)","v":""}]
[null,{"$f":"IF(ISBLANK('D COMP Budget'!B110),\"\",'D COMP Budget'!B110)","v":"Sous-total - Promotion et marketing"},{"$f":"+'D COMP Budget'!C110","v":0},{"$f":"+SUM(D105:D109,D99:D103)","v":0},{"$f":"+SUM(E105:E109,E99:E103)","v":0},{"$f":"+SUM(F105:F109,F99:F103)","v":0}]
[]
[null,"Coûts de gestion"]
[null,{"$f":"IF(ISBLANK('D COMP Budget'!B113),\"\",'D COMP Budget'!B113)","v":"Personnel chargé de l’administration"}]
[null,{"$f":"IF(ISBLANK('D COMP Budget'!B114),\"\",'D COMP Budget'!B114)","v":""}]
[null,{"$f":"IF(ISBLANK('D COMP Budget'!B115),\"\",'D COMP Budget'!B115)","v":""}]
[null,{"$f":"IF(ISBLANK('D COMP Budget'!B116),\"\",'D COMP Budget'!B116)","v":""}]
[null,{"$f":"IF(ISBLANK('D COMP Budget'!B117),\"\",'D COMP Budget'!B117)","v":""}]
[null,{"$f":"IF(ISBLANK('D COMP Budget'!B118),\"\",'D COMP Budget'!B118)","v":""}]
[null,{"$f":"IF(ISBLANK('D COMP Budget'!B119),\"\",'D COMP Budget'!B119)","v":"Coûts administratifs"}]
[null,{"$f":"IF(ISBLANK('D COMP Budget'!B120),\"\",'D COMP Budget'!B120)","v":""}]
[null,{"$f":"IF(ISBLANK('D COMP Budget'!B121),\"\",'D COMP Budget'!B121)","v":""}]
[null,{"$f":"IF(ISBLANK('D COMP Budget'!B122),\"\",'D COMP Budget'!B122)","v":""}]
[null,{"$f":"IF(ISBLANK('D COMP Budget'!B123),\"\",'D COMP Budget'!B123)","v":""}]
[null,{"$f":"IF(ISBLANK('D COMP Budget'!B124),\"\",'D COMP Budget'!B124)","v":""}]
[null,{"$f":"IF(ISBLANK('D COMP Budget'!B125),\"\",'D COMP Budget'!B125)","v":"Sous-total - Coûts de gestion"},{"$f":"+'D COMP Budget'!C125","v":0},{"$f":"+SUM(D120:D124,D114:D118)","v":0},{"$f":"+SUM(E120:E124,E114:E118)","v":0},{"$f":"+SUM(F120:F124,F114:F118)","v":0}]
[]
[null,{"$f":"IF(ISBLANK('D COMP Budget'!B127),\"\",'D COMP Budget'!B127)","v":"Total des coûts"},{"$f":"+'D COMP Budget'!C127","v":0},{"$f":"+D23+D94+D110+D125+D38","v":0},{"$f":"+E23+E94+E110+E125+E38","v":0},{"$f":"+F23+F94+F110+F125+F38","v":0}]
[]
[]
[null,"Revenus"]
[]
[null,null,"Budget, 1er exercice","1re mise à jour, 1er exercice, \nau besoin","2e mise à jour, 1er exercise, \nau besoin","Données réelles, 1er exercice ","Notes au budget (facultatif) "]
[null,{"$f":"IF(ISBLANK('D COMP Budget'!B133),\"\",'D COMP Budget'!B133)","v":"Revenus gagnés"}]
[null,{"$f":"IF(ISBLANK('D COMP Budget'!B134),\"\",'D COMP Budget'!B134)","v":"Frais d’inscription, ventes de billets"}]
[null,{"$f":"IF(ISBLANK('D COMP Budget'!B135),\"\",'D COMP Budget'!B135)","v":""}]
[null,{"$f":"IF(ISBLANK('D COMP Budget'!B136),\"\",'D COMP Budget'!B136)","v":""}]
[null,{"$f":"IF(ISBLANK('D COMP Budget'!B137),\"\",'D COMP Budget'!B137)","v":""}]
[null,{"$f":"IF(ISBLANK('D COMP Budget'!B138),\"\",'D COMP Budget'!B138)","v":""}]
[null,{"$f":"IF(ISBLANK('D COMP Budget'!B139),\"\",'D COMP Budget'!B139)","v":""}]
[null,{"$f":"IF(ISBLANK('D COMP Budget'!B140),\"\",'D COMP Budget'!B140)","v":"Abonnements, droits d’adhésion"}]
[null,{"$f":"IF(ISBLANK('D COMP Budget'!B141),\"\",'D COMP Budget'!B141)","v":""}]
[null,{"$f":"IF(ISBLANK('D COMP Budget'!B142),\"\",'D COMP Budget'!B142)","v":""}]
[null,{"$f":"IF(ISBLANK('D COMP Budget'!B143),\"\",'D COMP Budget'!B143)","v":""}]
[null,{"$f":"IF(ISBLANK('D COMP Budget'!B144),\"\",'D COMP Budget'!B144)","v":""}]
[null,{"$f":"IF(ISBLANK('D COMP Budget'!B145),\"\",'D COMP Budget'!B145)","v":""}]
[null,{"$f":"IF(ISBLANK('D COMP Budget'!B146),\"\",'D COMP Budget'!B146)","v":"Frais de service"}]
[null,{"$f":"IF(ISBLANK('D COMP Budget'!B147),\"\",'D COMP Budget'!B147)","v":""}]
[null,{"$f":"IF(ISBLANK('D COMP Budget'!B148),\"\",'D COMP Budget'!B148)","v":""}]
[null,{"$f":"IF(ISBLANK('D COMP Budget'!B149),\"\",'D COMP Budget'!B149)","v":""}]
[null,{"$f":"IF(ISBLANK('D COMP Budget'!B150),\"\",'D COMP Budget'!B150)","v":""}]
[null,{"$f":"IF(ISBLANK('D COMP Budget'!B151),\"\",'D COMP Budget'!B151)","v":""}]
[null,{"$f":"IF(ISBLANK('D COMP Budget'!B152),\"\",'D COMP Budget'!B152)","v":"Vente de produits"}]
[null,{"$f":"IF(ISBLANK('D COMP Budget'!B153),\"\",'D COMP Budget'!B153)","v":""}]
[null,{"$f":"IF(ISBLANK('D COMP Budget'!B154),\"\",'D COMP Budget'!B154)","v":""}]
[null,{"$f":"IF(ISBLANK('D COMP Budget'!B155),\"\",'D COMP Budget'!B155)","v":""}]
[null,{"$f":"IF(ISBLANK('D COMP Budget'!B156),\"\",'D COMP Budget'!B156)","v":""}]
[null,{"$f":"IF(ISBLANK('D COMP Budget'!B157),\"\",'D COMP Budget'!B157)","v":""}]
[null,{"$f":"IF(ISBLANK('D COMP Budget'!B158),\"\",'D COMP Budget'!B158)","v":"Autres revenus gagnés"}]
[null,{"$f":"IF(ISBLANK('D COMP Budget'!B159),\"\",'D COMP Budget'!B159)","v":""}]
[null,{"$f":"IF(ISBLANK('D COMP Budget'!B160),\"\",'D COMP Budget'!B160)","v":""}]
[null,{"$f":"IF(ISBLANK('D COMP Budget'!B161),\"\",'D COMP Budget'!B161)","v":""}]
[null,{"$f":"IF(ISBLANK('D COMP Budget'!B162),\"\",'D COMP Budget'!B162)","v":""}]
[null,{"$f":"IF(ISBLANK('D COMP Budget'!B163),\"\",'D COMP Budget'!B163)","v":""}]
[null,{"$f":"IF(ISBLANK('D COMP Budget'!B164),\"\",'D COMP Budget'!B164)","v":"Sous-total - Revenus gagnés"},{"$f":"+'D COMP Budget'!C164","v":0},{"$f":"+SUM(D159:D163,D135:D139,D147:D151,D141:D145,D153:D157)","v":0},{"$f":"+SUM(E159:E163,E135:E139,E147:E151,E141:E145,E153:E157)","v":0},{"$f":"+SUM(F159:F163,F135:F139,F147:F151,F141:F145,F153:F157)","v":0}]
[]
[null,{"$f":"IF(ISBLANK('D COMP Budget'!B166),\"\",'D COMP Budget'!B166)","v":"Revenus du secteur privé"}]
[null,{"$f":"IF(ISBLANK('D COMP Budget'!B167),\"\",'D COMP Budget'!B167)","v":"Commandites"}]
[null,{"$f":"IF(ISBLANK('D COMP Budget'!B168),\"\",'D COMP Budget'!B168)","v":"Dons"}]
[null,{"$f":"IF(ISBLANK('D COMP Budget'!B169),\"\",'D COMP Budget'!B169)","v":"Fondations"}]
[null,{"$f":"IF(ISBLANK('D COMP Budget'!B170),\"\",'D COMP Budget'!B170)","v":"Collectes de fonds"}]
[null,{"$f":"IF(ISBLANK('D COMP Budget'!B171),\"\",'D COMP Budget'!B171)","v":"Autre revenus du secteur privé"}]
[null,{"$f":"IF(ISBLANK('D COMP Budget'!B172),\"\",'D COMP Budget'!B172)","v":""}]
[null,{"$f":"IF(ISBLANK('D COMP Budget'!B173),\"\",'D COMP Budget'!B173)","v":""}]
[null,{"$f":"IF(ISBLANK('D COMP Budget'!B174),\"\",'D COMP Budget'!B174)","v":""}]
[null,{"$f":"IF(ISBLANK('D COMP Budget'!B175),\"\",'D COMP Budget'!B175)","v":""}]
[null,{"$f":"IF(ISBLANK('D COMP Budget'!B176),\"\",'D COMP Budget'!B176)","v":""}]
[null,{"$f":"IF(ISBLANK('D COMP Budget'!B177),\"\",'D COMP Budget'!B177)","v":"Sous-total - Revenus du secteur privé"},{"$f":"+'D COMP Budget'!C177","v":0},{"$f":"+SUM(D172:D176,D167:D170)","v":0},{"$f":"+SUM(E172:E176,E167:E170)","v":0},{"$f":"+SUM(F172:F176,F167:F170)","v":0}]
[]
[null,{"$f":"IF(ISBLANK('D COMP Budget'!B179),\"\",'D COMP Budget'!B179)","v":"Revenus du secteur public"}]
[null,{"$f":"IF(ISBLANK('D COMP Budget'!B180),\"\",'D COMP Budget'!B180)","v":"Subvention pour cette demande, jusqu’à 100 000 $ par année, jusqu’à 3 ans"},{"$f":"+'D COMP Budget'!C180","v":0}]
[null,{"$f":"IF(ISBLANK('D COMP Budget'!B181),\"\",'D COMP Budget'!B181)","v":"Soutien à l'accès aux services (Veuillez soumettre une demande distincte au Soutien à l'accès aux services)"}]
[null,{"$f":"IF(ISBLANK('D COMP Budget'!B182),\"\",'D COMP Budget'!B182)","v":"Autres subventions du Conseil des arts du Canada "}]
[null,{"$f":"IF(ISBLANK('D COMP Budget'!B183),\"\",'D COMP Budget'!B183)","v":""}]
[null,{"$f":"IF(ISBLANK('D COMP Budget'!B184),\"\",'D COMP Budget'!B184)","v":""}]
[null,{"$f":"IF(ISBLANK('D COMP Budget'!B185),\"\",'D COMP Budget'!B185)","v":""}]
[null,{"$f":"IF(ISBLANK('D COMP Budget'!B186),\"\",'D COMP Budget'!B186)","v":""}]
[null,{"$f":"IF(ISBLANK('D COMP Budget'!B187),\"\",'D COMP Budget'!B187)","v":""}]
[null,{"$f":"IF(ISBLANK('D COMP Budget'!B188),\"\",'D COMP Budget'!B188)","v":"Autre subvention fédérale"}]
[null,{"$f":"IF(ISBLANK('D COMP Budget'!B189),\"\",'D COMP Budget'!B189)","v":""}]
[null,{"$f":"IF(ISBLANK('D COMP Budget'!B190),\"\",'D COMP Budget'!B190)","v":""}]
[null,{"$f":"IF(ISBLANK('D COMP Budget'!B191),\"\",'D COMP Budget'!B191)","v":""}]
[null,{"$f":"IF(ISBLANK('D COMP Budget'!B192),\"\",'D COMP Budget'!B192)","v":""}]
[null,{"$f":"IF(ISBLANK('D COMP Budget'!B193),\"\",'D COMP Budget'!B193)","v":""}]
[null,{"$f":"IF(ISBLANK('D COMP Budget'!B194),\"\",'D COMP Budget'!B194)","v":"Subvention provinciale ou territoriale"}]
[null,{"$f":"IF(ISBLANK('D COMP Budget'!B195),\"\",'D COMP Budget'!B195)","v":""}]
[null,{"$f":"IF(ISBLANK('D COMP Budget'!B196),\"\",'D COMP Budget'!B196)","v":""}]
[null,{"$f":"IF(ISBLANK('D COMP Budget'!B197),\"\",'D COMP Budget'!B197)","v":""}]
[null,{"$f":"IF(ISBLANK('D COMP Budget'!B198),\"\",'D COMP Budget'!B198)","v":""}]
[null,{"$f":"IF(ISBLANK('D COMP Budget'!B199),\"\",'D COMP Budget'!B199)","v":""}]
[null,{"$f":"IF(ISBLANK('D COMP Budget'!B200),\"\",'D COMP Budget'!B200)","v":"Subvention municipale ou régionale"}]
[null,{"$f":"IF(ISBLANK('D COMP Budget'!B201),\"\",'D COMP Budget'!B201)","v":""}]
[null,{"$f":"IF(ISBLANK('D COMP Budget'!B202),\"\",'D COMP Budget'!B202)","v":""}]
[null,{"$f":"IF(ISBLANK('D COMP Budget'!B203),\"\",'D COMP Budget'!B203)","v":""}]
[null,{"$f":"IF(ISBLANK('D COMP Budget'!B204),\"\",'D COMP Budget'!B204)","v":""}]
[null,{"$f":"IF(ISBLANK('D COMP Budget'!B205),\"\",'D COMP Budget'!B205)","v":""}]
[null,{"$f":"IF(ISBLANK('D COMP Budget'!B206),\"\",'D COMP Budget'!B206)","v":"Autre revenus du secteur public"}]
[null,{"$f":"IF(ISBLANK('D COMP Budget'!B207),\"\",'D COMP Budget'!B207)","v":""}]
[null,{"$f":"IF(ISBLANK('D COMP Budget'!B208),\"\",'D COMP Budget'!B208)","v":""}]
[null,{"$f":"IF(ISBLANK('D COMP Budget'!B209),\"\",'D COMP Budget'!B209)","v":""}]
[null,{"$f":"IF(ISBLANK('D COMP Budget'!B210),\"\",'D COMP Budget'!B210)","v":""}]
[null,{"$f":"IF(ISBLANK('D COMP Budget'!B211),\"\",'D COMP Budget'!B211)","v":""}]
[null,{"$f":"IF(ISBLANK('D COMP Budget'!B212),\"\",'D COMP Budget'!B212)","v":"Sous-total - Revenus du secteur public"},{"$f":"+'D COMP Budget'!C212","v":0},{"$f":"+SUM(D189:D193,D195:D199,D201:D205,D207:D211,D180:D181,D183:D187)","v":0},{"$f":"+SUM(E189:E193,E195:E199,E201:E205,E207:E211,E180:E181,E183:E187)","v":0},{"$f":"+SUM(F189:F193,F195:F199,F201:F205,F207:F211,F180:F181,F183:F187)","v":0}]
[]
[null,{"$f":"IF(ISBLANK('D COMP Budget'!B214),\"\",'D COMP Budget'!B214)","v":"Services en nature"}]
[null,{"$f":"IF(ISBLANK('D COMP Budget'!B215),\"\",'D COMP Budget'!B215)","v":""}]
[null,{"$f":"IF(ISBLANK('D COMP Budget'!B216),\"\",'D COMP Budget'!B216)","v":""}]
[null,{"$f":"IF(ISBLANK('D COMP Budget'!B217),\"\",'D COMP Budget'!B217)","v":""}]
[null,{"$f":"IF(ISBLANK('D COMP Budget'!B218),\"\",'D COMP Budget'!B218)","v":""}]
[null,{"$f":"IF(ISBLANK('D COMP Budget'!B219),\"\",'D COMP Budget'!B219)","v":""}]
[null,{"$f":"IF(ISBLANK('D COMP Budget'!B220),\"\",'D COMP Budget'!B220)","v":"Sous-total – Services en nature"},{"$f":"+'D COMP Budget'!C220","v":0},{"$f":"+SUM(D215:D219)","v":0},{"$f":"+SUM(E215:E219)","v":0},{"$f":"+SUM(F215:F219)","v":0}]
[]
[null,{"$f":"IF(ISBLANK('D COMP Budget'!B222),\"\",'D COMP Budget'!B222)","v":"Autres revenus"}]
[null,{"$f":"IF(ISBLANK('D COMP Budget'!B223),\"\",'D COMP Budget'!B223)","v":""}]
[null,{"$f":"IF(ISBLANK('D COMP Budget'!B224),\"\",'D COMP Budget'!B224)","v":""}]
[null,{"$f":"IF(ISBLANK('D COMP Budget'!B225),\"\",'D COMP Budget'!B225)","v":""}]
[null,{"$f":"IF(ISBLANK('D COMP Budget'!B226),\"\",'D COMP Budget'!B226)","v":""}]
[null,{"$f":"IF(ISBLANK('D COMP Budget'!B227),\"\",'D COMP Budget'!B227)","v":""}]
[null,{"$f":"IF(ISBLANK('D COMP Budget'!B228),\"\",'D COMP Budget'!B228)","v":"Paiements différés"}]
[null,{"$f":"IF(ISBLANK('D COMP Budget'!B229),\"\",'D COMP Budget'!B229)","v":""}]
[null,{"$f":"IF(ISBLANK('D COMP Budget'!B230),\"\",'D COMP Budget'!B230)","v":""}]
[null,{"$f":"IF(ISBLANK('D COMP Budget'!B231),\"\",'D COMP Budget'!B231)","v":""}]
[null,{"$f":"IF(ISBLANK('D COMP Budget'!B232),\"\",'D COMP Budget'!B232)","v":"Sous-total - Autres revenus"},{"$f":"+'D COMP Budget'!C232","v":0},{"$f":"+SUM(D229:D231,D223:D227)","v":0},{"$f":"+SUM(E229:E231,E223:E227)","v":0},{"$f":"+SUM(F229:F231,F223:F227)","v":0}]
[]
[null,{"$f":"IF(ISBLANK('D COMP Budget'!B234),\"\",'D COMP Budget'!B234)","v":"Total des revenus"},{"$f":"C164+C177+C212+C232+C220","v":0},{"$f":"D164+D177+D212+D232+D220","v":0},{"$f":"E164+E177+E212+E232+E220","v":0},{"$f":"F164+F177+F212+F232+F220","v":0}]
[]
[null,{"$f":"IF(ISBLANK('D COMP Budget'!B236),\"\",'D COMP Budget'!B236)","v":"Total des coûts"},{"$f":"C127","v":0},{"$f":"D127","v":0},{"$f":"E127","v":0},{"$f":"F127","v":0}]
[]
[null,{"$f":"IF(ISBLANK('D COMP Budget'!B238),\"\",'D COMP Budget'!B238)","v":"Excédent (Déficit)"},{"$f":"C234-C236","v":0},{"$f":"D234-D236","v":0},{"$f":"E234-E236","v":0},{"$f":"F234-F236","v":0}]
[]
[null,{"$f":"IF(ISBLANK('D COMP Budget'!B240),\"\",'D COMP Budget'!B240)","v":"% du Total des coûts que représente la subvention"},{"$f":"IFERROR((C180/C236),\"\")","v":""},{"$f":"IFERROR((D180/D236),\"\")","v":""},{"$f":"IFERROR((E180/E236),\"\")","v":""},{"$f":"IFERROR((F180/F236),\"\")","v":""}]
[]
[null,"Les cachets d'artistes, droits d’auteur et redevances doivent être payables à tous les artistes canadiens. Ces montants doivent être acceptés par les artistes et le demandeur, et doivent être la même, ou supérieur, aux normes canadiennes actuelles."]

{"sheet":"G COMP Mise à jour Année 2","index":7,"n_rows":242,"n_cols":10,"rows_kept":242,"cut":false,"hidden":false,"merged":[[1,1,1,9],[9,1,9,9],[4,1,7,1],[39,1,39,9],[96,2,96,9],[181,2,181,9],[111,1,111,9],[129,1,129,9],[170,2,170,9],[24,1,24,9],[97,2,97,9],[132,1,132,9],[165,1,165,9],[178,1,178,9],[133,2,133,9],[139,2,139,9],[145,2,145,9],[151,2,151,9],[157,2,157,9],[241,1,242,5],[187,2,187,9],[193,2,193,9],[199,2,199,9],[205,2,205,9],[227,2,227,9],[213,1,213,9],[221,1,221,9]]}
[null,"v.201704"]
[null,"Appuyer la pratique artistique : Innovation et développement du secteur - Subventions  composites (Mise à jour Année 2)"]
[]
[null,"Veuillez inscrire ci-dessous les dépenses relatives à votre projet  ","Données réelles, 1er exercice ","Budget, 2e exercice \n(s’il y a lieu)","1re mise à jour, 2e exercice, \nau besoin","2e mise à jour, 2e exercice, \nau besoin","3e mise à jour, 2e exercice, \nau besoin","Données réelles, 2e exercice ","Données réelles, 1er et 2e exercices ","Notes au budget (facultatif) "]
[null,"Vos données dans les lignes ci-dessous sont transmises à partir de votre budget précédent. Vous pouvez les modifier si nécessaire.","de","de","de","de","de","de"]
[null,null,{"$f":"+'F COMP Mise à jour Année 1'!F6","v":"Date :"},{"$f":"+'D COMP Budget'!D6","v":"Date :"},"Date :","Date :","Date :","Date :"]
[null,null,"à","à","à","à","à","à"]
[null,null,{"$f":"+'F COMP Mise à jour Année 1'!F8","v":"Date :"},{"$f":"+'D COMP Budget'!D8","v":"Date :"},"Date :","Date :","Date :","Date :"]
[]
[null,"Honoraires professionnels"]
[null,{"$f":"IF(ISBLANK('D COMP Budget'!B11),\"\",'D COMP Budget'!B11)","v":"Expert-conseil, responsable des ateliers, technicien, mentor, personnel chargé de la documentation et responsable de l’événement, par exemple"}]
[null,{"$f":"IF(ISBLANK('D COMP Budget'!B12),\"\",'D COMP Budget'!B12)","v":"Redevances et droits d’auteur"}]
[null,{"$f":"IF(ISBLANK('F COMP Mise à jour Année 1'!B13),\"\",'F COMP Mise à jour Année 1'!B13)","v":""}]
[null,{"$f":"IF(ISBLANK('F COMP Mise à jour Année 1'!B14),\"\",'F COMP Mise à jour Année 1'!B14)","v":""}]
[null,{"$f":"IF(ISBLANK('F COMP Mise à jour Année 1'!B15),\"\",'F COMP Mise à jour Année 1'!B15)","v":""}]
[null,{"$f":"IF(ISBLANK('F COMP Mise à jour Année 1'!B16),\"\",'F COMP Mise à jour Année 1'!B16)","v":""}]
[null,{"$f":"IF(ISBLANK('F COMP Mise à jour Année 1'!B17),\"\",'F COMP Mise à jour Année 1'!B17)","v":""}]
[null,{"$f":"IF(ISBLANK('F COMP Mise à jour Année 1'!B18),\"\",'F COMP Mise à jour Année 1'!B18)","v":""}]
[null,{"$f":"IF(ISBLANK('F COMP Mise à jour Année 1'!B19),\"\",'F COMP Mise à jour Année 1'!B19)","v":""}]
[null,{"$f":"IF(ISBLANK('F COMP Mise à jour Année 1'!B20),\"\",'F COMP Mise à jour Année 1'!B20)","v":""}]
[null,{"$f":"IF(ISBLANK('F COMP Mise à jour Année 1'!B21),\"\",'F COMP Mise à jour Année 1'!B21)","v":""}]
[null,{"$f":"IF(ISBLANK('F COMP Mise à jour Année 1'!B22),\"\",'F COMP Mise à jour Année 1'!B22)","v":""}]
[null,{"$f":"IF(ISBLANK('D COMP Budget'!B23),\"\",'D COMP Budget'!B23)","v":"Sous-total - Honoraires professionnels "},{"$f":"+'F COMP Mise à jour Année 1'!F23","v":0},{"$f":"+'D COMP Budget'!D23","v":0},{"$f":"SUM(E12:E22)","v":0},{"$f":"SUM(F12:F22)","v":0},{"$f":"SUM(G12:G22)","v":0},{"$f":"SUM(H12:H22)","v":0},{"$f":"C23+H23","v":0}]
[]
[null,"Frais de déplacement et de transport (veuillez préciser dans les notes au budget)"]
[null,{"$f":"IF(ISBLANK('D COMP Budget'!B26),\"\",'D COMP Budget'!B26)","v":"Par ex., frais de déplacement; transport et expédition des marchandises ou bagages additionnels; emballage et empaquetage; Indemnité journalière et hébergement, maximum de 150 $ par jour."}]
[null,{"$f":"IF(ISBLANK('F COMP Mise à jour Année 1'!B27),\"\",'F COMP Mise à jour Année 1'!B27)","v":""}]
[null,{"$f":"IF(ISBLANK('F COMP Mise à jour Année 1'!B28),\"\",'F COMP Mise à jour Année 1'!B28)","v":""}]
[null,{"$f":"IF(ISBLANK('F COMP Mise à jour Année 1'!B29),\"\",'F COMP Mise à jour Année 1'!B29)","v":""}]
[null,{"$f":"IF(ISBLANK('F COMP Mise à jour Année 1'!B30),\"\",'F COMP Mise à jour Année 1'!B30)","v":""}]
[null,{"$f":"IF(ISBLANK('F COMP Mise à jour Année 1'!B31),\"\",'F COMP Mise à jour Année 1'!B31)","v":""}]
[null,{"$f":"IF(ISBLANK('F COMP Mise à jour Année 1'!B32),\"\",'F COMP Mise à jour Année 1'!B32)","v":""}]
[null,{"$f":"IF(ISBLANK('F COMP Mise à jour Année 1'!B33),\"\",'F COMP Mise à jour Année 1'!B33)","v":""}]
[null,{"$f":"IF(ISBLANK('F COMP Mise à jour Année 1'!B34),\"\",'F COMP Mise à jour Année 1'!B34)","v":""}]
[null,{"$f":"IF(ISBLANK('F COMP Mise à jour Année 1'!B35),\"\",'F COMP Mise à jour Année 1'!B35)","v":""}]
[null,{"$f":"IF(ISBLANK('F COMP Mise à jour Année 1'!B36),\"\",'F COMP Mise à jour Année 1'!B36)","v":""}]
[null,{"$f":"IF(ISBLANK('F COMP Mise à jour Année 1'!B37),\"\",'F COMP Mise à jour Année 1'!B37)","v":""}]
[null,{"$f":"IF(ISBLANK('D COMP Budget'!B38),\"\",'D COMP Budget'!B38)","v":"Sous-total - Frais de déplacement "},{"$f":"+'F COMP Mise à jour Année 1'!F38","v":0},{"$f":"+'D COMP Budget'!D38","v":0},{"$f":"SUM(E27:E37)","v":0},{"$f":"SUM(F27:F37)","v":0},{"$f":"SUM(G27:G37)","v":0},{"$f":"SUM(H27:H37)","v":0},{"$f":"C38+H38","v":0}]
[]
[null,{"$f":"IF(ISBLANK('D COMP Budget'!B40),\"\",'D COMP Budget'!B40)","v":"Coûts des activités"},{"$f":"IF(ISBLANK('D COMP Budget'!C40),\"\",'D COMP Budget'!C40)","v":""},{"$f":"IF(ISBLANK('D COMP Budget'!D40),\"\",'D COMP Budget'!D40)","v":""},{"$f":"IF(ISBLANK('D COMP Budget'!E40),\"\",'D COMP Budget'!E40)","v":""},{"$f":"IF(ISBLANK('D COMP Budget'!F40),\"\",'D COMP Budget'!F40)","v":""},{"$f":"IF(ISBLANK('D COMP Budget'!G40),\"\",'D COMP Budget'!G40)","v":""},{"$f":"IF(ISBLANK('D COMP Budget'!H40),\"\",'D COMP Budget'!H40)","v":""},{"$f":"IF(ISBLANK('D COMP Budget'!I40),\"\",'D COMP Budget'!I40)","v":""},{"$f":"IF(ISBLANK('D COMP Budget'!J40),\"\",'D COMP Budget'!J40)","v":""}]
[null,{"$f":"IF(ISBLANK('D COMP Budget'!B41),\"\",'D COMP Budget'!B41)","v":"Comprennent l’accessibilité du public, par ex. interprétation gestuelle, sous-titrage, description audio, etc."}]
[null,{"$f":"IF(ISBLANK('D COMP Budget'!B42),\"\",'D COMP Budget'!B42)","v":"Location des lieux"}]
[null,{"$f":"IF(ISBLANK('F COMP Mise à jour Année 1'!B43),\"\",'F COMP Mise à jour Année 1'!B43)","v":""}]
[null,{"$f":"IF(ISBLANK('F COMP Mise à jour Année 1'!B44),\"\",'F COMP Mise à jour Année 1'!B44)","v":""}]
[null,{"$f":"IF(ISBLANK('F COMP Mise à jour Année 1'!B45),\"\",'F COMP Mise à jour Année 1'!B45)","v":""}]
[null,{"$f":"IF(ISBLANK('F COMP Mise à jour Année 1'!B46),\"\",'F COMP Mise à jour Année 1'!B46)","v":""}]
[null,{"$f":"IF(ISBLANK('F COMP Mise à jour Année 1'!B47),\"\",'F COMP Mise à jour Année 1'!B47)","v":""}]
[null,{"$f":"IF(ISBLANK('D COMP Budget'!B48),\"\",'D COMP Budget'!B48)","v":"Location d’équipement"}]
[null,{"$f":"IF(ISBLANK('F COMP Mise à jour Année 1'!B49),\"\",'F COMP Mise à jour Année 1'!B49)","v":""}]
[null,{"$f":"IF(ISBLANK('F COMP Mise à jour Année 1'!B50),\"\",'F COMP Mise à jour Année 1'!B50)","v":""}]
[null,{"$f":"IF(ISBLANK('F COMP Mise à jour Année 1'!B51),\"\",'F COMP Mise à jour Année 1'!B51)","v":""}]
[null,{"$f":"IF(ISBLANK('F COMP Mise à jour Année 1'!B52),\"\",'F COMP Mise à jour Année 1'!B52)","v":""}]
[null,{"$f":"IF(ISBLANK('F COMP Mise à jour Année 1'!B53),\"\",'F COMP Mise à jour Année 1'!B53)","v":""}]
[null,{"$f":"IF(ISBLANK('D COMP Budget'!B54),\"\",'D COMP Budget'!B54)","v":"Matériel et fournitures"}]
[null,{"$f":"IF(ISBLANK('F COMP Mise à jour Année 1'!B55),\"\",'F COMP Mise à jour Année 1'!B55)","v":""}]
[null,{"$f":"IF(ISBLANK('F COMP Mise à jour Année 1'!B56),\"\",'F COMP Mise à jour Année 1'!B56)","v":""}]
[null,{"$f":"IF(ISBLANK('F COMP Mise à jour Année 1'!B57),\"\",'F COMP Mise à jour Année 1'!B57)","v":""}]
[null,{"$f":"IF(ISBLANK('F COMP Mise à jour Année 1'!B58),\"\",'F COMP Mise à jour Année 1'!B58)","v":""}]
[null,{"$f":"IF(ISBLANK('F COMP Mise à jour Année 1'!B59),\"\",'F COMP Mise à jour Année 1'!B59)","v":""}]
[null,{"$f":"IF(ISBLANK('F COMP Mise à jour Année 1'!B60),\"\",'F COMP Mise à jour Année 1'!B60)","v":""}]
[null,{"$f":"IF(ISBLANK('F COMP Mise à jour Année 1'!B61),\"\",'F COMP Mise à jour Année 1'!B61)","v":""}]
[null,{"$f":"IF(ISBLANK('F COMP Mise à jour Année 1'!B62),\"\",'F COMP Mise à jour Année 1'!B62)","v":""}]
[null,{"$f":"IF(ISBLANK('F COMP Mise à jour Année 1'!B63),\"\",'F COMP Mise à jour Année 1'!B63)","v":""}]
[null,{"$f":"IF(ISBLANK('F COMP Mise à jour Année 1'!B64),\"\",'F COMP Mise à jour Année 1'!B64)","v":""}]
[null,{"$f":"IF(ISBLANK('D COMP Budget'!B65),\"\",'D COMP Budget'!B65)","v":"Publications - numériques et imprimés"}]
[null,{"$f":"IF(ISBLANK('F COMP Mise à jour Année 1'!B66),\"\",'F COMP Mise à jour Année 1'!B66)","v":""}]
[null,{"$f":"IF(ISBLANK('F COMP Mise à jour Année 1'!B67),\"\",'F COMP Mise à jour Année 1'!B67)","v":""}]
[null,{"$f":"IF(ISBLANK('F COMP Mise à jour Année 1'!B68),\"\",'F COMP Mise à jour Année 1'!B68)","v":""}]
[null,{"$f":"IF(ISBLANK('F COMP Mise à jour Année 1'!B69),\"\",'F COMP Mise à jour Année 1'!B69)","v":""}]
[null,{"$f":"IF(ISBLANK('F COMP Mise à jour Année 1'!B70),\"\",'F COMP Mise à jour Année 1'!B70)","v":""}]
[null,{"$f":"IF(ISBLANK('F COMP Mise à jour Année 1'!B71),\"\",'F COMP Mise à jour Année 1'!B71)","v":""}]
[null,{"$f":"IF(ISBLANK('F COMP Mise à jour Année 1'!B72),\"\",'F COMP Mise à jour Année 1'!B72)","v":""}]
[null,{"$f":"IF(ISBLANK('F COMP Mise à jour Année 1'!B73),\"\",'F COMP Mise à jour Année 1'!B73)","v":""}]
[null,{"$f":"IF(ISBLANK('F COMP Mise à jour Année 1'!B74),\"\",'F COMP Mise à jour Année 1'!B74)","v":""}]
[null,{"$f":"IF(ISBLANK('F COMP Mise à jour Année 1'!B75),\"\",'F COMP Mise à jour Année 1'!B75)","v":""}]
[null,{"$f":"IF(ISBLANK('D COMP Budget'!B76),\"\",'D COMP Budget'!B76)","v":"Autres coûts"}]
[null,{"$f":"IF(ISBLANK('D COMP Budget'!B77),\"\",'D COMP Budget'!B77)","v":"Conception Web, documentation, communication des constatations, exposition, programmation, reproduction, catalogage, étude et diffusion, par exemple"}]
[null,"Coût d'accès: coûts reliés aux mesures de soutien et services pour artistes et professionnels des arts sourds ou handicapés impliqués dans les activités"]
[null,{"$f":"IF(ISBLANK('F COMP Mise à jour Année 1'!B79),\"\",'F COMP Mise à jour Année 1'!B79)","v":""}]
[null,{"$f":"IF(ISBLANK('F COMP Mise à jour Année 1'!B80),\"\",'F COMP Mise à jour Année 1'!B80)","v":""}]
[null,{"$f":"IF(ISBLANK('F COMP Mise à jour Année 1'!B81),\"\",'F COMP Mise à jour Année 1'!B81)","v":""}]
[null,{"$f":"IF(ISBLANK('F COMP Mise à jour Année 1'!B82),\"\",'F COMP Mise à jour Année 1'!B82)","v":""}]
[null,{"$f":"IF(ISBLANK('F COMP Mise à jour Année 1'!B83),\"\",'F COMP Mise à jour Année 1'!B83)","v":""}]
[null,{"$f":"IF(ISBLANK('F COMP Mise à jour Année 1'!B84),\"\",'F COMP Mise à jour Année 1'!B84)","v":""}]
[null,{"$f":"IF(ISBLANK('F COMP Mise à jour Année 1'!B85),\"\",'F COMP Mise à jour Année 1'!B85)","v":""}]
[null,{"$f":"IF(ISBLANK('F COMP Mise à jour Année 1'!B86),\"\",'F COMP Mise à jour Année 1'!B86)","v":""}]
[null,{"$f":"IF(ISBLANK('F COMP Mise à jour Année 1'!B87),\"\",'F COMP Mise à jour Année 1'!B87)","v":""}]
[null,{"$f":"IF(ISBLANK('F COMP Mise à jour Année 1'!B88),\"\",'F COMP Mise à jour Année 1'!B88)","v":""}]
[null,{"$f":"IF(ISBLANK('F COMP Mise à jour Année 1'!B89),\"\",'F COMP Mise à jour Année 1'!B89)","v":""}]
[null,{"$f":"IF(ISBLANK('F COMP Mise à jour Année 1'!B90),\"\",'F COMP Mise à jour Année 1'!B90)","v":""}]
[null,{"$f":"IF(ISBLANK('F COMP Mise à jour Année 1'!B91),\"\",'F COMP Mise à jour Année 1'!B91)","v":""}]
[null,{"$f":"IF(ISBLANK('F COMP Mise à jour Année 1'!B92),\"\",'F COMP Mise à jour Année 1'!B92)","v":""}]
[null,{"$f":"IF(ISBLANK('F COMP Mise à jour Année 1'!B93),\"\",'F COMP Mise à jour Année 1'!B93)","v":""}]
[null,{"$f":"IF(ISBLANK('D COMP Budget'!B94),\"\",'D COMP Budget'!B94)","v":"Sous-total - Coûts des activités"},{"$f":"+'F COMP Mise à jour Année 1'!F94","v":0},{"$f":"+'D COMP Budget'!D94","v":0},{"$f":"+SUM(E43:E47,E49:E53,E55:E64,E66:E75,E78:E93)","v":0},{"$f":"+SUM(F43:F47,F49:F53,F55:F64,F66:F75,F78:F93)","v":0},{"$f":"+SUM(G43:G47,G49:G53,G55:G64,G66:G75,G78:G93)","v":0},{"$f":"+SUM(H43:H47,H49:H53,H55:H64,H66:H75,H78:H93)","v":0},{"$f":"C94+H94","v":0}]
[]
[null,{"$f":"IF(ISBLANK('D COMP Budget'!B96),\"\",'D COMP Budget'!B96)","v":"Promotion et marketing"}]
[null,{"$f":"IF(ISBLANK('D COMP Budget'!B97),\"\",'D COMP Budget'!B97)","v":"Développement des publics, activités de rayonnement, matériel de communication,publicité et promotions, par exemple."}]
[null,{"$f":"IF(ISBLANK('D COMP Budget'!B98),\"\",'D COMP Budget'!B98)","v":"Personnel chargé de la promotion et marketing"}]
[null,{"$f":"IF(ISBLANK('F COMP Mise à jour Année 1'!B99),\"\",'F COMP Mise à jour Année 1'!B99)","v":""}]
[null,{"$f":"IF(ISBLANK('F COMP Mise à jour Année 1'!B100),\"\",'F COMP Mise à jour Année 1'!B100)","v":""}]
[null,{"$f":"IF(ISBLANK('F COMP Mise à jour Année 1'!B101),\"\",'F COMP Mise à jour Année 1'!B101)","v":""}]
[null,{"$f":"IF(ISBLANK('F COMP Mise à jour Année 1'!B102),\"\",'F COMP Mise à jour Année 1'!B102)","v":""}]
[null,{"$f":"IF(ISBLANK('F COMP Mise à jour Année 1'!B103),\"\",'F COMP Mise à jour Année 1'!B103)","v":""}]
[null,{"$f":"IF(ISBLANK('D COMP Budget'!B104),\"\",'D COMP Budget'!B104)","v":"Coûts promotionnels"}]
[null,{"$f":"IF(ISBLANK('F COMP Mise à jour Année 1'!B105),\"\",'F COMP Mise à jour Année 1'!B105)","v":""}]
[null,{"$f":"IF(ISBLANK('F COMP Mise à jour Année 1'!B106),\"\",'F COMP Mise à jour Année 1'!B106)","v":""}]
[null,{"$f":"IF(ISBLANK('F COMP Mise à jour Année 1'!B107),\"\",'F COMP Mise à jour Année 1'!B107)","v":""}]
[null,{"$f":"IF(ISBLANK('F COMP Mise à jour Année 1'!B108),\"\",'F COMP Mise à jour Année 1'!B108)","v":""}]
[null,{"$f":"IF(ISBLANK('F COMP Mise à jour Année 1'!B109),\"\",'F COMP Mise à jour Année 1'!B109)","v":""}]
[null,{"$f":"IF(ISBLANK('D COMP Budget'!B110),\"\",'D COMP Budget'!B110)","v":"Sous-total - Promotion et marketing"},{"$f":"+'F COMP Mise à jour Année 1'!F110","v":0},{"$f":"+'D COMP Budget'!D110","v":0},{"$f":"+SUM(E105:E109,E99:E103)","v":0},{"$f":"+SUM(F105:F109,F99:F103)","v":0},{"$f":"+SUM(G105:G109,G99:G103)","v":0},{"$f":"+SUM(H105:H109,H99:H103)","v":0},{"$f":"C110+H110","v":0}]
[]
[null,"Coûts de gestion"]
[null,{"$f":"IF(ISBLANK('D COMP Budget'!B113),\"\",'D COMP Budget'!B113)","v":"Personnel chargé de l’administration"}]
[null,{"$f":"IF(ISBLANK('F COMP Mise à jour Année 1'!B114),\"\",'F COMP Mise à jour Année 1'!B114)","v":""}]
[null,{"$f":"IF(ISBLANK('F COMP Mise à jour Année 1'!B115),\"\",'F COMP Mise à jour Année 1'!B115)","v":""}]
[null,{"$f":"IF(ISBLANK('F COMP Mise à jour Année 1'!B116),\"\",'F COMP Mise à jour Année 1'!B116)","v":""}]
[null,{"$f":"IF(ISBLANK('F COMP Mise à jour Année 1'!B117),\"\",'F COMP Mise à jour Année 1'!B117)","v":""}]
[null,{"$f":"IF(ISBLANK('F COMP Mise à jour Année 1'!B118),\"\",'F COMP Mise à jour Année 1'!B118)","v":""}]
[null,{"$f":"IF(ISBLANK('D COMP Budget'!B119),\"\",'D COMP Budget'!B119)","v":"Coûts administratifs"}]
[null,{"$f":"IF(ISBLANK('F COMP Mise à jour Année 1'!B120),\"\",'F COMP Mise à jour Année 1'!B120)","v":""}]
[null,{"$f":"IF(ISBLANK('F COMP Mise à jour Année 1'!B121),\"\",'F COMP Mise à jour Année 1'!B121)","v":""}]
[null,{"$f":"IF(ISBLANK('F COMP Mise à jour Année 1'!B122),\"\",'F COMP Mise à jour Année 1'!B122)","v":""}]
[null,{"$f":"IF(ISBLANK('F COMP Mise à jour Année 1'!B123),\"\",'F COMP Mise à jour Année 1'!B123)","v":""}]
[null,{"$f":"IF(ISBLANK('F COMP Mise à jour Année 1'!B124),\"\",'F COMP Mise à jour Année 1'!B124)","v":""}]
[null,{"$f":"IF(ISBLANK('D COMP Budget'!B125),\"\",'D COMP Budget'!B125)","v":"Sous-total - Coûts de gestion"},{"$f":"+'F COMP Mise à jour Année 1'!F125","v":0},{"$f":"+'D COMP Budget'!D125","v":0},{"$f":"+SUM(E120:E124,E114:E118)","v":0},{"$f":"+SUM(F120:F124,F114:F118)","v":0},{"$f":"+SUM(G120:G124,G114:G118)","v":0},{"$f":"+SUM(H120:H124,H114:H118)","v":0},{"$f":"C125+H125","v":0}]
[]
[null,{"$f":"IF(ISBLANK('D COMP Budget'!B127),\"\",'D COMP Budget'!B127)","v":"Total des coûts"},{"$f":"+'F COMP Mise à jour Année 1'!F127","v":0},{"$f":"+'D COMP Budget'!D127","v":0},{"$f":"+E23+E94+E110+E125+E38","v":0},{"$f":"+F23+F94+F110+F125+F38","v":0},{"$f":"+G23+G94+G110+G125+G38","v":0},{"$f":"+H23+H94+H110+H125+H38","v":0},{"$f":"C127+H127","v":0}]
[]
[]
[null,"Revenus"]
[]
[null,null,"Données réelles, 1er exercice ","Budget, 2e exercice ","1re mise à jour, 2e exercice, \nau besoin","2e mise à jour, 2e exercice, \nau besoin","3e mise à jour, 2e exercice, \nau besoin","Données réelles, 2e exercice ","Données réelles, 1er et 2e exercices ","Notes au budget (facultatif) "]
[null,{"$f":"IF(ISBLANK('D COMP Budget'!B133),\"\",'D COMP Budget'!B133)","v":"Revenus gagnés"}]
[null,{"$f":"IF(ISBLANK('D COMP Budget'!B134),\"\",'D COMP Budget'!B134)","v":"Frais d’inscription, ventes de billets"}]
[null,{"$f":"IF(ISBLANK('F COMP Mise à jour Année 1'!B135),\"\",'F COMP Mise à jour Année 1'!B135)","v":""}]
[null,{"$f":"IF(ISBLANK('F COMP Mise à jour Année 1'!B136),\"\",'F COMP Mise à jour Année 1'!B136)","v":""}]
[null,{"$f":"IF(ISBLANK('F COMP Mise à jour Année 1'!B137),\"\",'F COMP Mise à jour Année 1'!B137)","v":""}]
[null,{"$f":"IF(ISBLANK('F COMP Mise à jour Année 1'!B138),\"\",'F COMP Mise à jour Année 1'!B138)","v":""}]
[null,{"$f":"IF(ISBLANK('F COMP Mise à jour Année 1'!B139),\"\",'F COMP Mise à jour Année 1'!B139)","v":""}]
[null,{"$f":"IF(ISBLANK('D COMP Budget'!B140),\"\",'D COMP Budget'!B140)","v":"Abonnements, droits d’adhésion"}]
[null,{"$f":"IF(ISBLANK('F COMP Mise à jour Année 1'!B141),\"\",'F COMP Mise à jour Année 1'!B141)","v":""}]
[null,{"$f":"IF(ISBLANK('F COMP Mise à jour Année 1'!B142),\"\",'F COMP Mise à jour Année 1'!B142)","v":""}]
[null,{"$f":"IF(ISBLANK('F COMP Mise à jour Année 1'!B143),\"\",'F COMP Mise à jour Année 1'!B143)","v":""}]
[null,{"$f":"IF(ISBLANK('F COMP Mise à jour Année 1'!B144),\"\",'F COMP Mise à jour Année 1'!B144)","v":""}]
[null,{"$f":"IF(ISBLANK('F COMP Mise à jour Année 1'!B145),\"\",'F COMP Mise à jour Année 1'!B145)","v":""}]
[null,{"$f":"IF(ISBLANK('D COMP Budget'!B146),\"\",'D COMP Budget'!B146)","v":"Frais de service"}]
[null,{"$f":"IF(ISBLANK('F COMP Mise à jour Année 1'!B147),\"\",'F COMP Mise à jour Année 1'!B147)","v":""}]
[null,{"$f":"IF(ISBLANK('F COMP Mise à jour Année 1'!B148),\"\",'F COMP Mise à jour Année 1'!B148)","v":""}]
[null,{"$f":"IF(ISBLANK('F COMP Mise à jour Année 1'!B149),\"\",'F COMP Mise à jour Année 1'!B149)","v":""}]
[null,{"$f":"IF(ISBLANK('F COMP Mise à jour Année 1'!B150),\"\",'F COMP Mise à jour Année 1'!B150)","v":""}]
[null,{"$f":"IF(ISBLANK('F COMP Mise à jour Année 1'!B151),\"\",'F COMP Mise à jour Année 1'!B151)","v":""}]
[null,{"$f":"IF(ISBLANK('D COMP Budget'!B152),\"\",'D COMP Budget'!B152)","v":"Vente de produits"}]
[null,{"$f":"IF(ISBLANK('F COMP Mise à jour Année 1'!B153),\"\",'F COMP Mise à jour Année 1'!B153)","v":""}]
[null,{"$f":"IF(ISBLANK('F COMP Mise à jour Année 1'!B154),\"\",'F COMP Mise à jour Année 1'!B154)","v":""}]
[null,{"$f":"IF(ISBLANK('F COMP Mise à jour Année 1'!B155),\"\",'F COMP Mise à jour Année 1'!B155)","v":""}]
[null,{"$f":"IF(ISBLANK('F COMP Mise à jour Année 1'!B156),\"\",'F COMP Mise à jour Année 1'!B156)","v":""}]
[null,{"$f":"IF(ISBLANK('F COMP Mise à jour Année 1'!B157),\"\",'F COMP Mise à jour Année 1'!B157)","v":""}]
[null,{"$f":"IF(ISBLANK('D COMP Budget'!B158),\"\",'D COMP Budget'!B158)","v":"Autres revenus gagnés"}]
[null,{"$f":"IF(ISBLANK('F COMP Mise à jour Année 1'!B159),\"\",'F COMP Mise à jour Année 1'!B159)","v":""}]
[null,{"$f":"IF(ISBLANK('F COMP Mise à jour Année 1'!B160),\"\",'F COMP Mise à jour Année 1'!B160)","v":""}]
[null,{"$f":"IF(ISBLANK('F COMP Mise à jour Année 1'!B161),\"\",'F COMP Mise à jour Année 1'!B161)","v":""}]
[null,{"$f":"IF(ISBLANK('F COMP Mise à jour Année 1'!B162),\"\",'F COMP Mise à jour Année 1'!B162)","v":""}]
[null,{"$f":"IF(ISBLANK('F COMP Mise à jour Année 1'!B163),\"\",'F COMP Mise à jour Année 1'!B163)","v":""}]
[null,{"$f":"IF(ISBLANK('D COMP Budget'!B164),\"\",'D COMP Budget'!B164)","v":"Sous-total - Revenus gagnés"},{"$f":"+'F COMP Mise à jour Année 1'!F164","v":0},{"$f":"+'D COMP Budget'!D164","v":0},{"$f":"+SUM(E159:E163,E135:E139,E147:E151,E141:E145,E153:E157)","v":0},{"$f":"+SUM(F159:F163,F135:F139,F147:F151,F141:F145,F153:F157)","v":0},{"$f":"+SUM(G159:G163,G135:G139,G147:G151,G141:G145,G153:G157)","v":0},{"$f":"+SUM(H159:H163,H135:H139,H147:H151,H141:H145,H153:H157)","v":0},{"$f":"C164+H164","v":0}]
[]
[null,{"$f":"IF(ISBLANK('D COMP Budget'!B166),\"\",'D COMP Budget'!B166)","v":"Revenus du secteur privé"}]
[null,{"$f":"IF(ISBLANK('D COMP Budget'!B167),\"\",'D COMP Budget'!B167)","v":"Commandites"}]
[null,{"$f":"IF(ISBLANK('D COMP Budget'!B168),\"\",'D COMP Budget'!B168)","v":"Dons"}]
[null,{"$f":"IF(ISBLANK('D COMP Budget'!B169),\"\",'D COMP Budget'!B169)","v":"Fondations"}]
[null,{"$f":"IF(ISBLANK('D COMP Budget'!B170),\"\",'D COMP Budget'!B170)","v":"Collectes de fonds"}]
[null,{"$f":"IF(ISBLANK('D COMP Budget'!B171),\"\",'D COMP Budget'!B171)","v":"Autre revenus du secteur privé"}]
[null,{"$f":"IF(ISBLANK('F COMP Mise à jour Année 1'!B172),\"\",'F COMP Mise à jour Année 1'!B172)","v":""}]
[null,{"$f":"IF(ISBLANK('F COMP Mise à jour Année 1'!B173),\"\",'F COMP Mise à jour Année 1'!B173)","v":""}]
[null,{"$f":"IF(ISBLANK('F COMP Mise à jour Année 1'!B174),\"\",'F COMP Mise à jour Année 1'!B174)","v":""}]
[null,{"$f":"IF(ISBLANK('F COMP Mise à jour Année 1'!B175),\"\",'F COMP Mise à jour Année 1'!B175)","v":""}]
[null,{"$f":"IF(ISBLANK('F COMP Mise à jour Année 1'!B176),\"\",'F COMP Mise à jour Année 1'!B176)","v":""}]
[null,{"$f":"IF(ISBLANK('D COMP Budget'!B177),\"\",'D COMP Budget'!B177)","v":"Sous-total - Revenus du secteur privé"},{"$f":"+'F COMP Mise à jour Année 1'!F177","v":0},{"$f":"+'D COMP Budget'!D177","v":0},{"$f":"+SUM(E172:E176,E167:E170)","v":0},{"$f":"+SUM(F172:F176,F167:F170)","v":0},{"$f":"+SUM(G172:G176,G167:G170)","v":0},{"$f":"+SUM(H172:H176,H167:H170)","v":0},{"$f":"C177+H177","v":0}]
[]
[null,{"$f":"IF(ISBLANK('D COMP Budget'!B179),\"\",'D COMP Budget'!B179)","v":"Revenus du secteur public"}]
[null,{"$f":"IF(ISBLANK('D COMP Budget'!B180),\"\",'D COMP Budget'!B180)","v":"Subvention pour cette demande, jusqu’à 100 000 $ par année, jusqu’à 3 ans"},{"$f":"+'F COMP Mise à jour Année 1'!F180","v":0},{"$f":"+'D COMP Budget'!D180","v":0},null,null,null,null,{"$f":"C180+H180","v":0}]
[null,{"$f":"IF(ISBLANK('D COMP Budget'!B181),\"\",'D COMP Budget'!B181)","v":"Soutien à l'accès aux services (Veuillez soumettre une demande distincte au Soutien à l'accès aux services)"}]
[null,{"$f":"IF(ISBLANK('D COMP Budget'!B182),\"\",'D COMP Budget'!B182)","v":"Autres subventions du Conseil des arts du Canada "}]
[null,{"$f":"IF(ISBLANK('F COMP Mise à jour Année 1'!B183),\"\",'F COMP Mise à jour Année 1'!B183)","v":""}]
[null,{"$f":"IF(ISBLANK('F COMP Mise à jour Année 1'!B184),\"\",'F COMP Mise à jour Année 1'!B184)","v":""}]
[null,{"$f":"IF(ISBLANK('F COMP Mise à jour Année 1'!B185),\"\",'F COMP Mise à jour Année 1'!B185)","v":""}]
[null,{"$f":"IF(ISBLANK('F COMP Mise à jour Année 1'!B186),\"\",'F COMP Mise à jour Année 1'!B186)","v":""}]
[null,{"$f":"IF(ISBLANK('F COMP Mise à jour Année 1'!B187),\"\",'F COMP Mise à jour Année 1'!B187)","v":""}]
[null,{"$f":"IF(ISBLANK('D COMP Budget'!B188),\"\",'D COMP Budget'!B188)","v":"Autre subvention fédérale"}]
[null,{"$f":"IF(ISBLANK('F COMP Mise à jour Année 1'!B189),\"\",'F COMP Mise à jour Année 1'!B189)","v":""}]
[null,{"$f":"IF(ISBLANK('F COMP Mise à jour Année 1'!B190),\"\",'F COMP Mise à jour Année 1'!B190)","v":""}]
[null,{"$f":"IF(ISBLANK('F COMP Mise à jour Année 1'!B191),\"\",'F COMP Mise à jour Année 1'!B191)","v":""}]
[null,{"$f":"IF(ISBLANK('F COMP Mise à jour Année 1'!B192),\"\",'F COMP Mise à jour Année 1'!B192)","v":""}]
[null,{"$f":"IF(ISBLANK('F COMP Mise à jour Année 1'!B193),\"\",'F COMP Mise à jour Année 1'!B193)","v":""}]
[null,{"$f":"IF(ISBLANK('D COMP Budget'!B194),\"\",'D COMP Budget'!B194)","v":"Subvention provinciale ou territoriale"}]
[null,{"$f":"IF(ISBLANK('F COMP Mise à jour Année 1'!B195),\"\",'F COMP Mise à jour Année 1'!B195)","v":""}]
[null,{"$f":"IF(ISBLANK('F COMP Mise à jour Année 1'!B196),\"\",'F COMP Mise à jour Année 1'!B196)","v":""}]
[null,{"$f":"IF(ISBLANK('F COMP Mise à jour Année 1'!B197),\"\",'F COMP Mise à jour Année 1'!B197)","v":""}]
[null,{"$f":"IF(ISBLANK('F COMP Mise à jour Année 1'!B198),\"\",'F COMP Mise à jour Année 1'!B198)","v":""}]
[null,{"$f":"IF(ISBLANK('F COMP Mise à jour Année 1'!B199),\"\",'F COMP Mise à jour Année 1'!B199)","v":""}]
[null,{"$f":"IF(ISBLANK('D COMP Budget'!B200),\"\",'D COMP Budget'!B200)","v":"Subvention municipale ou régionale"}]
[null,{"$f":"IF(ISBLANK('F COMP Mise à jour Année 1'!B201),\"\",'F COMP Mise à jour Année 1'!B201)","v":""}]
[null,{"$f":"IF(ISBLANK('F COMP Mise à jour Année 1'!B202),\"\",'F COMP Mise à jour Année 1'!B202)","v":""}]
[null,{"$f":"IF(ISBLANK('F COMP Mise à jour Année 1'!B203),\"\",'F COMP Mise à jour Année 1'!B203)","v":""}]
[null,{"$f":"IF(ISBLANK('F COMP Mise à jour Année 1'!B204),\"\",'F COMP Mise à jour Année 1'!B204)","v":""}]
[null,{"$f":"IF(ISBLANK('F COMP Mise à jour Année 1'!B205),\"\",'F COMP Mise à jour Année 1'!B205)","v":""}]
[null,{"$f":"IF(ISBLANK('D COMP Budget'!B206),\"\",'D COMP Budget'!B206)","v":"Autre revenus du secteur public"}]
[null,{"$f":"IF(ISBLANK('F COMP Mise à jour Année 1'!B207),\"\",'F COMP Mise à jour Année 1'!B207)","v":""}]
[null,{"$f":"IF(ISBLANK('F COMP Mise à jour Année 1'!B208),\"\",'F COMP Mise à jour Année 1'!B208)","v":""}]
[null,{"$f":"IF(ISBLANK('F COMP Mise à jour Année 1'!B209),\"\",'F COMP Mise à jour Année 1'!B209)","v":""}]
[null,{"$f":"IF(ISBLANK('F COMP Mise à jour Année 1'!B210),\"\",'F COMP Mise à jour Année 1'!B210)","v":""}]
[null,{"$f":"IF(ISBLANK('F COMP Mise à jour Année 1'!B211),\"\",'F COMP Mise à jour Année 1'!B211)","v":""}]
[null,{"$f":"IF(ISBLANK('D COMP Budget'!B212),\"\",'D COMP Budget'!B212)","v":"Sous-total - Revenus du secteur public"},{"$f":"+'F COMP Mise à jour Année 1'!F212","v":0},{"$f":"+'D COMP Budget'!D212","v":0},{"$f":"+SUM(E189:E193,E195:E199,E201:E205,E207:E211,E180:E181,E183:E187)","v":0},{"$f":"+SUM(F189:F193,F195:F199,F201:F205,F207:F211,F180:F181,F183:F187)","v":0},{"$f":"+SUM(G189:G193,G195:G199,G201:G205,G207:G211,G180:G181,G183:G187)","v":0},{"$f":"+SUM(H189:H193,H195:H199,H201:H205,H207:H211,H180:H181,H183:H187)","v":0},{"$f":"C212+H212","v":0}]
[]
[null,{"$f":"IF(ISBLANK('D COMP Budget'!B214),\"\",'D COMP Budget'!B214)","v":"Services en nature"}]
[null,{"$f":"IF(ISBLANK('F COMP Mise à jour Année 1'!B215),\"\",'F COMP Mise à jour Année 1'!B215)","v":""}]
[null,{"$f":"IF(ISBLANK('F COMP Mise à jour Année 1'!B216),\"\",'F COMP Mise à jour Année 1'!B216)","v":""}]
[null,{"$f":"IF(ISBLANK('F COMP Mise à jour Année 1'!B217),\"\",'F COMP Mise à jour Année 1'!B217)","v":""}]
[null,{"$f":"IF(ISBLANK('F COMP Mise à jour Année 1'!B218),\"\",'F COMP Mise à jour Année 1'!B218)","v":""}]
[null,{"$f":"IF(ISBLANK('F COMP Mise à jour Année 1'!B219),\"\",'F COMP Mise à jour Année 1'!B219)","v":""}]
[null,{"$f":"IF(ISBLANK('D COMP Budget'!B220),\"\",'D COMP Budget'!B220)","v":"Sous-total – Services en nature"},{"$f":"+'F COMP Mise à jour Année 1'!F220","v":0},{"$f":"+'D COMP Budget'!D220","v":0},{"$f":"+SUM(E215:E219)","v":0},{"$f":"+SUM(F215:F219)","v":0},{"$f":"+SUM(G215:G219)","v":0},{"$f":"+SUM(H215:H219)","v":0},{"$f":"C220+H220","v":0}]
[]
[null,{"$f":"IF(ISBLANK('D COMP Budget'!B222),\"\",'D COMP Budget'!B222)","v":"Autres revenus"}]
[null,{"$f":"IF(ISBLANK('F COMP Mise à jour Année 1'!B223),\"\",'F COMP Mise à jour Année 1'!B223)","v":""}]
[null,{"$f":"IF(ISBLANK('F COMP Mise à jour Année 1'!B224),\"\",'F COMP Mise à jour Année 1'!B224)","v":""}]
[null,{"$f":"IF(ISBLANK('F COMP Mise à jour Année 1'!B225),\"\",'F COMP Mise à jour Année 1'!B225)","v":""}]
[null,{"$f":"IF(ISBLANK('F COMP Mise à jour Année 1'!B226),\"\",'F COMP Mise à jour Année 1'!B226)","v":""}]
[null,{"$f":"IF(ISBLANK('F COMP Mise à jour Année 1'!B227),\"\",'F COMP Mise à jour Année 1'!B227)","v":""}]
[null,{"$f":"IF(ISBLANK('D COMP Budget'!B228),\"\",'D COMP Budget'!B228)","v":"Paiements différés"}]
[null,{"$f":"IF(ISBLANK('F COMP Mise à jour Année 1'!B229),\"\",'F COMP Mise à jour Année 1'!B229)","v":""}]
[null,{"$f":"IF(ISBLANK('F COMP Mise à jour Année 1'!B230),\"\",'F COMP Mise à jour Année 1'!B230)","v":""}]
[null,{"$f":"IF(ISBLANK('F COMP Mise à jour Année 1'!B231),\"\",'F COMP Mise à jour Année 1'!B231)","v":""}]
[null,{"$f":"IF(ISBLANK('D COMP Budget'!B232),\"\",'D COMP Budget'!B232)","v":"Sous-total - Autres revenus"},{"$f":"+'F COMP Mise à jour Année 1'!F232","v":0},{"$f":"+'D COMP Budget'!D232","v":0},{"$f":"+SUM(E229:E231,E223:E227)","v":0},{"$f":"+SUM(F229:F231,F223:F227)","v":0},{"$f":"+SUM(G229:G231,G223:G227)","v":0},{"$f":"+SUM(H229:H231,H223:H227)","v":0},{"$f":"C232+H232","v":0}]
[]
[null,{"$f":"IF(ISBLANK('D COMP Budget'!B234),\"\",'D COMP Budget'!B234)","v":"Total des revenus"},{"$f":"C164+C177+C212+C232+C220","v":0},0,0,0,0,0,{"$f":"C234+H234","v":0}]
[]
[null,{"$f":"IF(ISBLANK('D COMP Budget'!B236),\"\",'D COMP Budget'!B236)","v":"Total des coûts"},{"$f":"C127","v":0},0,0,0,0,0,{"$f":"C236+H236","v":0}]
[]
[null,{"$f":"IF(ISBLANK('D COMP Budget'!B238),\"\",'D COMP Budget'!B238)","v":"Excédent (Déficit)"},{"$f":"C234-C236","v":0},0,0,0,0,0,0]
[]
[null,{"$f":"IF(ISBLANK('D COMP Budget'!B240),\"\",'D COMP Budget'!B240)","v":"% du Total des coûts que représente la subvention"},{"$f":"IFERROR((C180/C236),\"\")","v":""},"","","","","",""]
[]
[null,"Les cachets d'artistes, droits d’auteur et redevances doivent être payables à tous les artistes canadiens. Ces montants doivent être acceptés par les artistes et le demandeur, et doivent être la même, ou supérieur, aux normes canadiennes actuelles."]

{"sheet":"H COMP Mise à jour Année 3","index":8,"n_rows":242,"n_cols":11,"rows_kept":242,"cut":false,"hidden":false,"merged":[[181,2,181,10],[39,1,39,10],[96,2,96,10],[97,2,97,10],[111,1,111,10],[129,1,129,10],[170,2,170,10],[139,2,139,10],[145,2,145,10],[151,2,151,10],[157,2,157,10],[24,1,24,10],[1,1,1,10],[9,1,9,10],[4,1,7,1],[133,2,133,10],[241,2,242,6],[187,2,187,10],[193,2,193,10],[199,2,199,10],[205,2,205,10],[227,2,227,10]]}
[null,"v.201704"]
[null,"Appuyer la pratique artistique : Innovation et développement du secteur - Subventions  composites (Mise à jour Année 3)"]
[]
[null,"Veuillez inscrire ci-dessous les dépenses relatives à votre projet  ","Données réelles, 1er exercice ","Données réelles, 2e exercice ","Budget, 3e exercice","1re mise à jour, 3e exercice, \nau besoin","2me mise à jour, 3e exercice, \nau besoin","3me mise à jour, 3e exercice, \nau besoin","Données réelles, 3e exercice ","Données réelles, 1er, 2e, et 3e exercices ","Notes au budget (facultatif) "]
[null,"Vos données dans les lignes ci-dessous sont transmises à partir de votre budget précédent. Vous pouvez les modifier si nécessaire.","de","de","de","de","de","de","de"]
[null,null,{"$f":"+'G COMP Mise à jour Année 2'!C6","v":"Date :"},{"$f":"+'G COMP Mise à jour Année 2'!H6","v":"Date :"},{"$f":"+'D COMP Budget'!E6","v":"Date :"},"Date :","Date :","Date :","Date :"]
[null,null,"à","à","à","à","à","à","à"]
[null,null,{"$f":"+'G COMP Mise à jour Année 2'!C8","v":"Date :"},{"$f":"+'G COMP Mise à jour Année 2'!H8","v":"Date :"},{"$f":"+'D COMP Budget'!E8","v":"Date :"},"Date :","Date :","Date :","Date :"]
[]
[null,"Honoraires professionnels"]
[null,{"$f":"IF(ISBLANK('D COMP Budget'!B11),\"\",'D COMP Budget'!B11)","v":"Expert-conseil, responsable des ateliers, technicien, mentor, personnel chargé de la documentation et responsable de l’événement, par exemple"}]
[null,{"$f":"IF(ISBLANK('D COMP Budget'!B12),\"\",'D COMP Budget'!B12)","v":"Redevances et droits d’auteur"}]
[null,{"$f":"IF(ISBLANK('G COMP Mise à jour Année 2'!B13),\"\",'G COMP Mise à jour Année 2'!B13)","v":""}]
[null,{"$f":"IF(ISBLANK('G COMP Mise à jour Année 2'!B14),\"\",'G COMP Mise à jour Année 2'!B14)","v":""}]
[null,{"$f":"IF(ISBLANK('G COMP Mise à jour Année 2'!B15),\"\",'G COMP Mise à jour Année 2'!B15)","v":""}]
[null,{"$f":"IF(ISBLANK('G COMP Mise à jour Année 2'!B16),\"\",'G COMP Mise à jour Année 2'!B16)","v":""}]
[null,{"$f":"IF(ISBLANK('G COMP Mise à jour Année 2'!B17),\"\",'G COMP Mise à jour Année 2'!B17)","v":""}]
[null,{"$f":"IF(ISBLANK('G COMP Mise à jour Année 2'!B18),\"\",'G COMP Mise à jour Année 2'!B18)","v":""}]
[null,{"$f":"IF(ISBLANK('G COMP Mise à jour Année 2'!B19),\"\",'G COMP Mise à jour Année 2'!B19)","v":""}]
[null,{"$f":"IF(ISBLANK('G COMP Mise à jour Année 2'!B20),\"\",'G COMP Mise à jour Année 2'!B20)","v":""}]
[null,{"$f":"IF(ISBLANK('G COMP Mise à jour Année 2'!B21),\"\",'G COMP Mise à jour Année 2'!B21)","v":""}]
[null,{"$f":"IF(ISBLANK('G COMP Mise à jour Année 2'!B22),\"\",'G COMP Mise à jour Année 2'!B22)","v":""}]
[null,{"$f":"IF(ISBLANK('D COMP Budget'!B23),\"\",'D COMP Budget'!B23)","v":"Sous-total - Honoraires professionnels "},{"$f":"+'F COMP Mise à jour Année 1'!F23","v":0},{"$f":"+'G COMP Mise à jour Année 2'!H23","v":0},{"$f":"+'D COMP Budget'!E23","v":0},{"$f":"SUM(F12:F22)","v":0},{"$f":"SUM(G12:G22)","v":0},{"$f":"SUM(H12:H22)","v":0},{"$f":"SUM(I12:I22)","v":0},{"$f":"C23+D23+I23","v":0}]
[]
[null,"Frais de déplacement et de transport","","","","","","",{"$error":"#REF!"},"",""]
[null,{"$f":"IF(ISBLANK('D COMP Budget'!B26),\"\",'D COMP Budget'!B26)","v":"Par ex., frais de déplacement; transport et expédition des marchandises ou bagages additionnels; emballage et empaquetage; Indemnité journalière et hébergement, maximum de 150 $ par jour."}]
[null,{"$f":"IF(ISBLANK('G COMP Mise à jour Année 2'!B27),\"\",'G COMP Mise à jour Année 2'!B27)","v":""}]
[null,{"$f":"IF(ISBLANK('G COMP Mise à jour Année 2'!B28),\"\",'G COMP Mise à jour Année 2'!B28)","v":""}]
[null,{"$f":"IF(ISBLANK('G COMP Mise à jour Année 2'!B29),\"\",'G COMP Mise à jour Année 2'!B29)","v":""}]
[null,{"$f":"IF(ISBLANK('G COMP Mise à jour Année 2'!B30),\"\",'G COMP Mise à jour Année 2'!B30)","v":""}]
[null,{"$f":"IF(ISBLANK('G COMP Mise à jour Année 2'!B31),\"\",'G COMP Mise à jour Année 2'!B31)","v":""}]
[null,{"$f":"IF(ISBLANK('G COMP Mise à jour Année 2'!B32),\"\",'G COMP Mise à jour Année 2'!B32)","v":""}]
[null,{"$f":"IF(ISBLANK('G COMP Mise à jour Année 2'!B33),\"\",'G COMP Mise à jour Année 2'!B33)","v":""}]
[null,{"$f":"IF(ISBLANK('G COMP Mise à jour Année 2'!B34),\"\",'G COMP Mise à jour Année 2'!B34)","v":""}]
[null,{"$f":"IF(ISBLANK('G COMP Mise à jour Année 2'!B35),\"\",'G COMP Mise à jour Année 2'!B35)","v":""}]
[null,{"$f":"IF(ISBLANK('G COMP Mise à jour Année 2'!B36),\"\",'G COMP Mise à jour Année 2'!B36)","v":""}]
[null,{"$f":"IF(ISBLANK('G COMP Mise à jour Année 2'!B37),\"\",'G COMP Mise à jour Année 2'!B37)","v":""}]
[null,{"$f":"IF(ISBLANK('D COMP Budget'!B38),\"\",'D COMP Budget'!B38)","v":"Sous-total - Frais de déplacement "},{"$f":"+'F COMP Mise à jour Année 1'!F38","v":0},{"$f":"+'G COMP Mise à jour Année 2'!H38","v":0},{"$f":"+'D COMP Budget'!E38","v":0},{"$f":"SUM(F27:F37)","v":0},{"$f":"SUM(G27:G37)","v":0},{"$f":"SUM(H27:H37)","v":0},{"$f":"SUM(I27:I37)","v":0},{"$f":"C38+D38+I38","v":0}]
[]
[null,{"$f":"IF(ISBLANK('D COMP Budget'!B40),\"\",'D COMP Budget'!B40)","v":"Coûts des activités"},{"$f":"IF(ISBLANK('D COMP Budget'!C40),\"\",'D COMP Budget'!C40)","v":""},{"$f":"IF(ISBLANK('D COMP Budget'!D40),\"\",'D COMP Budget'!D40)","v":""},{"$f":"IF(ISBLANK('D COMP Budget'!E40),\"\",'D COMP Budget'!E40)","v":""},{"$f":"IF(ISBLANK('D COMP Budget'!F40),\"\",'D COMP Budget'!F40)","v":""},{"$f":"IF(ISBLANK('D COMP Budget'!G40),\"\",'D COMP Budget'!G40)","v":""},{"$f":"IF(ISBLANK('D COMP Budget'!H40),\"\",'D COMP Budget'!H40)","v":""},{"$f":"IF(ISBLANK('D COMP Budget'!#REF!),\"\",'D COMP Budget'!#REF!)","v":{"$error":"#REF!"}},{"$f":"IF(ISBLANK('D COMP Budget'!I40),\"\",'D COMP Budget'!I40)","v":""},{"$f":"IF(ISBLANK('D COMP Budget'!J40),\"\",'D COMP Budget'!J40)","v":""}]
[null,{"$f":"IF(ISBLANK('D COMP Budget'!B41),\"\",'D COMP Budget'!B41)","v":"Comprennent l’accessibilité du public, par ex. interprétation gestuelle, sous-titrage, description audio, etc."}]
[null,{"$f":"IF(ISBLANK('D COMP Budget'!B42),\"\",'D COMP Budget'!B42)","v":"Location des lieux"}]
[null,{"$f":"IF(ISBLANK('G COMP Mise à jour Année 2'!B43),\"\",'G COMP Mise à jour Année 2'!B43)","v":""}]
[null,{"$f":"IF(ISBLANK('G COMP Mise à jour Année 2'!B44),\"\",'G COMP Mise à jour Année 2'!B44)","v":""}]
[null,{"$f":"IF(ISBLANK('G COMP Mise à jour Année 2'!B45),\"\",'G COMP Mise à jour Année 2'!B45)","v":""}]
[null,{"$f":"IF(ISBLANK('G COMP Mise à jour Année 2'!B46),\"\",'G COMP Mise à jour Année 2'!B46)","v":""}]
[null,{"$f":"IF(ISBLANK('G COMP Mise à jour Année 2'!B47),\"\",'G COMP Mise à jour Année 2'!B47)","v":""}]
[null,{"$f":"IF(ISBLANK('D COMP Budget'!B48),\"\",'D COMP Budget'!B48)","v":"Location d’équipement"}]
[null,{"$f":"IF(ISBLANK('G COMP Mise à jour Année 2'!B49),\"\",'G COMP Mise à jour Année 2'!B49)","v":""}]
[null,{"$f":"IF(ISBLANK('G COMP Mise à jour Année 2'!B50),\"\",'G COMP Mise à jour Année 2'!B50)","v":""}]
[null,{"$f":"IF(ISBLANK('G COMP Mise à jour Année 2'!B51),\"\",'G COMP Mise à jour Année 2'!B51)","v":""}]
[null,{"$f":"IF(ISBLANK('G COMP Mise à jour Année 2'!B52),\"\",'G COMP Mise à jour Année 2'!B52)","v":""}]
[null,{"$f":"IF(ISBLANK('G COMP Mise à jour Année 2'!B53),\"\",'G COMP Mise à jour Année 2'!B53)","v":""}]
[null,{"$f":"IF(ISBLANK('D COMP Budget'!B54),\"\",'D COMP Budget'!B54)","v":"Matériel et fournitures"}]
[null,{"$f":"IF(ISBLANK('G COMP Mise à jour Année 2'!B55),\"\",'G COMP Mise à jour Année 2'!B55)","v":""}]
[null,{"$f":"IF(ISBLANK('G COMP Mise à jour Année 2'!B56),\"\",'G COMP Mise à jour Année 2'!B56)","v":""}]
[null,{"$f":"IF(ISBLANK('G COMP Mise à jour Année 2'!B57),\"\",'G COMP Mise à jour Année 2'!B57)","v":""}]
[null,{"$f":"IF(ISBLANK('G COMP Mise à jour Année 2'!B58),\"\",'G COMP Mise à jour Année 2'!B58)","v":""}]
[null,{"$f":"IF(ISBLANK('G COMP Mise à jour Année 2'!B59),\"\",'G COMP Mise à jour Année 2'!B59)","v":""}]
[null,{"$f":"IF(ISBLANK('G COMP Mise à jour Année 2'!B60),\"\",'G COMP Mise à jour Année 2'!B60)","v":""}]
[null,{"$f":"IF(ISBLANK('G COMP Mise à jour Année 2'!B61),\"\",'G COMP Mise à jour Année 2'!B61)","v":""}]
[null,{"$f":"IF(ISBLANK('G COMP Mise à jour Année 2'!B62),\"\",'G COMP Mise à jour Année 2'!B62)","v":""}]
[null,{"$f":"IF(ISBLANK('G COMP Mise à jour Année 2'!B63),\"\",'G COMP Mise à jour Année 2'!B63)","v":""}]
[null,{"$f":"IF(ISBLANK('G COMP Mise à jour Année 2'!B64),\"\",'G COMP Mise à jour Année 2'!B64)","v":""}]
[null,{"$f":"IF(ISBLANK('D COMP Budget'!B65),\"\",'D COMP Budget'!B65)","v":"Publications - numériques et imprimés"}]
[null,{"$f":"IF(ISBLANK('G COMP Mise à jour Année 2'!B66),\"\",'G COMP Mise à jour Année 2'!B66)","v":""}]
[null,{"$f":"IF(ISBLANK('G COMP Mise à jour Année 2'!B67),\"\",'G COMP Mise à jour Année 2'!B67)","v":""}]
[null,{"$f":"IF(ISBLANK('G COMP Mise à jour Année 2'!B68),\"\",'G COMP Mise à jour Année 2'!B68)","v":""}]
[null,{"$f":"IF(ISBLANK('G COMP Mise à jour Année 2'!B69),\"\",'G COMP Mise à jour Année 2'!B69)","v":""}]
[null,{"$f":"IF(ISBLANK('G COMP Mise à jour Année 2'!B70),\"\",'G COMP Mise à jour Année 2'!B70)","v":""}]
[null,{"$f":"IF(ISBLANK('G COMP Mise à jour Année 2'!B71),\"\",'G COMP Mise à jour Année 2'!B71)","v":""}]
[null,{"$f":"IF(ISBLANK('G COMP Mise à jour Année 2'!B72),\"\",'G COMP Mise à jour Année 2'!B72)","v":""}]
[null,{"$f":"IF(ISBLANK('G COMP Mise à jour Année 2'!B73),\"\",'G COMP Mise à jour Année 2'!B73)","v":""}]
[null,{"$f":"IF(ISBLANK('G COMP Mise à jour Année 2'!B74),\"\",'G COMP Mise à jour Année 2'!B74)","v":""}]
[null,{"$f":"IF(ISBLANK('G COMP Mise à jour Année 2'!B75),\"\",'G COMP Mise à jour Année 2'!B75)","v":""}]
[null,{"$f":"IF(ISBLANK('D COMP Budget'!B76),\"\",'D COMP Budget'!B76)","v":"Autres coûts"}]
[null,{"$f":"IF(ISBLANK('D COMP Budget'!B77),\"\",'D COMP Budget'!B77)","v":"Conception Web, documentation, communication des constatations, exposition, programmation, reproduction, catalogage, étude et diffusion, par exemple"}]
[null,"Coût d'accès: coûts reliés aux mesures de soutien et services pour artistes et professionnels des arts sourds ou handicapés impliqués dans les activités"]
[null,{"$f":"IF(ISBLANK('G COMP Mise à jour Année 2'!B79),\"\",'G COMP Mise à jour Année 2'!B79)","v":""}]
[null,{"$f":"IF(ISBLANK('G COMP Mise à jour Année 2'!B80),\"\",'G COMP Mise à jour Année 2'!B80)","v":""}]
[null,{"$f":"IF(ISBLANK('G COMP Mise à jour Année 2'!B81),\"\",'G COMP Mise à jour Année 2'!B81)","v":""}]
[null,{"$f":"IF(ISBLANK('G COMP Mise à jour Année 2'!B82),\"\",'G COMP Mise à jour Année 2'!B82)","v":""}]
[null,{"$f":"IF(ISBLANK('G COMP Mise à jour Année 2'!B83),\"\",'G COMP Mise à jour Année 2'!B83)","v":""}]
[null,{"$f":"IF(ISBLANK('G COMP Mise à jour Année 2'!B84),\"\",'G COMP Mise à jour Année 2'!B84)","v":""}]
[null,{"$f":"IF(ISBLANK('G COMP Mise à jour Année 2'!B85),\"\",'G COMP Mise à jour Année 2'!B85)","v":""}]
[null,{"$f":"IF(ISBLANK('G COMP Mise à jour Année 2'!B86),\"\",'G COMP Mise à jour Année 2'!B86)","v":""}]
[null,{"$f":"IF(ISBLANK('G COMP Mise à jour Année 2'!B87),\"\",'G COMP Mise à jour Année 2'!B87)","v":""}]
[null,{"$f":"IF(ISBLANK('G COMP Mise à jour Année 2'!B88),\"\",'G COMP Mise à jour Année 2'!B88)","v":""}]
[null,{"$f":"IF(ISBLANK('G COMP Mise à jour Année 2'!B89),\"\",'G COMP Mise à jour Année 2'!B89)","v":""}]
[null,{"$f":"IF(ISBLANK('G COMP Mise à jour Année 2'!B90),\"\",'G COMP Mise à jour Année 2'!B90)","v":""}]
[null,{"$f":"IF(ISBLANK('G COMP Mise à jour Année 2'!B91),\"\",'G COMP Mise à jour Année 2'!B91)","v":""}]
[null,{"$f":"IF(ISBLANK('G COMP Mise à jour Année 2'!B92),\"\",'G COMP Mise à jour Année 2'!B92)","v":""}]
[null,{"$f":"IF(ISBLANK('G COMP Mise à jour Année 2'!B93),\"\",'G COMP Mise à jour Année 2'!B93)","v":""}]
[null,{"$f":"IF(ISBLANK('D COMP Budget'!B94),\"\",'D COMP Budget'!B94)","v":"Sous-total - Coûts des activités"},{"$f":"+'F COMP Mise à jour Année 1'!F94","v":0},{"$f":"+'G COMP Mise à jour Année 2'!H94","v":0},{"$f":"+'D COMP Budget'!E94","v":0},{"$f":"+SUM(F43:F47,F49:F53,F55:F64,F66:F75,F78:F93)","v":0},{"$f":"+SUM(G43:G47,G49:G53,G55:G64,G66:G75,G78:G93)","v":0},{"$f":"+SUM(H43:H47,H49:H53,H55:H64,H66:H75,H78:H93)","v":0},{"$f":"+SUM(I43:I47,I49:I53,I55:I64,I66:I75,I78:I93)","v":0},{"$f":"C94+D94+I94","v":0}]
[]
[null,"Promotion et marketing"]
[null,{"$f":"IF(ISBLANK('D COMP Budget'!B97),\"\",'D COMP Budget'!B97)","v":"Développement des publics, activités de rayonnement, matériel de communication,publicité et promotions, par exemple."}]
[null,{"$f":"IF(ISBLANK('D COMP Budget'!B98),\"\",'D COMP Budget'!B98)","v":"Personnel chargé de la promotion et marketing"}]
[null,{"$f":"IF(ISBLANK('G COMP Mise à jour Année 2'!B99),\"\",'G COMP Mise à jour Année 2'!B99)","v":""}]
[null,{"$f":"IF(ISBLANK('G COMP Mise à jour Année 2'!B100),\"\",'G COMP Mise à jour Année 2'!B100)","v":""}]
[null,{"$f":"IF(ISBLANK('G COMP Mise à jour Année 2'!B101),\"\",'G COMP Mise à jour Année 2'!B101)","v":""}]
[null,{"$f":"IF(ISBLANK('G COMP Mise à jour Année 2'!B102),\"\",'G COMP Mise à jour Année 2'!B102)","v":""}]
[null,{"$f":"IF(ISBLANK('G COMP Mise à jour Année 2'!B103),\"\",'G COMP Mise à jour Année 2'!B103)","v":""}]
[null,{"$f":"IF(ISBLANK('D COMP Budget'!B104),\"\",'D COMP Budget'!B104)","v":"Coûts promotionnels"}]
[null,{"$f":"IF(ISBLANK('G COMP Mise à jour Année 2'!B105),\"\",'G COMP Mise à jour Année 2'!B105)","v":""}]
[null,{"$f":"IF(ISBLANK('G COMP Mise à jour Année 2'!B106),\"\",'G COMP Mise à jour Année 2'!B106)","v":""}]
[null,{"$f":"IF(ISBLANK('G COMP Mise à jour Année 2'!B107),\"\",'G COMP Mise à jour Année 2'!B107)","v":""}]
[null,{"$f":"IF(ISBLANK('G COMP Mise à jour Année 2'!B108),\"\",'G COMP Mise à jour Année 2'!B108)","v":""}]
[null,{"$f":"IF(ISBLANK('G COMP Mise à jour Année 2'!B109),\"\",'G COMP Mise à jour Année 2'!B109)","v":""}]
[null,{"$f":"IF(ISBLANK('D COMP Budget'!B110),\"\",'D COMP Budget'!B110)","v":"Sous-total - Promotion et marketing"},{"$f":"+'F COMP Mise à jour Année 1'!F110","v":0},{"$f":"+'G COMP Mise à jour Année 2'!H110","v":0},{"$f":"+'D COMP Budget'!E110","v":0},{"$f":"+SUM(F105:F109,F99:F103)","v":0},{"$f":"+SUM(G105:G109,G99:G103)","v":0},{"$f":"+SUM(H105:H109,H99:H103)","v":0},{"$f":"+SUM(I105:I109,I99:I103)","v":0},{"$f":"C110+D110+I110","v":0}]
[]
[null,"Coûts de gestion"]
[null,{"$f":"IF(ISBLANK('D COMP Budget'!B113),\"\",'D COMP Budget'!B113)","v":"Personnel chargé de l’administration"}]
[null,{"$f":"IF(ISBLANK('G COMP Mise à jour Année 2'!B114),\"\",'G COMP Mise à jour Année 2'!B114)","v":""}]
[null,{"$f":"IF(ISBLANK('G COMP Mise à jour Année 2'!B115),\"\",'G COMP Mise à jour Année 2'!B115)","v":""}]
[null,{"$f":"IF(ISBLANK('G COMP Mise à jour Année 2'!B116),\"\",'G COMP Mise à jour Année 2'!B116)","v":""}]
[null,{"$f":"IF(ISBLANK('G COMP Mise à jour Année 2'!B117),\"\",'G COMP Mise à jour Année 2'!B117)","v":""}]
[null,{"$f":"IF(ISBLANK('G COMP Mise à jour Année 2'!B118),\"\",'G COMP Mise à jour Année 2'!B118)","v":""}]
[null,{"$f":"IF(ISBLANK('D COMP Budget'!B119),\"\",'D COMP Budget'!B119)","v":"Coûts administratifs"}]
[null,{"$f":"IF(ISBLANK('G COMP Mise à jour Année 2'!B120),\"\",'G COMP Mise à jour Année 2'!B120)","v":""}]
[null,{"$f":"IF(ISBLANK('G COMP Mise à jour Année 2'!B121),\"\",'G COMP Mise à jour Année 2'!B121)","v":""}]
[null,{"$f":"IF(ISBLANK('G COMP Mise à jour Année 2'!B122),\"\",'G COMP Mise à jour Année 2'!B122)","v":""}]
[null,{"$f":"IF(ISBLANK('G COMP Mise à jour Année 2'!B123),\"\",'G COMP Mise à jour Année 2'!B123)","v":""}]
[null,{"$f":"IF(ISBLANK('G COMP Mise à jour Année 2'!B124),\"\",'G COMP Mise à jour Année 2'!B124)","v":""}]
[null,{"$f":"IF(ISBLANK('D COMP Budget'!B125),\"\",'D COMP Budget'!B125)","v":"Sous-total - Coûts de gestion"},{"$f":"+'F COMP Mise à jour Année 1'!F125","v":0},{"$f":"+'G COMP Mise à jour Année 2'!H125","v":0},{"$f":"+'D COMP Budget'!E125","v":0},{"$f":"+SUM(F120:F124,F114:F118)","v":0},{"$f":"+SUM(G120:G124,G114:G118)","v":0},{"$f":"+SUM(H120:H124,H114:H118)","v":0},{"$f":"+SUM(I120:I124,I114:I118)","v":0},{"$f":"C125+D125+I125","v":0}]
[]
[null,{"$f":"IF(ISBLANK('D COMP Budget'!B127),\"\",'D COMP Budget'!B127)","v":"Total des coûts"},{"$f":"+'F COMP Mise à jour Année 1'!F127","v":0},{"$f":"+'G COMP Mise à jour Année 2'!H127","v":0},{"$f":"+'D COMP Budget'!E127","v":0},{"$f":"+F23+F94+F110+F125+F38","v":0},{"$f":"+G23+G94+G110+G125+G38","v":0},{"$f":"+H23+H94+H110+H125+H38","v":0},{"$f":"+I23+I94+I110+I125+I38","v":0},{"$f":"C127+D127+I127","v":0}]
[]
[]
[null,"Revenus"]
[]
[null,null,"Données réelles, 1er exercice ","Données réelles, 2e exercice ","Budget, 3e exercice","1re mise à jour, 3e exercice, \nau besoin","2me mise à jour, 3e exercice, \nau besoin","3me mise à jour, 3e exercice, \nau besoin","Données réelles, 3e exercice ","Données réelles, 1er, 2e, et 3e exercices ","Notes au budget (facultatif) "]
[null,{"$f":"IF(ISBLANK('D COMP Budget'!B133),\"\",'D COMP Budget'!B133)","v":"Revenus gagnés"}]
[null,{"$f":"IF(ISBLANK('D COMP Budget'!B134),\"\",'D COMP Budget'!B134)","v":"Frais d’inscription, ventes de billets"}]
[null,{"$f":"IF(ISBLANK('G COMP Mise à jour Année 2'!B135),\"\",'G COMP Mise à jour Année 2'!B135)","v":""}]
[null,{"$f":"IF(ISBLANK('G COMP Mise à jour Année 2'!B136),\"\",'G COMP Mise à jour Année 2'!B136)","v":""}]
[null,{"$f":"IF(ISBLANK('G COMP Mise à jour Année 2'!B137),\"\",'G COMP Mise à jour Année 2'!B137)","v":""}]
[null,{"$f":"IF(ISBLANK('G COMP Mise à jour Année 2'!B138),\"\",'G COMP Mise à jour Année 2'!B138)","v":""}]
[null,{"$f":"IF(ISBLANK('G COMP Mise à jour Année 2'!B139),\"\",'G COMP Mise à jour Année 2'!B139)","v":""}]
[null,{"$f":"IF(ISBLANK('D COMP Budget'!B140),\"\",'D COMP Budget'!B140)","v":"Abonnements, droits d’adhésion"}]
[null,{"$f":"IF(ISBLANK('G COMP Mise à jour Année 2'!B141),\"\",'G COMP Mise à jour Année 2'!B141)","v":""}]
[null,{"$f":"IF(ISBLANK('G COMP Mise à jour Année 2'!B142),\"\",'G COMP Mise à jour Année 2'!B142)","v":""}]
[null,{"$f":"IF(ISBLANK('G COMP Mise à jour Année 2'!B143),\"\",'G COMP Mise à jour Année 2'!B143)","v":""}]
[null,{"$f":"IF(ISBLANK('G COMP Mise à jour Année 2'!B144),\"\",'G COMP Mise à jour Année 2'!B144)","v":""}]
[null,{"$f":"IF(ISBLANK('G COMP Mise à jour Année 2'!B145),\"\",'G COMP Mise à jour Année 2'!B145)","v":""}]
[null,{"$f":"IF(ISBLANK('D COMP Budget'!B146),\"\",'D COMP Budget'!B146)","v":"Frais de service"}]
[null,{"$f":"IF(ISBLANK('G COMP Mise à jour Année 2'!B147),\"\",'G COMP Mise à jour Année 2'!B147)","v":""}]
[null,{"$f":"IF(ISBLANK('G COMP Mise à jour Année 2'!B148),\"\",'G COMP Mise à jour Année 2'!B148)","v":""}]
[null,{"$f":"IF(ISBLANK('G COMP Mise à jour Année 2'!B149),\"\",'G COMP Mise à jour Année 2'!B149)","v":""}]
[null,{"$f":"IF(ISBLANK('G COMP Mise à jour Année 2'!B150),\"\",'G COMP Mise à jour Année 2'!B150)","v":""}]
[null,{"$f":"IF(ISBLANK('G COMP Mise à jour Année 2'!B151),\"\",'G COMP Mise à jour Année 2'!B151)","v":""}]
[null,{"$f":"IF(ISBLANK('D COMP Budget'!B152),\"\",'D COMP Budget'!B152)","v":"Vente de produits"}]
[null,{"$f":"IF(ISBLANK('G COMP Mise à jour Année 2'!B153),\"\",'G COMP Mise à jour Année 2'!B153)","v":""}]
[null,{"$f":"IF(ISBLANK('G COMP Mise à jour Année 2'!B154),\"\",'G COMP Mise à jour Année 2'!B154)","v":""}]
[null,{"$f":"IF(ISBLANK('G COMP Mise à jour Année 2'!B155),\"\",'G COMP Mise à jour Année 2'!B155)","v":""}]
[null,{"$f":"IF(ISBLANK('G COMP Mise à jour Année 2'!B156),\"\",'G COMP Mise à jour Année 2'!B156)","v":""}]
[null,{"$f":"IF(ISBLANK('G COMP Mise à jour Année 2'!B157),\"\",'G COMP Mise à jour Année 2'!B157)","v":""}]
[null,{"$f":"IF(ISBLANK('D COMP Budget'!B158),\"\",'D COMP Budget'!B158)","v":"Autres revenus gagnés"}]
[null,{"$f":"IF(ISBLANK('G COMP Mise à jour Année 2'!B159),\"\",'G COMP Mise à jour Année 2'!B159)","v":""}]
[null,{"$f":"IF(ISBLANK('G COMP Mise à jour Année 2'!B160),\"\",'G COMP Mise à jour Année 2'!B160)","v":""}]
[null,{"$f":"IF(ISBLANK('G COMP Mise à jour Année 2'!B161),\"\",'G COMP Mise à jour Année 2'!B161)","v":""}]
[null,{"$f":"IF(ISBLANK('G COMP Mise à jour Année 2'!B162),\"\",'G COMP Mise à jour Année 2'!B162)","v":""}]
[null,{"$f":"IF(ISBLANK('G COMP Mise à jour Année 2'!B163),\"\",'G COMP Mise à jour Année 2'!B163)","v":""}]
[null,{"$f":"IF(ISBLANK('D COMP Budget'!B164),\"\",'D COMP Budget'!B164)","v":"Sous-total - Revenus gagnés"},{"$f":"+'F COMP Mise à jour Année 1'!F164","v":0},{"$f":"+'G COMP Mise à jour Année 2'!H164","v":0},{"$f":"+'D COMP Budget'!E164","v":0},{"$f":"+SUM(F159:F163,F135:F139,F147:F151,F141:F145,F153:F157)","v":0},{"$f":"+SUM(G159:G163,G135:G139,G147:G151,G141:G145,G153:G157)","v":0},{"$f":"+SUM(H159:H163,H135:H139,H147:H151,H141:H145,H153:H157)","v":0},{"$f":"+SUM(I159:I163,I135:I139,I147:I151,I141:I145,I153:I157)","v":0},{"$f":"C164+D164+I164","v":0}]
[]
[null,{"$f":"IF(ISBLANK('D COMP Budget'!B166),\"\",'D COMP Budget'!B166)","v":"Revenus du secteur privé"}]
[null,{"$f":"IF(ISBLANK('D COMP Budget'!B167),\"\",'D COMP Budget'!B167)","v":"Commandites"}]
[null,{"$f":"IF(ISBLANK('D COMP Budget'!B168),\"\",'D COMP Budget'!B168)","v":"Dons"}]
[null,{"$f":"IF(ISBLANK('D COMP Budget'!B169),\"\",'D COMP Budget'!B169)","v":"Fondations"}]
[null,{"$f":"IF(ISBLANK('D COMP Budget'!B170),\"\",'D COMP Budget'!B170)","v":"Collectes de fonds"}]
[null,{"$f":"IF(ISBLANK('D COMP Budget'!B171),\"\",'D COMP Budget'!B171)","v":"Autre revenus du secteur privé"}]
[null,{"$f":"IF(ISBLANK('G COMP Mise à jour Année 2'!B172),\"\",'G COMP Mise à jour Année 2'!B172)","v":""}]
[null,{"$f":"IF(ISBLANK('G COMP Mise à jour Année 2'!B173),\"\",'G COMP Mise à jour Année 2'!B173)","v":""}]
[null,{"$f":"IF(ISBLANK('G COMP Mise à jour Année 2'!B174),\"\",'G COMP Mise à jour Année 2'!B174)","v":""}]
[null,{"$f":"IF(ISBLANK('G COMP Mise à jour Année 2'!B175),\"\",'G COMP Mise à jour Année 2'!B175)","v":""}]
[null,{"$f":"IF(ISBLANK('G COMP Mise à jour Année 2'!B176),\"\",'G COMP Mise à jour Année 2'!B176)","v":""}]
[null,{"$f":"IF(ISBLANK('D COMP Budget'!B177),\"\",'D COMP Budget'!B177)","v":"Sous-total - Revenus du secteur privé"},{"$f":"+'F COMP Mise à jour Année 1'!F177","v":0},{"$f":"+'G COMP Mise à jour Année 2'!H177","v":0},{"$f":"+'D COMP Budget'!E177","v":0},{"$f":"+SUM(F172:F176,F167:F170)","v":0},{"$f":"+SUM(G172:G176,G167:G170)","v":0},{"$f":"+SUM(H172:H176,H167:H170)","v":0},{"$f":"+SUM(I172:I176,I167:I170)","v":0},{"$f":"C177+D177+I177","v":0}]
[]
[null,{"$f":"IF(ISBLANK('D COMP Budget'!B179),\"\",'D COMP Budget'!B179)","v":"Revenus du secteur public"}]
[null,{"$f":"IF(ISBLANK('D COMP Budget'!B180),\"\",'D COMP Budget'!B180)","v":"Subvention pour cette demande, jusqu’à 100 000 $ par année, jusqu’à 3 ans"},{"$f":"+'F COMP Mise à jour Année 1'!F180","v":0},{"$f":"+'G COMP Mise à jour Année 2'!H180","v":0},{"$f":"+'D COMP Budget'!E180","v":0},null,null,null,null,{"$f":"C180+D180+I180","v":0}]
[null,{"$f":"IF(ISBLANK('D COMP Budget'!B181),\"\",'D COMP Budget'!B181)","v":"Soutien à l'accès aux services (Veuillez soumettre une demande distincte au Soutien à l'accès aux services)"}]
[null,{"$f":"IF(ISBLANK('D COMP Budget'!B182),\"\",'D COMP Budget'!B182)","v":"Autres subventions du Conseil des arts du Canada "}]
[null,{"$f":"IF(ISBLANK('G COMP Mise à jour Année 2'!B183),\"\",'G COMP Mise à jour Année 2'!B183)","v":""}]
[null,{"$f":"IF(ISBLANK('G COMP Mise à jour Année 2'!B184),\"\",'G COMP Mise à jour Année 2'!B184)","v":""}]
[null,{"$f":"IF(ISBLANK('G COMP Mise à jour Année 2'!B185),\"\",'G COMP Mise à jour Année 2'!B185)","v":""}]
[null,{"$f":"IF(ISBLANK('G COMP Mise à jour Année 2'!B186),\"\",'G COMP Mise à jour Année 2'!B186)","v":""}]
[null,{"$f":"IF(ISBLANK('G COMP Mise à jour Année 2'!B187),\"\",'G COMP Mise à jour Année 2'!B187)","v":""}]
[null,{"$f":"IF(ISBLANK('D COMP Budget'!B188),\"\",'D COMP Budget'!B188)","v":"Autre subvention fédérale"}]
[null,{"$f":"IF(ISBLANK('G COMP Mise à jour Année 2'!B189),\"\",'G COMP Mise à jour Année 2'!B189)","v":""}]
[null,{"$f":"IF(ISBLANK('G COMP Mise à jour Année 2'!B190),\"\",'G COMP Mise à jour Année 2'!B190)","v":""}]
[null,{"$f":"IF(ISBLANK('G COMP Mise à jour Année 2'!B191),\"\",'G COMP Mise à jour Année 2'!B191)","v":""}]
[null,{"$f":"IF(ISBLANK('G COMP Mise à jour Année 2'!B192),\"\",'G COMP Mise à jour Année 2'!B192)","v":""}]
[null,{"$f":"IF(ISBLANK('G COMP Mise à jour Année 2'!B193),\"\",'G COMP Mise à jour Année 2'!B193)","v":""}]
[null,{"$f":"IF(ISBLANK('D COMP Budget'!B194),\"\",'D COMP Budget'!B194)","v":"Subvention provinciale ou territoriale"}]
[null,{"$f":"IF(ISBLANK('G COMP Mise à jour Année 2'!B195),\"\",'G COMP Mise à jour Année 2'!B195)","v":""}]
[null,{"$f":"IF(ISBLANK('G COMP Mise à jour Année 2'!B196),\"\",'G COMP Mise à jour Année 2'!B196)","v":""}]
[null,{"$f":"IF(ISBLANK('G COMP Mise à jour Année 2'!B197),\"\",'G COMP Mise à jour Année 2'!B197)","v":""}]
[null,{"$f":"IF(ISBLANK('G COMP Mise à jour Année 2'!B198),\"\",'G COMP Mise à jour Année 2'!B198)","v":""}]
[null,{"$f":"IF(ISBLANK('G COMP Mise à jour Année 2'!B199),\"\",'G COMP Mise à jour Année 2'!B199)","v":""}]
[null,{"$f":"IF(ISBLANK('D COMP Budget'!B200),\"\",'D COMP Budget'!B200)","v":"Subvention municipale ou régionale"}]
[null,{"$f":"IF(ISBLANK('G COMP Mise à jour Année 2'!B201),\"\",'G COMP Mise à jour Année 2'!B201)","v":""}]
[null,{"$f":"IF(ISBLANK('G COMP Mise à jour Année 2'!B202),\"\",'G COMP Mise à jour Année 2'!B202)","v":""}]
[null,{"$f":"IF(ISBLANK('G COMP Mise à jour Année 2'!B203),\"\",'G COMP Mise à jour Année 2'!B203)","v":""}]
[null,{"$f":"IF(ISBLANK('G COMP Mise à jour Année 2'!B204),\"\",'G COMP Mise à jour Année 2'!B204)","v":""}]
[null,{"$f":"IF(ISBLANK('G COMP Mise à jour Année 2'!B205),\"\",'G COMP Mise à jour Année 2'!B205)","v":""}]
[null,{"$f":"IF(ISBLANK('D COMP Budget'!B206),\"\",'D COMP Budget'!B206)","v":"Autre revenus du secteur public"}]
[null,{"$f":"IF(ISBLANK('G COMP Mise à jour Année 2'!B207),\"\",'G COMP Mise à jour Année 2'!B207)","v":""}]
[null,{"$f":"IF(ISBLANK('G COMP Mise à jour Année 2'!B208),\"\",'G COMP Mise à jour Année 2'!B208)","v":""}]
[null,{"$f":"IF(ISBLANK('G COMP Mise à jour Année 2'!B209),\"\",'G COMP Mise à jour Année 2'!B209)","v":""}]
[null,{"$f":"IF(ISBLANK('G COMP Mise à jour Année 2'!B210),\"\",'G COMP Mise à jour Année 2'!B210)","v":""}]
[null,{"$f":"IF(ISBLANK('G COMP Mise à jour Année 2'!B211),\"\",'G COMP Mise à jour Année 2'!B211)","v":""}]
[null,{"$f":"IF(ISBLANK('D COMP Budget'!B212),\"\",'D COMP Budget'!B212)","v":"Sous-total - Revenus du secteur public"},{"$f":"+'F COMP Mise à jour Année 1'!F212","v":0},{"$f":"+'G COMP Mise à jour Année 2'!H212","v":0},{"$f":"+'D COMP Budget'!E212","v":0},{"$f":"+SUM(F189:F193,F195:F199,F201:F205,F207:F211,F180:F181,F183:F187)","v":0},{"$f":"+SUM(G189:G193,G195:G199,G201:G205,G207:G211,G180:G181,G183:G187)","v":0},{"$f":"+SUM(H189:H193,H195:H199,H201:H205,H207:H211,H180:H181,H183:H187)","v":0},{"$f":"+SUM(I189:I193,I195:I199,I201:I205,I207:I211,I180:I181,I183:I187)","v":0},{"$f":"C212+D212+I212","v":0}]
[]
[null,{"$f":"IF(ISBLANK('D COMP Budget'!B214),\"\",'D COMP Budget'!B214)","v":"Services en nature"}]
[null,{"$f":"IF(ISBLANK('G COMP Mise à jour Année 2'!B215),\"\",'G COMP Mise à jour Année 2'!B215)","v":""}]
[null,{"$f":"IF(ISBLANK('G COMP Mise à jour Année 2'!B216),\"\",'G COMP Mise à jour Année 2'!B216)","v":""}]
[null,{"$f":"IF(ISBLANK('G COMP Mise à jour Année 2'!B217),\"\",'G COMP Mise à jour Année 2'!B217)","v":""}]
[null,{"$f":"IF(ISBLANK('G COMP Mise à jour Année 2'!B218),\"\",'G COMP Mise à jour Année 2'!B218)","v":""}]
[null,{"$f":"IF(ISBLANK('G COMP Mise à jour Année 2'!B219),\"\",'G COMP Mise à jour Année 2'!B219)","v":""}]
[null,{"$f":"IF(ISBLANK('D COMP Budget'!B220),\"\",'D COMP Budget'!B220)","v":"Sous-total – Services en nature"},{"$f":"+'F COMP Mise à jour Année 1'!F220","v":0},{"$f":"+'G COMP Mise à jour Année 2'!H220","v":0},{"$f":"+'D COMP Budget'!E220","v":0},{"$f":"+SUM(F215:F219)","v":0},{"$f":"+SUM(G215:G219)","v":0},{"$f":"+SUM(H215:H219)","v":0},{"$f":"+SUM(I215:I219)","v":0},{"$f":"C220+D220+I220","v":0}]
[]
[null,{"$f":"IF(ISBLANK('D COMP Budget'!B222),\"\",'D COMP Budget'!B222)","v":"Autres revenus"}]
[null,{"$f":"IF(ISBLANK('G COMP Mise à jour Année 2'!B223),\"\",'G COMP Mise à jour Année 2'!B223)","v":""}]
[null,{"$f":"IF(ISBLANK('G COMP Mise à jour Année 2'!B224),\"\",'G COMP Mise à jour Année 2'!B224)","v":""}]
[null,{"$f":"IF(ISBLANK('G COMP Mise à jour Année 2'!B225),\"\",'G COMP Mise à jour Année 2'!B225)","v":""}]
[null,{"$f":"IF(ISBLANK('G COMP Mise à jour Année 2'!B226),\"\",'G COMP Mise à jour Année 2'!B226)","v":""}]
[null,{"$f":"IF(ISBLANK('G COMP Mise à jour Année 2'!B227),\"\",'G COMP Mise à jour Année 2'!B227)","v":""}]
[null,{"$f":"IF(ISBLANK('D COMP Budget'!B228),\"\",'D COMP Budget'!B228)","v":"Paiements différés"}]
[null,{"$f":"IF(ISBLANK('G COMP Mise à jour Année 2'!B229),\"\",'G COMP Mise à jour Année 2'!B229)","v":""}]
[null,{"$f":"IF(ISBLANK('G COMP Mise à jour Année 2'!B230),\"\",'G COMP Mise à jour Année 2'!B230)","v":""}]
[null,{"$f":"IF(ISBLANK('G COMP Mise à jour Année 2'!B231),\"\",'G COMP Mise à jour Année 2'!B231)","v":""}]
[null,{"$f":"IF(ISBLANK('D COMP Budget'!B232),\"\",'D COMP Budget'!B232)","v":"Sous-total - Autres revenus"},{"$f":"+'F COMP Mise à jour Année 1'!F232","v":0},{"$f":"+'G COMP Mise à jour Année 2'!H232","v":0},{"$f":"+'D COMP Budget'!E232","v":0},{"$f":"+SUM(F229:F231,F223:F227)","v":0},{"$f":"+SUM(G229:G231,G223:G227)","v":0},{"$f":"+SUM(H229:H231,H223:H227)","v":0},{"$f":"+SUM(I229:I231,I223:I227)","v":0},{"$f":"C232+D232+I232","v":0}]
[]
[null,{"$f":"IF(ISBLANK('D COMP Budget'!B234),\"\",'D COMP Budget'!B234)","v":"Total des revenus"},{"$f":"C164+C177+C212+C232+C220","v":0},0,0,0,0,0,0,{"$f":"C234+D234+I234","v":0}]
[]
[null,{"$f":"IF(ISBLANK('D COMP Budget'!B236),\"\",'D COMP Budget'!B236)","v":"Total des coûts"},{"$f":"C127","v":0},0,0,0,0,0,0,{"$f":"C236+D236+I236","v":0}]
[]
[null,{"$f":"IF(ISBLANK('D COMP Budget'!B238),\"\",'D COMP Budget'!B238)","v":"Excédent (Déficit)"},{"$f":"C234-C236","v":0},0,0,0,0,0,0,0]
[]
[null,{"$f":"IF(ISBLANK('D COMP Budget'!B240),\"\",'D COMP Budget'!B240)","v":"% du Total des coûts que représente la subvention"},{"$f":"IFERROR((C180/C236),\"\")","v":""},"","","","","","",""]
[]
[null,null,"Les cachets d'artistes, droits d’auteur et redevances doivent être payables à tous les artistes canadiens. Ces montants doivent être acceptés par les artistes et le demandeur, et doivent être la même, ou supérieur, aux normes canadiennes actuelles."]

{"sheet":"I Instructions - éditeurs","index":9,"n_rows":54,"n_cols":3,"rows_kept":54,"cut":false,"hidden":false,"merged":[[1,1,1,15],[2,1,2,15],[3,1,3,15],[4,1,4,15],[6,1,6,15],[53,1,54,15],[7,1,8,15],[20,2,21,15],[24,2,25,15],[31,1,33,15],[49,1,50,15],[51,1,52,15],[18,1,19,15],[48,1,48,15],[34,1,35,15],[43,1,45,15],[36,2,38,15],[39,2,40,15],[22,2,23,15]]}
[null,"v.201704"]
[null,"Appuyer la pratique artistique : Innovation et développement du secteur (éditeurs)"]
[null,"Instructions pour remplir les documents « Budgets »"]
[null,"Tout autre type d'organisme doit plutôt consulter l'onglet « A PROJ Instructions » pour les instructions de subventions de projets."]
[null,"Tout autre type d'organisme doit plutôt consulter l'onglet « C COMP Instructions » pour les instructions de subventions composites."]
[]
[null,"Veuillez noter qu'au bas de la page se trouvent plusieurs onglets :"]
[null,"Les éditeurs de livres et de revues doivent consulter les onglets « I Instructions - éditeurs », « J Budget Projets de livres », « K Budget Revues électroniques », et « L Budget Revues imprimées »."]
[]
[]
[]
[]
[null,"À la suite de ces instructions, chaque onglet contient une feuille distincte que vous devez compléter."]
[null,"Lorsque vous cliquez sur « Sauvegarder », tous les onglets sont sauvegardés en même temps."]
[null,"Lorsque vous téléversez le document à votre formulaire de demande, tous les onglets y sont transférés ensemble. "]
[]
[]
[null,"1. Après avoir téléchargé le formulaire, sauvegardez-le sur votre ordinateur. Vous pouvez le sauvegarder sous un nom différent."]
[null,"2. Complétez les onglets « J Budget Livres », « K Budget Revues électroniques » ou « L Budget Revues imprimées », selon les activités incluses dans votre projet."]
[]
[null,null," - Veuillez inscrire les renseignements financiers qui correspondent à vos états financiers pour l’année en cours, les 2 dernières années, et l'année où vous soumettez votre demande de subvention. "]
[]
[null,null,"Pour plus de renseignements, consultez la rubrique « Comment harmoniser votre exercice financier avec l'exercice financier visé par la demande »."]
[]
[null,null," - Les revues électroniques et les revues imprimées doivent consulter les définitions des termes qui se trouvent plus bas sur leur formulaire financier. "]
[]
[]
[null,"3. N’oubliez pas de sauvegarder à nouveau le document sur votre ordinateur."]
[null,"4. Retournez au portail et téléversez le document complet à votre demande."]
[]
[]
[null,"Si votre Profil de candidat approuvé dans le portail inclu l'auto-identification comme étant un organisme axé sur la pratique des artistes handicapés et sourds, vous pouvez soumettre une demande distincte au Soutien à l'accès aux services, lequel se trouve dans la section Fonds stratégiques de vos programmes disponibles."]
[]
[]
[null,"Si vous recevez un appui du Soutien à l’accès aux services pour ce projet, vous inscrirez, dans les colonnes de mise à jour et les coûts réels du budget, le montant qui vous a été accordé et les coûts couverts :"]
[]
[null,null," - Veuillez inscrire à la ligne 44 de l'onglet « J Budget Projets de livres », à la ligne 60 de l'onglet « K Budget Revues électroniques », ou à la ligne 57 de l'onglet « L Budget Revues imprimées », les coûts liés aux mesures de soutien et aux services nécessaires aux écrivains sourds ou handicapés qui participent aux activités. "]
[]
[]
[null,null," - Veuillez inscrire à la ligne 20 de l'onglet « J Budget Projets de livres », à la ligne 17 de l'onglet « K Budget Revues électroniques », ou à la ligne 19 de l'onglet « L Budget Revues imprimées », le montant du Soutien à l'accès aux services."]
[]
[]
[]
[null,"Lorsque votre projet sera terminé, et que vous soumettrez votre rapport final, vous utiliserez la colonne « Exercice financier visé par la demande - Données réelles ». Vous aurez également la possibilité d'utiliser la colonne « Exercice financier en cours - Données réelles (facultatif) », afin de fournir les données réelles pour l'année qui, au moment de la soumission de votre demande, était votre exercice financier en cours."]
[]
[]
[]
[]
[null,"Comment harmoniser votre exercice financier avec l'exercice financier visé par la demande"]
[null,"« Exercice financier visé par la demande » : porte sur les activités qui ont lieu lors de l'exercice financier de votre organisme pour lequel vous demandez un appui. "]
[]
[null,"« Exercice financier en cours » : porte sur les activités qui ont lieu au cours de l'exercice financier de votre organisme qui précède l'exercice financier visé par la demande. Habituellement, ceci coïncide avec l'année où vous présentez votre demande. "]
[]
[null,"« Dernier exercice financier » et « Avant-dernier exercice financier » : portent sur les 2 dernières années complétées qui précèdent l'année en cours."]

{"sheet":"J Budget Projets de livres","index":10,"n_rows":56,"n_cols":9,"rows_kept":56,"cut":false,"hidden":false,"merged":[[1,1,1,8],[10,1,10,8],[11,6,16,6],[17,1,17,8],[4,2,5,2],[4,3,5,3],[4,4,5,4],[4,5,5,5],[4,7,5,7],[4,8,5,8],[3,1,3,5],[3,7,3,8],[23,2,23,8],[49,6,55,6],[27,2,27,8],[28,6,32,6],[33,1,33,8],[34,6,39,6],[40,1,40,8],[41,6,47,6],[48,2,48,8]]}
[null,"v.201704"]
[null,"Appuyer la pratique artistique : Innovation et développement du secteur - Projets de livres"]
[]
[null,"Sommaire financier",null,null,null,null,null,"Pour votre rapport final"]
[null,"Date : ","Avant-dernier exercice financier\nDonnées réelles","Dernier exercice financier\nDonnées réelles","Exercice financier \nen cours\nDonnées projetées","Exercice financier visé par la demande\nDonnées projetées",null,"Exercice financier \nen cours\nDonnées réelles\n(facultatif)","Année de la demande\nDonnées réelles"]
[]
[null,null,"de","de","de","de",null,"de","de"]
[null,null,"Date : ","Date : ","Date : ","Date : ",null,"Date : ","Date : "]
[null,null,"à","à","à","à",null,"à","à"]
[null,null,"Date : ","Date : ","Date : ","Date : ",null,"Date : ","Date : "]
[null,"Recettes de fonctionnement"]
[null,"Ventes nettes de titres admissibles au financement du Conseil des Arts du Canada"]
[null,"Ventes nettes d'autres titres d'auteurs canadiens, propre impression"]
[null,"Autres revenus nets d'édition"]
[null,"Autres revenus, tels que les intérêts (précisez)"]
[null,"Total des recettes de fonctionnement",{"$f":"+SUM(C12:C15)","v":0},{"$f":"+SUM(D12:D15)","v":0},{"$f":"+SUM(E12:E15)","v":0},{"$f":"+SUM(F12:F15)","v":0},null,{"$f":"+SUM(H12:H15)","v":0},{"$f":"+SUM(I12:I15)","v":0}]
[]
[null,"Subventions / aide financière non remboursable provenant des sources suivantes"]
[null,"Subvention pour cette demande"]
[null,"Autres subventions du Conseil des Arts du Canada"]
[null,"Ministère du Patrimoine canadien (Fonds du livre du Canada)"]
[null,"Livres Canada Books"]
[null,"Fédération des sciences humaines"]
[null,"Autres sources fédérales"]
[]
[null,"Gouvernements provinciaux ou territoriaux ou conseils des arts, y compris les crédits d'impôt"]
[null,"Autres gouvernements (par exemple, municipalités) et agences"]
[null,"Autres sources"]
[]
[null,"Total des subventions et contributions",{"$f":"+SUM(C19:C23,C25:C27,C29)","v":0},{"$f":"+SUM(D19:D23,D25:D27,D29)","v":0},{"$f":"+SUM(E19:E23,E25:E27,E29)","v":0},{"$f":"+SUM(F19:F23,F25:F27,F29)","v":0},null,{"$f":"+SUM(H19:H23,H25:H27,H29)","v":0},{"$f":"+SUM(I19:I23,I25:I27,I29)","v":0}]
[]
[null,"Total net des revenus",{"$f":"SUM(C16+C30)","v":0},{"$f":"SUM(D16+D30)","v":0},{"$f":"SUM(E16+E30)","v":0},{"$f":"SUM(F16+F30)","v":0},null,{"$f":"SUM(H16+H30)","v":0},{"$f":"SUM(I16+I30)","v":0}]
[]
[null,"Coûts des ventes"]
[null,"Coût des ventes de tous les titres, à l'exception des redevances (y compris production, édition, impression et reliure)"]
[null,"Redevances sur tous les titres"]
[null,"Coût total des ventes",{"$f":"+C35+C36","v":0},{"$f":"+D35+D36","v":0},{"$f":"+E35+E36","v":0},{"$f":"+F35+F36","v":0},null,{"$f":"+H35+H36","v":0},{"$f":"+I35+I36","v":0}]
[]
[null,"Excédent brut ( Total net des revenus moins coût total des ventes )",{"$f":"C32-C37","v":0},{"$f":"D32-D37","v":0},{"$f":"E32-E37","v":0},{"$f":"F32-F37","v":0},null,{"$f":"H32-H37","v":0},{"$f":"I32-I37","v":0}]
[]
[null,"Frais de fonctionnement"]
[null,"Marketing et promotion"]
[null,"Distribution"]
[null,"Autres dépenses d'exploitation (y compris Coût d'accès: coûts reliés aux mesures de soutien et services pour écrivains sourds ou handicapés impliqués dans le projet)"]
[null,"Total des frais de fonctionnement",{"$f":"SUM(C42:C44)","v":0},{"$f":"SUM(D42:D44)","v":0},{"$f":"SUM(E42:E44)","v":0},{"$f":"SUM(F42:F44)","v":0},null,{"$f":"SUM(H42:H44)","v":0},{"$f":"SUM(I42:I44)","v":0}]
[]
[null,"Excédent ( déficit ) ( Profits bruts moins frais d'exploitation totaux ) ",{"$f":"C39-C45","v":0},{"$f":"D39-D45","v":0},{"$f":"E39-E45","v":0},{"$f":"F39-F45","v":0},null,{"$f":"H39-H45","v":0},{"$f":"I39-I45","v":0}]
[null,"Impôt sur le revenu"]
[null,"Transaction exceptionelle"]
[]
[null,"Excédent (déficit) net",{"$f":"C47-C48-C50","v":0},{"$f":"D47-D48-D50","v":0},{"$f":"E47-E48-E50","v":0},{"$f":"F47-F48-F50","v":0},null,{"$f":"H47-H48-H50","v":0},{"$f":"I47-I48-I50","v":0}]
[]
[null,"Total des actifs"]
[null,"Total des capitaux "]
[null,"Total du passif à court et long terme"]
[null,"Excédent (déficit) cumulé",null,{"$f":"C56+D51","v":0},null,null,null,{"$f":"D56+H51","v":0}]

{"sheet":"K Budget Revues électroniques","index":11,"n_rows":156,"n_cols":15,"rows_kept":156,"cut":false,"hidden":false,"merged":[[1,1,1,14],[7,2,7,3],[7,4,7,5],[7,6,7,7],[7,8,7,9],[7,11,7,12],[7,13,7,14],[6,2,6,3],[6,4,6,5],[4,2,5,3],[3,1,3,10],[3,11,3,14],[7,1,9,1],[4,13,5,14],[6,13,6,14],[8,13,8,14],[9,2,9,3],[9,4,9,5],[9,6,9,7],[9,8,9,9],[9,11,9,12],[9,13,9,14],[8,2,8,3],[8,4,8,5],[8,6,8,7],[8,8,8,9],[8,11,8,12],[6,6,6,7],[6,8,6,9],[6,11,6,12],[4,4,5,5],[4,6,5,7],[4,8,5,9],[4,11,5,12],[10,1,10,14],[11,10,16,10],[17,1,17,14],[18,10,21,10],[65,1,65,14],[66,1,66,14],[22,1,22,14],[23,10,29,10],[30,1,30,14],[31,1,31,14],[32,1,32,14],[33,1,33,14],[34,10,40,10],[41,1,41,14],[42,10,47,10],[48,1,48,14],[49,10,63,10],[64,1,64,14],[82,10,89,10],[90,1,90,14],[91,10,94,10],[139,13,139,14],[137,11,137,12],[125,1,125,14],[126,10,133,10],[134,1,134,14],[67,10,71,10],[72,1,72,14],[73,10,80,10],[81,1,81,14],[95,1,95,14],[96,10,110,10],[111,1,111,14],[112,10,117,10],[118,1,118,14],[119,10,124,10],[135,13,135,14],[136,2,136,3],[136,4,136,5],[136,6,136,7],[136,8,136,9],[136,11,136,12],[136,13,136,14],[135,2,135,3],[135,4,135,5],[135,6,135,7],[135,8,135,9],[135,10,139,10],[135,11,135,12],[137,2,137,3],[137,4,137,5],[137,6,137,7],[137,8,137,9],[139,11,139,12],[139,4,139,5],[139,6,139,7],[137,13,137,14],[138,2,138,3],[139,8,139,9],[138,11,138,12],[138,13,138,14],[153,2,153,9],[154,2,154,9],[155,2,155,9],[147,2,147,9],[148,2,148,9],[149,2,149,9],[150,2,150,9],[151,2,151,9],[152,2,152,9],[141,1,141,9],[142,1,142,9],[143,2,143,9],[144,2,144,9],[145,2,145,9],[146,2,146,9],[138,4,138,5],[138,6,138,7],[138,8,138,9],[139,2,139,3]]}
[null,"v.201704"]
[null,"Appuyer la pratique artistique : Innovation et développement du secteur - Revues électroniques"]
[]
[null,null,null,null,null,null,null,null,null,null,null,"Pour votre rapport final"]
[null,"Date : ","Avant-dernier exercice financier\nDonnées réelles",null,"Dernier exercice financier\nDonnées réelles",null,"Exercice financier \nen cours\nDonnées projetées",null,"Exercice financier visé par la demande\nDonnées projetées",null,null,"Exercice financier \nen cours\nDonnées réelles\n(facultatif)",null,"Année de la demande\nDonnées réelles"]
[null,"(Voir la définition des termes au bas du formulaire de demande, ainsi que les instructions au bas de cette page avant de remplir ce formulaire.)"]
[null,null,"de",null,"de",null,"de",null,"de",null,null,"de",null,"de"]
[null,"(Remarque : Les renseignements inscrits dans les deux premières colonnes devraient correspondre aux chiffres indiqués dans les états financiers joints à cette demande.)","Date : ",null,"Date : ",null,"Date : ",null,"Date : ",null,null,"Date : ",null,"Date : "]
[null,null,"à",null,"à",null,"à",null,"à",null,null,"à",null,"à"]
[null,null,"Date : ",null,"Date : ",null,"Date : ",null,"Date : ",null,null,"Date : ",null,"Date : "]
[null,"Données sur le tirage et la publication - revues électroniques"]
[null,"% du contenu en langue anglaise"]
[null,"% du contenu en langue française"]
[null,"% du contenu en d’autres langues"]
[null,"Précisez les langues :"]
[null,"% d'auteurs canadiens"]
[null,"% d'auteurs étrangers"]
[]
[null,"Nombre de numéros publiés"]
[null,"Nombre de pages (en format HTML, .asp, PDF ou autre) pour l’exercice"]
[null,"Prix de l’abonnement annuel pour les particuliers"]
[null,"Prix de l’abonnement annuel pour les organismes"]
[]
[null,"Nombre d’abonnés payants par numéro (à la fin de l’exercice)"]
[null,"Nombre d’inscrits sur la liste de distribution (courriels)"]
[null,"Nombre de visites"]
[null,"Précisez par numéro ou par mois :"]
[null,"Nombre annuel de visites"]
[null,"Nombre annuel de pages consultées"]
[null,"Taux de rebond"]
[]
[null,"Données financières - revues électroniques"]
[null,"Revenus"]
[null,"Revenus gagnés"]
[1,"Ventes d’abonnements aux particuliers",null,{"$f":"IFERROR(C35/C$63,0)","v":0},null,{"$f":"IFERROR(E35/E$63,0)","v":0},null,{"$f":"IFERROR(G35/G$63,0)","v":0},null,{"$f":"IFERROR(I35/I$63,0)","v":0},null,null,{"$f":"IFERROR(L35/L$63,0)","v":0},null,{"$f":"IFERROR(N35/N$63,0)","v":0}]
[{"$f":"A35+1","v":2},"Ventes d’abonnements aux organismes",null,0,null,0,null,0,null,0,null,null,0,null,0]
[3,"Ventes de numéros à l’unité ",null,0,null,0,null,0,null,0,null,null,0,null,0]
[4,"Ventes de publicité",null,0,null,0,null,0,null,0,null,null,0,null,0]
[5,"Redevances, droits de licence et droits de franchise",null,0,null,0,null,0,null,0,null,null,0,null,0]
[6,"Autres revenus gagnés (précisez — voir ligne 90)",null,0,null,0,null,0,null,0,null,null,0,null,0]
[7,"Total des revenus gagnés",{"$f":"SUM(C35:C40)","v":0},0,{"$f":"SUM(E35:E40)","v":0},0,{"$f":"SUM(G35:G40)","v":0},0,{"$f":"SUM(I35:I40)","v":0},0,null,{"$f":"SUM(L35:L40)","v":0},0,{"$f":"SUM(N35:N40)","v":0},0]
[8,"Revenus du secteur privé"]
[9,"Dons de particuliers",null,{"$f":"IFERROR(C43/C$63,0)","v":0},null,{"$f":"IFERROR(E43/E$63,0)","v":0},null,{"$f":"IFERROR(G43/G$63,0)","v":0},null,{"$f":"IFERROR(I43/I$63,0)","v":0},null,null,{"$f":"IFERROR(L43/L$63,0)","v":0},null,{"$f":"IFERROR(N43/N$63,0)","v":0}]
[10,"Dons d’entreprises",null,0,null,0,null,0,null,0,null,null,0,null,0]
[11,"Revenus de collectes de fonds (bruts)",null,0,null,0,null,0,null,0,null,null,0,null,0]
[12,"Travail bénévole",null,0,null,0,null,0,null,0,null,null,0,null,0]
[13,"Autres revenus du secteur privé (précisez — voir ligne 91). Voir instructions ci-dessous.",null,0,null,0,null,0,null,0,null,null,0,null,0]
[14,"Total des revenus du secteur privé",{"$f":"SUM(C43:C47)","v":0},0,{"$f":"SUM(E43:E47)","v":0},0,{"$f":"SUM(G43:G47)","v":0},0,{"$f":"SUM(I43:I47)","v":0},0,null,{"$f":"SUM(L43:L47)","v":0},0,{"$f":"SUM(N43:N47)","v":0},0]
[15,"Revenus du secteur public (voir instructions ci-dessous)"]
[16,"Subvention pour cette demande",null,{"$f":"IFERROR(C50/C$63,0)","v":0},null,{"$f":"IFERROR(E50/E$63,0)","v":0},null,{"$f":"IFERROR(G50/G$63,0)","v":0},null,{"$f":"IFERROR(I50/I$63,0)","v":0},null,null,{"$f":"IFERROR(L50/L$63,0)","v":0},null,{"$f":"IFERROR(N50/N$63,0)","v":0}]
[17,"Autres subventions du Conseil des arts du Canada ",null,0,null,0,null,0,null,0,null,null,0,null,0]
[18,"Aide à l’édition savante du CRSHC ",null,0,null,0,null,0,null,0,null,null,0,null,0]
[19,"Fonds du Canada pour les périodiques ",null,0,null,0,null,0,null,0,null,null,0,null,0]
[20,"Autres subventions fédérales",null,0,null,0,null,0,null,0,null,null,0,null,0]
[21,"Subventions provinciales ou territoriales",null,0,null,0,null,0,null,0,null,null,0,null,0]
[22,"Subventions municipales ou regionales",null,0,null,0,null,0,null,0,null,null,0,null,0]
[23,"Subventions de programmes d’emploi",null,0,null,0,null,0,null,0,null,null,0,null,0]
[24,"Autres revenus du secteur public (précisez — voir ligne 92)",null,0,null,0,null,0,null,0,null,null,0,null,0]
[25,"Total des revenus du secteur public",{"$f":"SUM(C50:C58)","v":0},0,{"$f":"SUM(E50:E58)","v":0},0,{"$f":"SUM(G50:G58)","v":0},0,{"$f":"SUM(I50:I58)","v":0},0,null,{"$f":"SUM(L50:L58)","v":0},0,{"$f":"SUM(N50:N58)","v":0},0]
[]
[{"$f":"A59+1","v":26},"Autres revenus (précisez — voir ligne 93)\nVoir instructions ci-dessous.",null,{"$f":"IFERROR(C61/C$63,0)","v":0},null,{"$f":"IFERROR(E61/E$63,0)","v":0},null,{"$f":"IFERROR(G61/G$63,0)","v":0},null,{"$f":"IFERROR(I61/I$63,0)","v":0},null,null,{"$f":"IFERROR(L61/L$63,0)","v":0},null,{"$f":"IFERROR(N61/N$63,0)","v":0}]
[]
[{"$f":"A61+1","v":27},"Total des revenus",{"$f":"C41+C48+C59+C61","v":0},{"$f":"IFERROR(C63/C$63,0)","v":0},{"$f":"E41+E48+E59+E61","v":0},{"$f":"IFERROR(E63/E$63,0)","v":0},{"$f":"G41+G48+G59+G61","v":0},{"$f":"IFERROR(G63/G$63,0)","v":0},{"$f":"I41+I48+I59+I61","v":0},{"$f":"IFERROR(I63/I$63,0)","v":0},null,{"$f":"L41+L48+L59+L61","v":0},{"$f":"IFERROR(L63/L$63,0)","v":0},{"$f":"N41+N48+N59+N61","v":0},{"$f":"IFERROR(N63/N$63,0)","v":0}]
[]
[{"$f":"A63+1","v":28},"Dépenses"]
[{"$f":"A65+1","v":29},"Coûts des ventes"]
[30,"Rédaction"]
[31,"Dépenses et salaires liés à la rédaction",null,{"$f":"IFERROR(C68/C$110,0)","v":0},null,{"$f":"IFERROR(E68/E$110,0)","v":0},null,{"$f":"IFERROR(G68/G$110,0)","v":0},null,{"$f":"IFERROR(I68/I$110,0)","v":0},null,null,{"$f":"IFERROR(L68/L$110,0)","v":0},null,{"$f":"IFERROR(N68/N$110,0)","v":0}]
[32,"Cachets aux auteurs",null,{"$f":"IFERROR(C69/C$110,0)","v":0},null,{"$f":"IFERROR(E69/E$110,0)","v":0},null,{"$f":"IFERROR(G69/G$110,0)","v":0},null,{"$f":"IFERROR(I69/I$110,0)","v":0},null,null,{"$f":"IFERROR(L69/L$110,0)","v":0},null,{"$f":"IFERROR(N69/N$110,0)","v":0}]
[33,"Cachets aux collaborateurs",null,{"$f":"IFERROR(C70/C$110,0)","v":0},null,{"$f":"IFERROR(E70/E$110,0)","v":0},null,{"$f":"IFERROR(G70/G$110,0)","v":0},null,{"$f":"IFERROR(I70/I$110,0)","v":0},null,null,{"$f":"IFERROR(L70/L$110,0)","v":0},null,{"$f":"IFERROR(N70/N$110,0)","v":0}]
[34,"Illustrations et photos, droits de reproduction",null,{"$f":"IFERROR(C71/C$110,0)","v":0},null,{"$f":"IFERROR(E71/E$110,0)","v":0},null,{"$f":"IFERROR(G71/G$110,0)","v":0},null,{"$f":"IFERROR(I71/I$110,0)","v":0},null,null,{"$f":"IFERROR(L71/L$110,0)","v":0},null,{"$f":"IFERROR(N71/N$110,0)","v":0}]
[35,"Total des coûts de rédaction",{"$f":"SUM(C68:C71)","v":0},{"$f":"IFERROR(C72/C$110,0)","v":0},{"$f":"SUM(E68:E71)","v":0},{"$f":"IFERROR(E72/E$110,0)","v":0},{"$f":"SUM(G68:G71)","v":0},{"$f":"IFERROR(G72/G$110,0)","v":0},{"$f":"SUM(I68:I71)","v":0},{"$f":"IFERROR(I72/I$110,0)","v":0},null,{"$f":"SUM(L68:L71)","v":0},{"$f":"IFERROR(L72/L$110,0)","v":0},{"$f":"SUM(N68:N71)","v":0},{"$f":"IFERROR(N72/N$110,0)","v":0}]
[36,"Production"]
[37,"Composition",null,{"$f":"IFERROR(C74/C$110,0)","v":0},null,{"$f":"IFERROR(E74/E$110,0)","v":0},null,{"$f":"IFERROR(G74/G$110,0)","v":0},null,{"$f":"IFERROR(I74/I$110,0)","v":0},null,null,{"$f":"IFERROR(L74/L$110,0)","v":0},null,{"$f":"IFERROR(N74/N$110,0)","v":0}]
[38,"Mise en page et conception d’un site",null,0,null,0,null,0,null,0,null,null,0,null,0]
[39,"Web et maquette",null,0,null,0,null,0,null,0,null,null,0,null,0]
[40,"Web et commerce électronique",null,0,null,0,null,0,null,0,null,null,0,null,0]
[41,"Programmation",null,0,null,0,null,0,null,0,null,null,0,null,0]
[42,"Conversion des images et des graphiques",null,0,null,0,null,0,null,0,null,null,0,null,0]
[43,"Éléments interactifs de multimédia",null,0,null,0,null,0,null,0,null,null,0,null,0]
[44,"Total des coûts de production",{"$f":"SUM(C74:C80)","v":0},0,{"$f":"SUM(E74:E80)","v":0},0,{"$f":"SUM(G74:G80)","v":0},0,{"$f":"SUM(I74:I80)","v":0},0,null,{"$f":"SUM(L74:L80)","v":0},0,{"$f":"SUM(N74:N80)","v":0},0]
[45,"Diffusion"]
[46,"Enregistrement du nom de domaine",null,{"$f":"IFERROR(C83/C$110,0)","v":0},null,{"$f":"IFERROR(E83/E$110,0)","v":0},null,{"$f":"IFERROR(G83/G$110,0)","v":0},null,{"$f":"IFERROR(I83/I$110,0)","v":0},null,null,{"$f":"IFERROR(L83/L$110,0)","v":0},null,{"$f":"IFERROR(N83/N$110,0)","v":0}]
[47,"Sécurité ou certificats relatifs aux transactions en ligne",null,{"$f":"IFERROR(C84/C$110,0)","v":0},null,{"$f":"IFERROR(E84/E$110,0)","v":0},null,{"$f":"IFERROR(G84/G$110,0)","v":0},null,{"$f":"IFERROR(I84/I$110,0)","v":0},null,null,{"$f":"IFERROR(L84/L$110,0)","v":0},null,{"$f":"IFERROR(N84/N$110,0)","v":0}]
[48,"Serveur — frais du service d’accès Internet",null,{"$f":"IFERROR(C85/C$110,0)","v":0},null,{"$f":"IFERROR(E85/E$110,0)","v":0},null,{"$f":"IFERROR(G85/G$110,0)","v":0},null,{"$f":"IFERROR(I85/I$110,0)","v":0},null,null,{"$f":"IFERROR(L85/L$110,0)","v":0},null,{"$f":"IFERROR(N85/N$110,0)","v":0}]
[49,"Frais de transactions",null,{"$f":"IFERROR(C86/C$110,0)","v":0},null,{"$f":"IFERROR(E86/E$110,0)","v":0},null,{"$f":"IFERROR(G86/G$110,0)","v":0},null,{"$f":"IFERROR(I86/I$110,0)","v":0},null,null,{"$f":"IFERROR(L86/L$110,0)","v":0},null,{"$f":"IFERROR(N86/N$110,0)","v":0}]
[50,"Total des coûts de diffusion",{"$f":"SUM(C83:C86)","v":0},{"$f":"IFERROR(C87/C$110,0)","v":0},{"$f":"SUM(E83:E86)","v":0},{"$f":"IFERROR(E87/E$110,0)","v":0},{"$f":"SUM(G83:G86)","v":0},{"$f":"IFERROR(G87/G$110,0)","v":0},{"$f":"SUM(I83:I86)","v":0},{"$f":"IFERROR(I87/I$110,0)","v":0},null,{"$f":"SUM(L83:L86)","v":0},{"$f":"IFERROR(L87/L$110,0)","v":0},{"$f":"SUM(N83:N86)","v":0},{"$f":"IFERROR(N87/N$110,0)","v":0}]
[]
[{"$f":"A87+1","v":51},"Total des coûts des ventes",{"$f":"SUM(C87+C81+C72)","v":0},{"$f":"IFERROR(C89/C$110,0)","v":0},{"$f":"SUM(E87+E81+E72)","v":0},{"$f":"IFERROR(E89/E$110,0)","v":0},{"$f":"SUM(G87+G81+G72)","v":0},{"$f":"IFERROR(G89/G$110,0)","v":0},{"$f":"SUM(I87+I81+I72)","v":0},{"$f":"IFERROR(I89/I$110,0)","v":0},null,{"$f":"SUM(L87+L81+L72)","v":0},{"$f":"IFERROR(L89/L$110,0)","v":0},{"$f":"SUM(N87+N81+N72)","v":0},{"$f":"IFERROR(N89/N$110,0)","v":0}]
[]
[{"$f":"A89+1","v":52},"Promotion et publicité"]
[{"$f":"A91+1","v":53},"Frais de publicité",null,{"$f":"IFERROR(C92/C$110,0)","v":0},null,{"$f":"IFERROR(E92/E$110,0)","v":0},null,{"$f":"IFERROR(G92/G$110,0)","v":0},null,{"$f":"IFERROR(I92/I$110,0)","v":0},null,null,{"$f":"IFERROR(L92/L$110,0)","v":0},null,{"$f":"IFERROR(N92/N$110,0)","v":0}]
[54,"Échange de publicité ",null,{"$f":"IFERROR(C93/C$110,0)","v":0},null,{"$f":"IFERROR(E93/E$110,0)","v":0},null,{"$f":"IFERROR(G93/G$110,0)","v":0},null,{"$f":"IFERROR(I93/I$110,0)","v":0},null,null,{"$f":"IFERROR(L93/L$110,0)","v":0},null,{"$f":"IFERROR(N93/N$110,0)","v":0}]
[55,"Droit d’adhésion et d’inscription, et promotion des numéros",null,{"$f":"IFERROR(C94/C$110,0)","v":0},null,{"$f":"IFERROR(E94/E$110,0)","v":0},null,{"$f":"IFERROR(G94/G$110,0)","v":0},null,{"$f":"IFERROR(I94/I$110,0)","v":0},null,null,{"$f":"IFERROR(L94/L$110,0)","v":0},null,{"$f":"IFERROR(N94/N$110,0)","v":0}]
[56,"Total des frais de promotion et de publicité",{"$f":"SUM(C92:C94)","v":0},{"$f":"IFERROR(C95/C$110,0)","v":0},{"$f":"SUM(E92:E94)","v":0},{"$f":"IFERROR(E95/E$110,0)","v":0},{"$f":"SUM(G92:G94)","v":0},{"$f":"IFERROR(G95/G$110,0)","v":0},{"$f":"SUM(I92:I94)","v":0},{"$f":"IFERROR(I95/I$110,0)","v":0},null,{"$f":"SUM(L92:L94)","v":0},{"$f":"IFERROR(L95/L$110,0)","v":0},{"$f":"SUM(N92:N94)","v":0},{"$f":"IFERROR(N95/N$110,0)","v":0}]
[57,"Frais généraux"]
[58,"Salaires du personnel et contrats",null,{"$f":"IFERROR(C97/C$110,0)","v":0},null,{"$f":"IFERROR(E97/E$110,0)","v":0},null,{"$f":"IFERROR(G97/G$110,0)","v":0},null,{"$f":"IFERROR(I97/I$110,0)","v":0},null,null,{"$f":"IFERROR(L97/L$110,0)","v":0},null,{"$f":"IFERROR(N97/N$110,0)","v":0}]
[59,"Avantages sociaux",null,0,null,0,null,0,null,0,null,null,0,null,0]
[60,"Coût d'accès: coûts reliés aux mesures de soutien et services pour écrivains sourds ou handicapés impliqués dans le projet",null,0,null,0,null,0,null,0,null,null,0,null,0]
[61,"Valeur du travail bénévole",null,0,null,0,null,0,null,0,null,null,0,null,0]
[62,"Perfectionnement professionnel du personnel",null,0,null,0,null,0,null,0,null,null,0,null,0]
[63,"Dépenses de collecte de fonds (brutes)",null,0,null,0,null,0,null,0,null,null,0,null,0]
[64,"Coûts d’occupation (loyer, hypothèque)",null,0,null,0,null,0,null,0,null,null,0,null,0]
[65,"Fournitures de bureau et petits appareils",null,0,null,0,null,0,null,0,null,null,0,null,0]
[66,"Télécommunications",null,0,null,0,null,0,null,0,null,null,0,null,0]
[67,"Amortissement",null,0,null,0,null,0,null,0,null,null,0,null,0]
[68,"Autres frais généraux ",null,0,null,0,null,0,null,0,null,null,0,null,0]
[69,"Total des frais généraux",{"$f":"SUM(C97:C107)","v":0},0,{"$f":"SUM(E97:E107)","v":0},0,{"$f":"SUM(G97:G107)","v":0},0,{"$f":"SUM(I97:I107)","v":0},0,null,{"$f":"SUM(L97:L107)","v":0},0,{"$f":"SUM(N97:N107)","v":0},0]
[]
[{"$f":"A108+1","v":70},"Total des dépénses",{"$f":"C89+C95+C108","v":0},{"$f":"IFERROR(C110/C$110,0)","v":0},{"$f":"E89+E95+E108","v":0},{"$f":"IFERROR(E110/E$110,0)","v":0},{"$f":"G89+G95+G108","v":0},{"$f":"IFERROR(G110/G$110,0)","v":0},{"$f":"I89+I95+I108","v":0},{"$f":"IFERROR(I110/I$110,0)","v":0},null,{"$f":"L89+L95+L108","v":0},{"$f":"IFERROR(L110/L$110,0)","v":0},{"$f":"N89+N95+N108","v":0},{"$f":"IFERROR(N110/N$110,0)","v":0}]
[]
[{"$f":"A110+1","v":71},"Excédent (Déficit) de l'exercice"]
[{"$f":"A112+1","v":72},"Excédent (déficit) = revenus – dépenses",{"$f":"C63-C110","v":0},{"$f":"IFERROR(C113/C$117,0)","v":0},{"$f":"E63-E110","v":0},{"$f":"IFERROR(E113/E$117,0)","v":0},{"$f":"G63-G110","v":0},{"$f":"IFERROR(G113/G$117,0)","v":0},{"$f":"I63-I110","v":0},{"$f":"IFERROR(I113/I$117,0)","v":0},null,{"$f":"L63-L110","v":0},{"$f":"IFERROR(L113/L$117,0)","v":0},{"$f":"N63-N110","v":0},{"$f":"IFERROR(N113/N$117,0)","v":0}]
[{"$f":"A113+1","v":73},"Déduction de l’excédent (perte) avant impôt sur l’excédent et postes extraordinaires (saisir une valeur négative, le cas échéant). \nVoir instructions ci-dessous.",null,{"$f":"IFERROR(C114/C$117,0)","v":0},null,{"$f":"IFERROR(E114/E$117,0)","v":0},null,{"$f":"IFERROR(G114/G$117,0)","v":0},null,{"$f":"IFERROR(I114/I$117,0)","v":0},null,null,{"$f":"IFERROR(L114/L$117,0)","v":0},null,{"$f":"IFERROR(N114/N$117,0)","v":0}]
[{"$f":"A114+1","v":74},"Impôt sur l’excédent",null,{"$f":"IFERROR(C115/C$117,0)","v":0},null,{"$f":"IFERROR(E115/E$117,0)","v":0},null,{"$f":"IFERROR(G115/G$117,0)","v":0},null,{"$f":"IFERROR(I115/I$117,0)","v":0},null,null,{"$f":"IFERROR(L115/L$117,0)","v":0},null,{"$f":"IFERROR(N115/N$117,0)","v":0}]
[{"$f":"A115+1","v":75},"Postes extraordinaires (précisez — voir ligne 94)",null,{"$f":"IFERROR(C116/C$117,0)","v":0},null,{"$f":"IFERROR(E116/E$117,0)","v":0},null,{"$f":"IFERROR(G116/G$117,0)","v":0},null,{"$f":"IFERROR(I116/I$117,0)","v":0},null,null,{"$f":"IFERROR(L116/L$117,0)","v":0},null,{"$f":"IFERROR(N116/N$117,0)","v":0}]
[{"$f":"A116+1","v":76},"Excédent (Déficit) de l'exercice",{"$f":"SUM(C113:C116)","v":0},{"$f":"IFERROR(C117/C$117,0)","v":0},{"$f":"SUM(E113:E116)","v":0},{"$f":"IFERROR(E117/E$117,0)","v":0},{"$f":"SUM(G113:G116)","v":0},{"$f":"IFERROR(G117/G$117,0)","v":0},{"$f":"SUM(I113:I116)","v":0},{"$f":"IFERROR(I117/I$117,0)","v":0},null,{"$f":"SUM(L113:L116)","v":0},{"$f":"IFERROR(L117/L$117,0)","v":0},{"$f":"SUM(N113:N116)","v":0},{"$f":"IFERROR(N117/N$117,0)","v":0}]
[]
[{"$f":"A117+1","v":77},"Excédent (Déficit) accumulé à la fin de l'exercice"]
[{"$f":"A119+1","v":78},"Excédent (déficit) accumulé en début d’exercice",null,null,{"$f":"+C124","v":0},null,{"$f":"+E124","v":0},null,{"$f":"+G124","v":0},null,null,{"$f":"+E124","v":0},null,{"$f":"+L124","v":0}]
[{"$f":"A120+1","v":79},"Excédent (déficit) de l’exercice — obtenu à la ligne 76",{"$f":"C117","v":0},null,{"$f":"E117","v":0},null,{"$f":"G117","v":0},null,{"$f":"I117","v":0},null,null,{"$f":"L117","v":0},null,{"$f":"N117","v":0}]
[{"$f":"A121+1","v":80},"Dividendes déclarés et retraits (saisir un nombre absolu négatif (–) le cas échéant)"]
[{"$f":"A122+1","v":81},"Rajustements des exercices antérieurs (saisir une valeur négative, le cas échéant). Voir instructions ci-dessous."]
[{"$f":"A123+1","v":82},"Excédent (Déficit) accumulé à la fin de l'exercice",{"$f":"SUM(C120:C123)","v":0},null,{"$f":"SUM(E120:E123)","v":0},null,{"$f":"SUM(G120:G123)","v":0},null,{"$f":"SUM(I120:I123)","v":0},null,null,{"$f":"SUM(L120:L123)","v":0},null,{"$f":"SUM(N120:N123)","v":0}]
[]
[{"$f":"A124+1","v":83},"Bilan (Information tirée des états financiers — données réelles seulement)\nLa section bilan doit être remplie pour refléter la situation financière de l’ensemble de votre organisme même si les sections revenus et dépenses se rapportent uniquement à votre périodique. Voir instructions ci-dessous."]
[{"$f":"A126+1","v":84},"Total des actifs courants"]
[{"$f":"A127+1","v":85},"Total de l’actif"]
[{"$f":"A128+1","v":86},"Total des passifs courants"]
[{"$f":"A129+1","v":87},"Total du passif"]
[{"$f":"A130+1","v":88},"Total des actifs nets, ou capitaux propres"]
[]
[{"$f":"A131+1","v":89},"Filiales et sociétés apparentées "]
[]
[null,"Détails, le cas échéant"]
[{"$f":"A133+1","v":90},"Autres revenus gagnés (ligne 6)"]
[{"$f":"A136+1","v":91},"Autres revenus du secteur privé (ligne 13)"]
[{"$f":"A137+1","v":92},"Autres revenus du secteur public (ligne 24)"]
[{"$f":"A138+1","v":93},"Autres revenus (ligne 26)"]
[{"$f":"A139+1","v":94},"Postes extraordinaires (ligne 75)"]
[]
[null,"Instructions"]
["* ","Les pourcentages des composantes de la catégorie revenus sont calculés en fonction du montant total des revenus.\nLes pourcentages des composantes de la catégorie dépenses sont calculés en fonction du montant total des dépenses."]
[{"$f":"A48","v":14},"Autres revenus du secteur privé","Indiquez les subventions reçues de fondations privées ainsi que les commandites en biens et services si elles sont constatées dans les états financiers."]
[{"$f":"A50","v":16},"Revenus du secteur public","Dans la présente demande, il faut déclarer toute aide financière gouvernementale — notamment fédérale, provinciale et municipale — à titre de revenus. Si des subventions et des contributions figurent dans vos états financiers pour compenser des coûts des ventes ou des frais d’exploitation, vous devez les transférer dans la présente section de votre demande et faire les rajustements pertinents correspondants. De même, tous les crédits d’impôt doivent être inscrits dans cette section à titre de revenus."]
[{"$f":"A61","v":26},"Autres revenus","Indiquez tous les autres revenus, incluant les contributions de l’organisme lié ou apparenté, et les subventions de stabilisation. "]
[{"$f":"A114","v":73},"Déduction de l’excédent (perte) avant impôts sur l’excédent et postes extraordinaires","Déduisez les éléments suivants de l’excédent (perte) : moins-value, remise de dette, gain (perte) sur devises étrangères et sur investissements, et vente de biens en capital, etc."]
[{"$f":"A123","v":81},"Rajustements des exercices antérieurs (inscrire un nombre absolu comme valeur négative (-), le cas échéant)","Indiquez les retraitements comptables ayant une incidence directe sur votre excédent (déficit) d’exercice. "]
[{"$f":"A126","v":83},"Bilan","Ne remplissez que les colonnes des exercices financiers pour lesquels des états financiers ont été joints. N’inscrivez rien pour les exercices courant et prévisionnel. La section bilan doit être remplie pour refléter la situation financière de l’ensemble de votre organisme même si les sections revenus et dépenses se rapportent uniquement à votre périodique."]
[84,"Total des actifs courants","Incluez le total des actifs normalement réalisables au cours d’un exercice, répartis généralement dans les grandes catégories suivantes : espèces, comptes clients, valeurs mobilières, dépôts, subventions et contributions à recevoir, stock, coûts reportés de prépublication, y compris les ouvrages en cours, les droits d’auteur prépayés et les avances, par exemple."]
[85,"Total de l’actif","Incluez le total des actifs courants, des immobilisations et des autres actifs (investissements ou actifs incorporels, par exemple)."]
[86,"Total des passifs courants","Incluez le total des passifs normalement à payer au cours d’un exercice, habituellement répartis dans les principales catégories suivantes : comptes à payer, charges à payer, revenus et subventions reportés, parties à court terme de la dette à long terme et passifs d’impôts futurs dus au cours du prochain exercice."]
[87,"Total du passif","Incluez le total des passifs à court terme et à long terme (montant à payer aux actionnaires et dettes à long terme, par exemple)."]
[88,"Total des actifs nets, ou capitaux propres","Incluez les actifs nets, c’est-à-dire le capital-actions émis et payé, les surplus d’apports et les excédents non répartis."]
[null,"Remarque :","Actif = Passif + Actifs nets, ou Capitaux propres"]
[{"$f":"A133","v":89},"Filiales et sociétés apparentées","Fournissez des détails sur tout investissement, intérêts ou avances versées à des filiales ou à des sociétés apparentées."]

{"sheet":"L Budget Revues imprimées","index":12,"n_rows":165,"n_cols":15,"rows_kept":165,"cut":false,"hidden":false,"merged":[[4,2,5,3],[4,4,5,5],[4,6,5,7],[4,8,5,9],[4,11,5,12],[4,13,5,14],[7,6,7,7],[7,8,7,9],[1,1,1,14],[6,2,6,3],[6,4,6,5],[6,6,6,7],[6,8,6,9],[6,11,6,12],[6,13,6,14],[3,1,3,10],[3,11,3,14],[7,11,7,12],[9,2,9,3],[9,4,9,5],[9,6,9,7],[9,8,9,9],[32,1,32,14],[28,1,28,14],[9,11,9,12],[9,13,9,14],[7,1,9,1],[8,4,8,5],[8,6,8,7],[8,8,8,9],[8,11,8,12],[8,13,8,14],[7,2,7,3],[7,4,7,5],[7,13,7,14],[8,2,8,3],[93,10,98,10],[99,1,99,14],[104,1,104,14],[36,1,36,14],[37,14,42,14],[43,1,43,14],[44,1,44,14],[45,1,45,14],[10,1,10,14],[17,1,17,14],[18,10,23,10],[24,1,24,14],[25,10,27,10],[55,1,55,14],[62,1,62,14],[63,10,77,10],[78,1,78,14],[79,1,79,14],[80,1,80,14],[86,1,86,14],[87,10,91,10],[92,1,92,14],[155,2,155,9],[148,2,148,3],[148,4,148,5],[148,6,148,7],[148,8,148,9],[105,10,119,10],[120,1,120,14],[121,10,126,10],[127,1,127,14],[128,10,133,10],[134,1,134,14],[150,1,150,9],[151,1,151,9],[152,2,152,9],[153,2,153,9],[154,2,154,9],[147,13,147,14],[148,11,148,12],[148,13,148,14],[147,11,147,12],[135,10,142,10],[143,1,143,14],[144,2,144,3],[144,4,144,5],[162,2,162,9],[163,2,163,9],[164,2,164,9],[156,2,156,9],[157,2,157,9],[158,2,158,9],[159,2,159,9],[160,2,160,9],[161,2,161,9],[144,6,144,7],[144,8,144,9],[144,10,148,10],[144,11,144,12],[144,13,144,14],[145,2,145,3],[145,4,145,5],[145,6,145,7],[145,8,145,9],[145,11,145,12],[145,13,145,14],[146,13,146,14],[147,2,147,3],[146,2,146,3],[146,4,146,5],[146,6,146,7],[146,8,146,9],[146,11,146,12],[147,4,147,5],[147,6,147,7],[147,8,147,9]]}
[null,"v.201704"]
[null,"Appuyer la pratique artistique : Innovation et développement du secteur - Revues imprimées"]
[]
[null,null,null,null,null,null,null,null,null,null,null,"Pour votre rapport final"]
[null,"Date : ","Avant-dernier exercice financier\nDonnées réelles",null,"Dernier exercice financier\nDonnées réelles",null,"Exercice financier \nen cours\nDonnées projetées",null,"Exercice financier visé par la demande\nDonnées projetées",null,null,"Exercice financier \nen cours\nDonnées réelles\n(facultatif)",null,"Année de la demande\nDonnées réelles"]
[null,"(Voir la définition des termes au bas du formulaire de demande, ainsi que les instructions au bas de cette page avant de remplir ce formulaire.)"]
[null,null,"de",null,"de",null,"de",null,"de",null,null,"de",null,"de"]
[null,"(Remarque : Les renseignements inscrits dans les deux premières colonnes devraient correspondre aux chiffres indiqués dans les états financiers joints à cette demande.)","Date : ",null,"Date : ",null,"Date : ",null,"Date : ",null,null,"Date : ",null,"Date : "]
[null,null,"à",null,"à",null,"à",null,"à",null,null,"à",null,"à"]
[null,null,"Date : ",null,"Date : ",null,"Date : ",null,"Date : ",null,null,"Date : ",null,"Date : "]
[null,"Données sur le tirage et la publication - revues imprimées"]
[null,"% du contenu en langue anglaise"]
[null,"% du contenu en langue française"]
[null,"% du contenu en d’autres langues"]
[null,"Précisez les langues :"]
[null,"% d'auteurs canadiens"]
[null,"% d'auteurs étrangers"]
[]
[null,"Nombre de numéros publiés par exercice"]
[null,"Nombre total de pages publiées pendant l’exercice (y compris la couverture)"]
[null,"Nombre total de pages publicitaires vendues pendant l’exercice"]
[null,"Prix du numéro"]
[null,"Prix de l’abonnement annuel pour les particuliers"]
[null,"Prix de l’abonnement annuel pour les organismes"]
[null,"Diffusion payante"]
[null,"Nombre d’abonnés payants par numéro (à la fin de l’exercice)"]
[null,"Nombre de ventes par numéro (moyenne par numéro)"]
[null,"Total de la diffusion payante (moyenne par numéro)",{"$f":"C26+C27","v":0},null,{"$f":"E26+E27","v":0},null,{"$f":"G26+G27","v":0},null,{"$f":"I26+I27","v":0},null,null,{"$f":"L26+L27","v":0},null,{"$f":"N26+N27","v":0}]
[null,"Diffusion électronique (par Zinio et iTunes, par exemple). N’incluez pas les abonnements offerts gratuitement.        \n"]
[null,"Nombre d’abonnés par numéro, version électronique (moyenne par numéro)"]
[null,"Nombre de ventes par numéro, version électronique (moyenne par numéro) "]
[null,"Total de la diffusion électronique (moyenne par numéro)",{"$f":"C30+C31","v":0},null,{"$f":"E30+E31","v":0},null,{"$f":"G30+G31","v":0},null,{"$f":"I30+I31","v":0},null,null,{"$f":"L30+L31","v":0},null,{"$f":"N30+N31","v":0}]
[null,"Diffusion non payante"]
[null,"Diffusion contrôlée (moyenne par numéro)"]
[null,"Exemplaires gratuits (moyenne par numéro)"]
[null,"Total de la diffusion non payante (moyenne par numéro)",{"$f":"C34+C35","v":0},null,{"$f":"E34+E35","v":0},null,{"$f":"G34+G35","v":0},null,{"$f":"I34+I35","v":0},null,null,{"$f":"L34+L35","v":0},null,{"$f":"N34+N35","v":0}]
[null,"Exemplaires non distribués"]
[null,"Retours (moyenne par numéro)"]
[null,"Exemplaires endommagés (moyenne par numéro)"]
[null,"Copies d’archives (moyenne par numéro)"]
[null,"Total des exemplaires non distribués (moyenne par numéro)",{"$f":"SUM(C38:C40)","v":0},null,{"$f":"SUM(E38:E40)","v":0},null,{"$f":"SUM(G38:G40)","v":0},null,{"$f":"SUM(I38:I40)","v":0},null,null,{"$f":"SUM(L38:L40)","v":0},null,{"$f":"SUM(N38:N40)","v":0}]
[null,"Tirage (moyenne par numéro)",{"$f":"C41+C36+C28","v":0},null,{"$f":"E41+E36+E28","v":0},null,{"$f":"G41+G36+G28","v":0},null,{"$f":"I41+I36+I28","v":0},null,null,{"$f":"L41+L36+L28","v":0},null,{"$f":"N41+N36+N28","v":0}]
[null,"Pourcentage du tirage vendu",{"$f":"IFERROR(C28/C42,0)","v":0},null,{"$f":"IFERROR(E28/E42,0)","v":0},null,{"$f":"IFERROR(G28/G42,0)","v":0},null,{"$f":"IFERROR(I28/I42,0)","v":0},null,null,{"$f":"IFERROR(L28/L42,0)","v":0},null,{"$f":"IFERROR(N28/N42,0)","v":0}]
[null,"Données financières - revues imprimées  "]
[null,"Revenus"]
[null,"Revenus gagnés"]
[1,"Ventes d’abonnements aux particuliers",null,{"$f":"IFERROR(C47/C$77,0)","v":0},null,{"$f":"IFERROR(E47/E$77,0)","v":0},null,{"$f":"IFERROR(G47/G$77,0)","v":0},null,{"$f":"IFERROR(I47/I$77,0)","v":0},null,null,{"$f":"IFERROR(L47/L$77,0)","v":0},null,{"$f":"IFERROR(N47/N$77,0)","v":0}]
[{"$f":"A47+1","v":2},"Ventes d’abonnements aux organismes",null,0,null,0,null,0,null,0,null,null,0,null,0]
[3,"Ventes de numéros à l’unité (en kiosque ou non)",null,0,null,0,null,0,null,0,null,null,0,null,0]
[4,"Ventes d’abonnements électroniques ",null,0,null,0,null,0,null,0,null,null,0,null,0]
[5,"Ventes de numéros, version électronique",null,0,null,0,null,0,null,0,null,null,0,null,0]
[6,"Ventes de publicité",null,0,null,0,null,0,null,0,null,null,0,null,0]
[7,"Droits d’auteur, de reproduction et redevances",null,0,null,0,null,0,null,0,null,null,0,null,0]
[8,"Autres revenus gagnés (précisez — voir ligne 87)",null,0,null,0,null,0,null,0,null,null,0,null,0]
[9,"Total des revenus gagnés",{"$f":"SUM(C47:C54)","v":0},0,{"$f":"SUM(E47:E54)","v":0},0,{"$f":"SUM(G47:G54)","v":0},0,{"$f":"SUM(I47:I54)","v":0},0,null,{"$f":"SUM(L47:L54)","v":0},0,{"$f":"SUM(N47:N54)","v":0},0]
[10,"Revenus du secteur privé"]
[11,"Dons de particuliers",null,{"$f":"IFERROR(C57/C$77,0)","v":0},null,{"$f":"IFERROR(E57/E$77,0)","v":0},null,{"$f":"IFERROR(G57/G$77,0)","v":0},null,{"$f":"IFERROR(I57/I$77,0)","v":0},null,null,{"$f":"IFERROR(L57/L$77,0)","v":0},null,{"$f":"IFERROR(N57/N$77,0)","v":0}]
[12,"Dons d’entreprises",null,0,null,0,null,0,null,0,null,null,0,null,0]
[13,"Revenus de collecte de fonds (bruts)",null,0,null,0,null,0,null,0,null,null,0,null,0]
[14,"Travail bénévole",null,0,null,0,null,0,null,0,null,null,0,null,0]
[15,"Autres revenus du secteur privé (précisez — voir ligne 88). Voir instructions ci-dessous.",null,0,null,0,null,0,null,0,null,null,0,null,0]
[16,"Total des revenus du secteur privé",{"$f":"SUM(C57:C61)","v":0},0,{"$f":"SUM(E57:E61)","v":0},0,{"$f":"SUM(G57:G61)","v":0},0,{"$f":"SUM(I57:I61)","v":0},0,null,{"$f":"SUM(L57:L61)","v":0},0,{"$f":"SUM(N57:N61)","v":0},0]
[17,"Revenus du secteur public (voir instructions ci-dessous)"]
[18,"Subvention pour cette demande",null,{"$f":"IFERROR(C64/C$77,0)","v":0},null,{"$f":"IFERROR(E64/E$77,0)","v":0},null,{"$f":"IFERROR(G64/G$77,0)","v":0},null,{"$f":"IFERROR(I64/I$77,0)","v":0},null,null,{"$f":"IFERROR(L64/L$77,0)","v":0},null,{"$f":"IFERROR(N64/N$77,0)","v":0}]
[19,"Autres subventions du Conseil des arts du Canada ",null,0,null,0,null,0,null,0,null,null,0,null,0]
[20,"Aide à l’édition savante du CRSHC ",null,0,null,0,null,0,null,0,null,null,0,null,0]
[21,"Fonds du Canada pour les périodiques ",null,0,null,0,null,0,null,0,null,null,0,null,0]
[22,"Autres subventions fédérales",null,0,null,0,null,0,null,0,null,null,0,null,0]
[23,"Subventions provinciales ou territoriales",null,0,null,0,null,0,null,0,null,null,0,null,0]
[24,"Subventions municipales ou regionales",null,0,null,0,null,0,null,0,null,null,0,null,0]
[25,"Subventions de programmes d’emploi",null,0,null,0,null,0,null,0,null,null,0,null,0]
[26,"Autres revenus du secteur public (précisez — voir ligne 89)",null,0,null,0,null,0,null,0,null,null,0,null,0]
[27,"Total des revenus du secteur public",{"$f":"SUM(C64:C72)","v":0},0,{"$f":"SUM(E64:E72)","v":0},0,{"$f":"SUM(G64:G72)","v":0},0,{"$f":"SUM(I64:I72)","v":0},0,null,{"$f":"SUM(L64:L72)","v":0},0,{"$f":"SUM(N64:N72)","v":0},0]
[]
[{"$f":"A73+1","v":28},"Autres revenus (précisez — voir ligne 90)\nVoir instructions ci-dessous.",null,{"$f":"IFERROR(C75/C$77,0)","v":0},null,{"$f":"IFERROR(E75/E$77,0)","v":0},null,{"$f":"IFERROR(G75/G$77,0)","v":0},null,{"$f":"IFERROR(I75/I$77,0)","v":0},null,null,{"$f":"IFERROR(L75/L$77,0)","v":0},null,{"$f":"IFERROR(N75/N$77,0)","v":0}]
[]
[{"$f":"A75+1","v":29},"Total des revenus",{"$f":"C55+C62+C73+C75","v":0},{"$f":"IFERROR(C77/C$77,0)","v":0},{"$f":"E55+E62+E73+E75","v":0},0,0,0,0,0,null,{"$f":"L55+L62+L73+L75","v":0},{"$f":"M55+M62+M73+M75","v":0},{"$f":"N55+N62+N73+N75","v":0},{"$f":"O55+O62+O73+O75","v":0}]
[]
[{"$f":"A77+1","v":30},"Dépenses"]
[{"$f":"A79+1","v":31},"Coûts des ventes"]
[32,"Rédaction"]
[33,"Dépenses et salaires liés à la rédaction",null,{"$f":"IFERROR(C82/C$119,0)","v":0},null,{"$f":"IFERROR(E82/E$119,0)","v":0},null,{"$f":"IFERROR(G82/G$119,0)","v":0},null,{"$f":"IFERROR(I82/I$119,0)","v":0},null,null,{"$f":"IFERROR(L82/L$119,0)","v":0},null,{"$f":"IFERROR(N82/N$119,0)","v":0}]
[34,"Cachets aux auteurs",null,{"$f":"IFERROR(C83/C$119,0)","v":0},null,{"$f":"IFERROR(E83/E$119,0)","v":0},null,{"$f":"IFERROR(G83/G$119,0)","v":0},null,{"$f":"IFERROR(I83/I$119,0)","v":0},null,null,{"$f":"IFERROR(L83/L$119,0)","v":0},null,{"$f":"IFERROR(N83/N$119,0)","v":0}]
[35,"Cachets aux collaborateurs",null,{"$f":"IFERROR(C84/C$119,0)","v":0},null,{"$f":"IFERROR(E84/E$119,0)","v":0},null,{"$f":"IFERROR(G84/G$119,0)","v":0},null,{"$f":"IFERROR(I84/I$119,0)","v":0},null,null,{"$f":"IFERROR(L84/L$119,0)","v":0},null,{"$f":"IFERROR(N84/N$119,0)","v":0}]
[36,"Illustrations et photos, droits de reproduction",null,{"$f":"IFERROR(C85/C$119,0)","v":0},null,{"$f":"IFERROR(E85/E$119,0)","v":0},null,{"$f":"IFERROR(G85/G$119,0)","v":0},null,{"$f":"IFERROR(I85/I$119,0)","v":0},null,null,{"$f":"IFERROR(L85/L$119,0)","v":0},null,{"$f":"IFERROR(N85/N$119,0)","v":0}]
[37,"Total des coûts de rédaction",{"$f":"SUM(C82:C85)","v":0},{"$f":"IFERROR(C86/C$119,0)","v":0},{"$f":"SUM(E82:E85)","v":0},{"$f":"IFERROR(E86/E$119,0)","v":0},{"$f":"SUM(G82:G85)","v":0},{"$f":"IFERROR(G86/G$119,0)","v":0},{"$f":"SUM(I82:I85)","v":0},{"$f":"IFERROR(I86/I$119,0)","v":0},null,{"$f":"SUM(L82:L85)","v":0},{"$f":"IFERROR(L86/L$119,0)","v":0},{"$f":"SUM(N82:N85)","v":0},{"$f":"IFERROR(N86/N$119,0)","v":0}]
[38,"Production"]
[39,"Préimpression",null,{"$f":"IFERROR(C88/C$119,0)","v":0},null,{"$f":"IFERROR(E88/E$119,0)","v":0},null,{"$f":"IFERROR(G88/G$119,0)","v":0},null,{"$f":"IFERROR(I88/I$119,0)","v":0},null,null,{"$f":"IFERROR(L88/L$119,0)","v":0},null,{"$f":"IFERROR(N88/N$119,0)","v":0}]
[40,"Impression et reliure",null,{"$f":"IFERROR(C89/C$119,0)","v":0},null,{"$f":"IFERROR(E89/E$119,0)","v":0},null,{"$f":"IFERROR(G89/G$119,0)","v":0},null,{"$f":"IFERROR(I89/I$119,0)","v":0},null,null,{"$f":"IFERROR(L89/L$119,0)","v":0},null,{"$f":"IFERROR(N89/N$119,0)","v":0}]
[41,"Coûts de production liés à la version numérique",null,{"$f":"IFERROR(C90/C$119,0)","v":0},null,{"$f":"IFERROR(E90/E$119,0)","v":0},null,{"$f":"IFERROR(G90/G$119,0)","v":0},null,{"$f":"IFERROR(I90/I$119,0)","v":0},null,null,{"$f":"IFERROR(L90/L$119,0)","v":0},null,{"$f":"IFERROR(N90/N$119,0)","v":0}]
[42,"Web et commerce électronique",null,{"$f":"IFERROR(C91/C$119,0)","v":0},null,{"$f":"IFERROR(E91/E$119,0)","v":0},null,{"$f":"IFERROR(G91/G$119,0)","v":0},null,{"$f":"IFERROR(I91/I$119,0)","v":0},null,null,{"$f":"IFERROR(L91/L$119,0)","v":0},null,{"$f":"IFERROR(N91/N$119,0)","v":0}]
[43,"Total des coûts de production",{"$f":"SUM(C88:C91)","v":0},{"$f":"IFERROR(C92/C$119,0)","v":0},{"$f":"SUM(E88:E91)","v":0},{"$f":"IFERROR(E92/E$119,0)","v":0},{"$f":"SUM(G88:G91)","v":0},{"$f":"IFERROR(G92/G$119,0)","v":0},{"$f":"SUM(I88:I91)","v":0},{"$f":"IFERROR(I92/I$119,0)","v":0},null,{"$f":"SUM(L88:L91)","v":0},{"$f":"IFERROR(L92/L$119,0)","v":0},{"$f":"SUM(N88:N91)","v":0},{"$f":"IFERROR(N92/N$119,0)","v":0}]
[44,"Diffusion"]
[45,"Affranchissement",null,{"$f":"IFERROR(C94/C$119,0)","v":0},null,{"$f":"IFERROR(E94/E$119,0)","v":0},null,{"$f":"IFERROR(G94/G$119,0)","v":0},null,{"$f":"IFERROR(I94/I$119,0)","v":0},null,null,{"$f":"IFERROR(L94/L$119,0)","v":0},null,{"$f":"IFERROR(N94/N$119,0)","v":0}]
[46,"Envoi et manutention",null,{"$f":"IFERROR(C95/C$119,0)","v":0},null,{"$f":"IFERROR(E95/E$119,0)","v":0},null,{"$f":"IFERROR(G95/G$119,0)","v":0},null,{"$f":"IFERROR(I95/I$119,0)","v":0},null,null,{"$f":"IFERROR(L95/L$119,0)","v":0},null,{"$f":"IFERROR(N95/N$119,0)","v":0}]
[47,"Total des coûts de diffusion",{"$f":"SUM(C94:C95)","v":0},{"$f":"IFERROR(C96/C$119,0)","v":0},{"$f":"SUM(E94:E95)","v":0},{"$f":"IFERROR(E96/E$119,0)","v":0},{"$f":"SUM(G94:G95)","v":0},{"$f":"IFERROR(G96/G$119,0)","v":0},{"$f":"SUM(I94:I95)","v":0},{"$f":"IFERROR(I96/I$119,0)","v":0},null,{"$f":"SUM(L94:L95)","v":0},{"$f":"IFERROR(L96/L$119,0)","v":0},{"$f":"SUM(N94:N95)","v":0},{"$f":"IFERROR(N96/N$119,0)","v":0}]
[]
[{"$f":"A96+1","v":48},"Total des coûts des ventes",{"$f":"SUM(C96+C92+C86)","v":0},{"$f":"IFERROR(C98/C$119,0)","v":0},{"$f":"SUM(E96+E92+E86)","v":0},{"$f":"IFERROR(E98/E$119,0)","v":0},{"$f":"SUM(G96+G92+G86)","v":0},{"$f":"IFERROR(G98/G$119,0)","v":0},{"$f":"SUM(I96+I92+I86)","v":0},{"$f":"IFERROR(I98/I$119,0)","v":0},null,{"$f":"SUM(L96+L92+L86)","v":0},{"$f":"IFERROR(L98/L$119,0)","v":0},{"$f":"SUM(N96+N92+N86)","v":0},{"$f":"IFERROR(N98/N$119,0)","v":0}]
[]
[{"$f":"A98+1","v":49},"Promotion et publicité"]
[{"$f":"A100+1","v":50},"Frais de publicité",null,{"$f":"IFERROR(C101/C$119,0)","v":0},null,{"$f":"IFERROR(E101/E$119,0)","v":0},null,{"$f":"IFERROR(G101/G$119,0)","v":0},null,{"$f":"IFERROR(I101/I$119,0)","v":0},null,null,{"$f":"IFERROR(L101/L$119,0)","v":0},null,{"$f":"IFERROR(N101/N$119,0)","v":0}]
[51,"Échange de publicité ",null,{"$f":"IFERROR(C102/C$119,0)","v":0},null,{"$f":"IFERROR(E102/E$119,0)","v":0},null,{"$f":"IFERROR(G102/G$119,0)","v":0},null,{"$f":"IFERROR(I102/I$119,0)","v":0},null,null,{"$f":"IFERROR(L102/L$119,0)","v":0},null,{"$f":"IFERROR(N102/N$119,0)","v":0}]
[52,"Droit d’adhésion et d’inscription, et promotion des numéros",null,{"$f":"IFERROR(C103/C$119,0)","v":0},null,{"$f":"IFERROR(E103/E$119,0)","v":0},null,{"$f":"IFERROR(G103/G$119,0)","v":0},null,{"$f":"IFERROR(I103/I$119,0)","v":0},null,null,{"$f":"IFERROR(L103/L$119,0)","v":0},null,{"$f":"IFERROR(N103/N$119,0)","v":0}]
[53,"Total des frais de promotion et de publicité",{"$f":"SUM(C101:C103)","v":0},{"$f":"IFERROR(C104/C$119,0)","v":0},{"$f":"SUM(E101:E103)","v":0},{"$f":"IFERROR(E104/E$119,0)","v":0},{"$f":"SUM(G101:G103)","v":0},{"$f":"IFERROR(G104/G$119,0)","v":0},{"$f":"SUM(I101:I103)","v":0},{"$f":"IFERROR(I104/I$119,0)","v":0},null,{"$f":"SUM(L101:L103)","v":0},{"$f":"IFERROR(L104/L$119,0)","v":0},{"$f":"SUM(N101:N103)","v":0},{"$f":"IFERROR(N104/N$119,0)","v":0}]
[54,"Frais généraux"]
[55,"Salaires du personnel et contrats",null,{"$f":"IFERROR(C106/C$119,0)","v":0},null,{"$f":"IFERROR(E106/E$119,0)","v":0},null,{"$f":"IFERROR(G106/G$119,0)","v":0},null,{"$f":"IFERROR(I106/I$119,0)","v":0},null,null,{"$f":"IFERROR(L106/L$119,0)","v":0},null,{"$f":"IFERROR(N106/N$119,0)","v":0}]
[56,"Avantages sociaux",null,0,null,0,null,0,null,0,null,null,0,null,0]
[57,"Coût d'accès: coûts reliés aux mesures de soutien et services pour écrivains sourds ou handicapés impliqués dans le projet",null,0,null,0,null,0,null,0,null,null,0,null,0]
[58,"Valeur du travail bénévole",null,0,null,0,null,0,null,0,null,null,0,null,0]
[59,"Perfectionnement professionnel du personnel",null,0,null,0,null,0,null,0,null,null,0,null,0]
[60,"Dépenses de collecte de fonds (brutes)",null,0,null,0,null,0,null,0,null,null,0,null,0]
[61,"Coûts d’occupation (loyer, hypothèque)",null,0,null,0,null,0,null,0,null,null,0,null,0]
[62,"Fournitures de bureau et petits appareils",null,0,null,0,null,0,null,0,null,null,0,null,0]
[63,"Télécommunications",null,0,null,0,null,0,null,0,null,null,0,null,0]
[64,"Amortissement",null,0,null,0,null,0,null,0,null,null,0,null,0]
[65,"Autres frais généraux ",null,0,null,0,null,0,null,0,null,null,0,null,0]
[66,"Total des frais généraux",{"$f":"SUM(C106:C116)","v":0},0,{"$f":"SUM(E106:E116)","v":0},0,{"$f":"SUM(G106:G116)","v":0},0,{"$f":"SUM(I106:I116)","v":0},0,null,{"$f":"SUM(L106:L116)","v":0},0,{"$f":"SUM(N106:N116)","v":0},0]
[]
[{"$f":"A117+1","v":67},"Total des dépenses",{"$f":"C98+C104+C117","v":0},{"$f":"IFERROR(C119/C$119,0)","v":0},{"$f":"E98+E104+E117","v":0},{"$f":"IFERROR(E119/E$119,0)","v":0},{"$f":"G98+G104+G117","v":0},{"$f":"IFERROR(G119/G$119,0)","v":0},{"$f":"I98+I104+I117","v":0},{"$f":"IFERROR(I119/I$119,0)","v":0},null,{"$f":"L98+L104+L117","v":0},{"$f":"IFERROR(L119/L$119,0)","v":0},{"$f":"N98+N104+N117","v":0},{"$f":"IFERROR(N119/N$119,0)","v":0}]
[]
[{"$f":"A119+1","v":68},"Excédent (Déficit) de l'exercice"]
[{"$f":"A121+1","v":69},"Excédent (déficit) = revenus – dépenses",{"$f":"C77-C119","v":0},{"$f":"IFERROR(C122/C$126,0)","v":0},{"$f":"E77-E119","v":0},{"$f":"IFERROR(E122/E$126,0)","v":0},{"$f":"G77-G119","v":0},{"$f":"IFERROR(G122/G$126,0)","v":0},{"$f":"I77-I119","v":0},{"$f":"IFERROR(I122/I$126,0)","v":0},null,{"$f":"L77-L119","v":0},{"$f":"IFERROR(L122/L$126,0)","v":0},{"$f":"N77-N119","v":0},{"$f":"IFERROR(N122/N$126,0)","v":0}]
[{"$f":"A122+1","v":70},"Déduction de l’excédent (perte) avant impôt sur l’excédent et postes extraordinaires (saisir une valeur négative, le cas échéant). \nVoir instructions ci-dessous.",null,{"$f":"IFERROR(C123/C$126,0)","v":0},null,{"$f":"IFERROR(E123/E$126,0)","v":0},null,{"$f":"IFERROR(G123/G$126,0)","v":0},null,{"$f":"IFERROR(I123/I$126,0)","v":0},null,null,{"$f":"IFERROR(L123/L$126,0)","v":0},null,{"$f":"IFERROR(N123/N$126,0)","v":0}]
[{"$f":"A123+1","v":71},"Impôt sur l’excédent",null,{"$f":"IFERROR(C124/C$126,0)","v":0},null,{"$f":"IFERROR(E124/E$126,0)","v":0},null,{"$f":"IFERROR(G124/G$126,0)","v":0},null,{"$f":"IFERROR(I124/I$126,0)","v":0},null,null,{"$f":"IFERROR(L124/L$126,0)","v":0},null,{"$f":"IFERROR(N124/N$126,0)","v":0}]
[{"$f":"A124+1","v":72},"Postes extraordinaires (précisez — voir ligne 91)",null,{"$f":"IFERROR(C125/C$126,0)","v":0},null,{"$f":"IFERROR(E125/E$126,0)","v":0},null,{"$f":"IFERROR(G125/G$126,0)","v":0},null,{"$f":"IFERROR(I125/I$126,0)","v":0},null,null,{"$f":"IFERROR(L125/L$126,0)","v":0},null,{"$f":"IFERROR(N125/N$126,0)","v":0}]
[{"$f":"A125+1","v":73},"Excédent (Déficit) de l'exercice",{"$f":"SUM(C122:C125)","v":0},{"$f":"IFERROR(C126/C$126,0)","v":0},{"$f":"SUM(E122:E125)","v":0},{"$f":"IFERROR(E126/E$126,0)","v":0},{"$f":"SUM(G122:G125)","v":0},{"$f":"IFERROR(G126/G$126,0)","v":0},{"$f":"SUM(I122:I125)","v":0},{"$f":"IFERROR(I126/I$126,0)","v":0},null,{"$f":"SUM(L122:L125)","v":0},{"$f":"IFERROR(L126/L$126,0)","v":0},{"$f":"SUM(N122:N125)","v":0},{"$f":"IFERROR(N126/N$126,0)","v":0}]
[]
[{"$f":"A126+1","v":74},"Excédent (Déficit) accumulé à la fin de l'exercice"]
[{"$f":"A128+1","v":75},"Excédent (déficit) accumulé en début d’exercice",null,null,{"$f":"C133","v":0},null,{"$f":"E133","v":0},null,{"$f":"G133","v":0},null,null,{"$f":"E133","v":0},null,{"$f":"L133","v":0}]
[{"$f":"A129+1","v":76},"Excédent (déficit) de l’exercice — obtenu à la ligne 73",{"$f":"C126","v":0},null,{"$f":"E126","v":0},null,{"$f":"G126","v":0},null,{"$f":"I126","v":0},null,null,{"$f":"L126","v":0},null,{"$f":"N126","v":0}]
[{"$f":"A130+1","v":77},"Dividendes déclarés et retraits (saisir un nombre absolu négatif (–) le cas échéant)"]
[{"$f":"A131+1","v":78},"Rajustements des exercices antérieurs (saisir une valeur négative, le cas échéant). Voir instructions ci-dessous."]
[{"$f":"A132+1","v":79},"Excédent (Déficit) accumulé à la fin de l'exercice",{"$f":"SUM(C129:C132)","v":0},null,{"$f":"SUM(E129:E132)","v":0},null,{"$f":"SUM(G129:G132)","v":0},null,{"$f":"SUM(I129:I132)","v":0},null,null,{"$f":"SUM(L129:L132)","v":0},null,{"$f":"SUM(N129:N132)","v":0}]
[]
[{"$f":"A133+1","v":80},"Bilan (Information tirée des états financiers — données réelles seulement)\nLa section bilan doit être remplie pour refléter la situation financière de l’ensemble de votre organisme même si les sections revenus et dépenses se rapportent uniquement à votre périodique. Voir instructions ci-dessous."]
[{"$f":"A135+1","v":81},"Total des actifs courants"]
[{"$f":"A136+1","v":82},"Total de l’actif"]
[{"$f":"A137+1","v":83},"Total des passifs courants"]
[{"$f":"A138+1","v":84},"Total du passif"]
[{"$f":"A139+1","v":85},"Total des actifs nets, ou capitaux propres"]
[]
[{"$f":"A140+1","v":86},"Filiales et sociétés apparentées "]
[]
[null,"Détails, le cas échéant"]
[{"$f":"A142+1","v":87},"Autres revenus gagnés (ligne 8)"]
[{"$f":"A145+1","v":88},"Autres revenus du secteur privé (ligne 15)"]
[{"$f":"A146+1","v":89},"Autres revenus du secteur public (ligne 26)"]
[{"$f":"A147+1","v":90},"Autres revenus (ligne 28)"]
[{"$f":"A148+1","v":91},"Postes extraordinaires (ligne 72)"]
[]
[null,"Instructions"]
["* ","Les pourcentages des composantes de la catégorie revenus sont calculés en fonction du montant total des revenus.\nLes pourcentages des composantes de la catégorie dépenses sont calculés en fonction du montant total des dépenses."]
[{"$f":"A61","v":15},"Autres revenus du secteur privé","Indiquez les subventions reçues de fondations privées ainsi que les commandites en biens et services si elles sont constatées dans les états financiers."]
[{"$f":"A63","v":17},"Revenus du secteur public","Dans la présente demande, il faut déclarer toute aide financière gouvernementale — notamment fédérale, provinciale et municipale — à titre de revenus. Si des subventions et des contributions figurent dans vos états financiers pour compenser des coûts des ventes ou des frais d’exploitation, vous devez les transférer dans la présente section de votre demande et faire les rajustements pertinents correspondants. De même, tous les crédits d’impôt doivent être inscrits dans cette section à titre de revenus."]
[{"$f":"A75","v":28},"Autres revenus","Indiquez tous les autres revenus, incluant les contributions de l’organisme lié ou apparenté, et les subventions de stabilisation. "]
[{"$f":"A123","v":70},"Déduction de l’excédent (perte) avant impôts sur l’excédent et postes extraordinaires","Déduisez les éléments suivants de l’excédent (perte) : moins-value, remise de dette, gain (perte) sur devises étrangères et sur investissements, vente de biens en capital, etc."]
[{"$f":"A132","v":78},"Rajustements des exercices antérieurs (inscrire un nombre absolu comme valeur négative (-), le cas échéant)","Indiquez les retraitements comptables ayant une incidence directe sur votre excédent (déficit) d’exercice. "]
[{"$f":"A135","v":80},"Bilan","Ne remplissez que les colonnes des exercices financiers pour lesquels des états financiers ont été joints. N’inscrivez rien pour les exercices courant et prévisionnel. La section bilan doit être remplie pour refléter la situation financière de l’ensemble de votre organisme même si les sections revenus et dépenses se rapportent uniquement à votre périodique."]
[81,"Total des actifs courants","Incluez le total des actifs normalement réalisables au cours d’un exercice, répartis généralement dans les grandes catégories suivantes : espèces, comptes clients, valeurs mobilières, dépôts, subventions et contributions à recevoir, stock, coûts reportés de prépublication, y compris les ouvrages en cours, les droits d’auteur prépayés et les avances, par exemple."]
[82,"Total de l’actif","Incluez le total des actifs courants, des immobilisations et des autres actifs (investissements ou actifs incorporels, par exemple)."]
[83,"Total des passifs courants","Incluez le total des passifs normalement à payer au cours d’un exercice, habituellement répartis dans les principales catégories suivantes : comptes à payer, charges à payer, revenus et subventions reportés, parties à court terme de la dette à long terme et passifs d’impôts futurs dus au cours du prochain exercice."]
[84,"Total du passif","Incluez le total des passifs à court terme et à long terme (montant à payer aux actionnaires et dettes à long terme, par exemple)."]
[85,"Total des actifs nets, ou capitaux propres","Incluez les actifs nets, c’est-à-dire le capital-actions émis et payé, les surplus d’apports et les excédents non répartis."]
[null,"Remarque :","Actif = Passif + Actifs nets, ou Capitaux propres"]
[{"$f":"A142","v":86},"Filiales et sociétés apparentées","Fournissez des détails sur tout investissement, intérêts ou avances versées à des filiales ou à des sociétés apparentées."]

{"sheet":"Sheet1","index":13,"n_rows":27,"n_cols":9,"rows_kept":27,"cut":false,"hidden":true,"merged":[]}
[null,null,null,null,null,null,null,null,"v.201704"]
[]
[]
[null,null,null,"activity drop down",null,"translate"]
[null,null,null,"SELECT",null,"SÉLECTIONNEZ"]
[null,null,null,"Collection",null,"Collection"]
[null,null,null,"Equipment",null,"Équipement (arts médiatique)"]
[null,null,null,"Production",null,"Production"]
[null,null,null,"Publication",null,"Publication"]
[null,null,null,"Other",null,"Autre"]
[]
[]
[null,null,null,"media arts drop down",null,"translate"]
[null,null,null,"SELECT",null,"SÉLECTIONNEZ"]
[null,null,null,"For distribution",null,"Pour distribution"]
[null,null,null,"For research, archives",null,"Pour recherche et archives"]
[null,null,null,"For rental",null,"Pour location"]
[null,null,null,"Other",null,"Autre"]
[]
[]
[null,null,null,"visual arts drop down",null,"translate"]
[null,null,null,"SELECT",null,"SÉLECTIONNEZ"]
[null,null,null,"Donated",null,"Donné"]
[null,null,null,"Purchased",null,"Achetée"]
[null,null,null,"Produced in-house",null,"Produite par l'organisme"]
[null,null,null,"Co-Production",null,"Coproduction"]
[null,null,null,"Other",null,"Autre"]